Date the Expenditure was incurred,Local authority department which incurred the expenditure,SUPPLIER_DESC,Summary of the purpose of the expenditure,Amount,Vat,"Merchant category (eg. Computers, software etc)"
PAYMENT_DATE,DEPART_DESC,SUPPLIER_DESC,ANALYSIS_DESC,AMOUNT,Vat,ACCOUNT_DESC
04/04/2018,Adults & Housing Department,Leicestershire County Council,3PP - Other Local Authorities,"38,000.00",0.00,Other Local Authorities
04/04/2018,Adults & Housing Department,Community Integrated Care,Day Care /Community Opportunities,"1,169.52",0.00,Day Care /Community Opportunities
04/04/2018,Adults & Housing Department,Community Integrated Care,Day Care /Community Opportunities,"1,169.52",0.00,Day Care /Community Opportunities
04/04/2018,Adults & Housing Department,Community Integrated Care,Day Care /Community Opportunities,"1,169.52",0.00,Day Care /Community Opportunities
04/04/2018,Adults & Housing Department,Community Integrated Care,Day Care /Community Opportunities,"1,169.52",0.00,Day Care /Community Opportunities
04/04/2018,Adults & Housing Department,Community Integrated Care,Day Care /Community Opportunities,"1,169.52",0.00,Day Care /Community Opportunities
04/04/2018,Adults & Housing Department,Community Integrated Care,Day Care /Community Opportunities,"1,169.52",0.00,Day Care /Community Opportunities
04/04/2018,Adults & Housing Department,Community Integrated Care,Day Care /Community Opportunities,"1,169.52",0.00,Day Care /Community Opportunities
04/04/2018,Adults & Housing Department,Community Integrated Care,Day Care /Community Opportunities,"1,169.52",0.00,Day Care /Community Opportunities
04/04/2018,Adults & Housing Department,Community Integrated Care,Day Care /Community Opportunities,"1,169.52",0.00,Day Care /Community Opportunities
04/04/2018,Adults & Housing Department,Community Integrated Care,Day Care /Community Opportunities,"1,169.52",0.00,Day Care /Community Opportunities
04/04/2018,Adults & Housing Department,Community Integrated Care,Day Care /Community Opportunities,"1,169.52",0.00,Day Care /Community Opportunities
04/04/2018,Adults & Housing Department,Affinity Trust FA SL&FSB,DAY SUPPORT,935.55,0.00,LD Supported Living
04/04/2018,Adults & Housing Department,CareTech Community Services Ltd FA SL&FSB,DAY SUPPORT,"4,818.96",0.00,LD Supported Living
04/04/2018,Adults & Housing Department,CareTech Community Services Ltd FA SL&FSB,DAY SUPPORT,"3,039.06",0.00,LD Supported Living
04/04/2018,Adults & Housing Department,CareTech Community Services Ltd FA SL&FSB,DAY SUPPORT,"2,571.35",0.00,LD Supported Living
04/04/2018,Adults & Housing Department,CareTech Community Services Ltd FA SL&FSB,DAY SUPPORT,"3,024.29",0.00,LD Supported Living
04/04/2018,Adults & Housing Department,CareTech Community Services Ltd FA SL&FSB,DAY SUPPORT,"1,461.00",0.00,LD Supported Living
04/04/2018,Adults & Housing Department,CareTech Community Services Ltd FA SL&FSB,DAY SUPPORT,"1,313.15",0.00,LD Supported Living
04/04/2018,Adults & Housing Department,CareTech Community Services Ltd FA SL&FSB,DAY SUPPORT,"3,155.77",0.00,LD Supported Living
04/04/2018,Adults & Housing Department,CareTech Community Services Ltd FA SL&FSB,DAY SUPPORT,"1,168.80",0.00,LD Supported Living
04/04/2018,Adults & Housing Department,CareTech Community Services Ltd FA SL&FSB,DAY SUPPORT,"1,519.44",0.00,LD Supported Living
04/04/2018,Adults & Housing Department,CareTech Community Services Ltd FA SL&FSB,DAY SUPPORT,"1,899.30",0.00,LD Supported Living
04/04/2018,Adults & Housing Department,CareTech Community Services Ltd FA SL&FSB,DAY SUPPORT,"1,227.24",0.00,LD Supported Living
04/04/2018,Adults & Housing Department,CareTech Community Services Ltd FA SL&FSB,DAY SUPPORT,"2,074.62",0.00,LD Supported Living
04/04/2018,Adults & Housing Department,CareTech Community Services Ltd FA SL&FSB,DAY SUPPORT,"2,951.23",0.00,LD Supported Living
04/04/2018,Adults & Housing Department,Community Integrated Care FA SL&FSB,DAY SUPPORT,"2,066.92",0.00,LD Supported Living
04/04/2018,Adults & Housing Department,Community Integrated Care FA SL&FSB,DAY SUPPORT,"1,503.22",0.00,LD Supported Living
04/04/2018,Adults & Housing Department,Community Integrated Care FA SL&FSB,DAY SUPPORT,"2,059.20",0.00,LD Supported Living
04/04/2018,Adults & Housing Department,Lifeways Community Care Ltd FA SL&FSB,DAY SUPPORT,"1,518.30",0.00,MH Supported Living
04/04/2018,Adults & Housing Department,Lifeways Community Care Ltd FA SL&FSB,DAY SUPPORT,"2,140.20",0.00,LD Supported Living
04/04/2018,Adults & Housing Department,Lifeways Community Care Ltd FA SL&FSB,DAY SUPPORT,"5,061.00",0.00,LD Supported Living
04/04/2018,Adults & Housing Department,Lifeways Community Care Ltd FA SL&FSB,DAY SUPPORT,890.74,0.00,LD Supported Living
04/04/2018,Adults & Housing Department,Lifeways Community Care Ltd FA SL&FSB,DAY SUPPORT,"5,061.00",0.00,LD Supported Living
04/04/2018,Adults & Housing Department,Lifeways Community Care Ltd FA SL&FSB,DAY SUPPORT,"1,125.57",0.00,MH Supported Living
04/04/2018,Adults & Housing Department,Lifeways Community Care Ltd FA SL&FSB,DAY SUPPORT,"1,041.12",0.00,MH Supported Living
04/04/2018,Adults & Housing Department,Lifeways Community Care Ltd FA SL&FSB,DAY SUPPORT,890.74,0.00,LD Supported Living
04/04/2018,Adults & Housing Department,Lifeways Community Care Ltd FA SL&FSB,DAY SUPPORT,"2,140.08",0.00,LD Supported Living
04/04/2018,Adults & Housing Department,Lifeways Community Care Ltd FA SL&FSB,DAY SUPPORT,"3,026.96",0.00,LD Supported Living
04/04/2018,Adults & Housing Department,Lifeways Community Care Ltd FA SL&FSB,DAY SUPPORT,963.61,0.00,MH Supported Living
04/04/2018,Adults & Housing Department,Lifeways Community Care Ltd FA SL&FSB,DAY SUPPORT,"3,036.60",0.00,LD Supported Living
04/04/2018,Adults & Housing Department,Lifeways Community Care Ltd FA SL&FSB,DAY SUPPORT,"2,140.08",0.00,LD Supported Living
04/04/2018,Adults & Housing Department,Lifeways Community Care Ltd FA SL&FSB,DAY SUPPORT,"3,152.28",0.00,MH Supported Living
04/04/2018,Adults & Housing Department,Prime Life Ltd FA SL&FSB,DAY SUPPORT,"2,025.04",0.00,Physical Disability Supported Living
04/04/2018,Adults & Housing Department,Prime Life Ltd FA SL&FSB,DAY SUPPORT,"4,377.66",0.00,Physical Disability Supported Living
04/04/2018,Adults & Housing Department,Prime Life Ltd FA SL&FSB,DAY SUPPORT,625.38,0.00,Physical Disability Supported Living
04/04/2018,Adults & Housing Department,Prime Life Ltd FA SL&FSB,DAY SUPPORT,"2,142.97",0.00,Physical Disability Supported Living
04/04/2018,Adults & Housing Department,Prime Life Ltd FA SL&FSB,DAY SUPPORT,"1,310.32",0.00,Physical Disability Supported Living
04/04/2018,Adults & Housing Department,Prime Life Ltd FA SL&FSB,DAY SUPPORT,"2,084.60",0.00,Physical Disability Supported Living
04/04/2018,Adults & Housing Department,Affinity Trust FA SL&FSB,Day Support Hours,"2,216.72",0.00,Supported Living
04/04/2018,Adults & Housing Department,Affinity Trust FA SL&FSB,Day Support Hours,"2,946.30",0.00,Supported Living
04/04/2018,Adults & Housing Department,Affinity Trust FA SL&FSB,Day Support Hours,687.47,0.00,Supported Living
04/04/2018,Adults & Housing Department,Affinity Trust FA SL&FSB,Day Support Hours,"2,357.04",0.00,Supported Living
04/04/2018,Adults & Housing Department,Affinity Trust FA SL&FSB,Day Support Hours,515.60,0.00,Supported Living
04/04/2018,Adults & Housing Department,Affinity Trust FA SL&FSB,Day Support Hours,"1,192.54",0.00,Supported Living
04/04/2018,Adults & Housing Department,Affinity Trust FA SL&FSB,Day Support Hours,"5,892.60",0.00,Supported Living
04/04/2018,Adults & Housing Department,Affinity Trust FA SL&FSB,Day Support Hours,"2,244.77",0.00,Supported Living
04/04/2018,Adults & Housing Department,Affinity Trust FA SL&FSB,Day Support Hours,729.54,0.00,Supported Living
04/04/2018,Adults & Housing Department,Lifeways Community Care Ltd FA SL&FSB,Day Support Hours,885.59,0.00,Supported Living
04/04/2018,Adults & Housing Department,Lifeways Community Care Ltd FA SL&FSB,Day Support Hours,"4,705.97",0.00,Supported Living
04/04/2018,Adults & Housing Department,Lifeways Community Care Ltd FA SL&FSB,Day Support Hours,"7,107.68",0.00,Supported Living
04/04/2018,Adults & Housing Department,Lifeways Community Care Ltd FA SL&FSB,Day Support Hours,885.59,0.00,Supported Living
04/04/2018,Adults & Housing Department,Lifeways Community Care Ltd FA SL&FSB,Day Support Hours,"7,107.68",0.00,Supported Living
04/04/2018,Adults & Housing Department,Lifeways Community Care Ltd FA SL&FSB,Day Support Hours,"2,049.19",0.00,Supported Living
04/04/2018,Adults & Housing Department,Lifeways Community Care Ltd FA SL&FSB,Day Support Hours,"4,705.97",0.00,Supported Living
04/04/2018,Adults & Housing Department,Lifeways Community Care Ltd FA SL&FSB,Day Support Hours,"1,117.74",0.00,Supported Living
04/04/2018,Adults & Housing Department,Lifeways Community Care Ltd FA SL&FSB,Day Support Hours,885.59,0.00,Supported Living
04/04/2018,Adults & Housing Department,Lifeways Community Care Ltd FA SL&FSB,Day Support Hours,"4,705.97",0.00,Supported Living
04/04/2018,Adults & Housing Department,Lifeways Community Care Ltd FA SL&FSB,Day Support Hours,"7,107.68",0.00,Supported Living
04/04/2018,Adults & Housing Department,Mosaic Shaping Disability Services,Direct Payments - Homecare,"13,779.76",0.00,Direct Payments
04/04/2018,Adults & Housing Department,Sevacare (UK) Ltd,Personal Care / Generic,811.98,0.00,Home Care
04/04/2018,Adults & Housing Department,UK Care Team Ltd,Personal Care / Generic,608.72,0.00,Home Care
04/04/2018,Adults & Housing Department,Lifeways Community Care Ltd FA SL&FSB,SLEEP-IN SUPPORT,742.56,0.00,LD Supported Living
04/04/2018,Adults & Housing Department,Lifeways Community Care Ltd FA SL&FSB,SLEEP-IN SUPPORT,"1,113.84",0.00,LD Supported Living
04/04/2018,Adults & Housing Department,Lifeways Community Care Ltd FA SL&FSB,SLEEP-IN SUPPORT,"1,113.84",0.00,LD Supported Living
04/04/2018,Adults & Housing Department,Lifeways Community Care Ltd FA SL&FSB,SLEEP-IN SUPPORT,742.56,0.00,LD Supported Living
04/04/2018,Adults & Housing Department,Lifeways Community Care Ltd FA SL&FSB,SLEEP-IN SUPPORT,"1,113.84",0.00,LD Supported Living
04/04/2018,Adults & Housing Department,Lifeways Community Care Ltd FA SL&FSB,SLEEP-IN SUPPORT,"2,227.68",0.00,LD Supported Living
04/04/2018,Adults & Housing Department,Lifeways Community Care Ltd FA SL&FSB,SLEEP-IN SUPPORT,742.56,0.00,LD Supported Living
04/04/2018,Adults & Housing Department,Lifeways Community Care Ltd FA SL&FSB,SLEEP-IN SUPPORT,742.56,0.00,MH Supported Living
04/04/2018,Adults & Housing Department,Lifeways Community Care Ltd FA SL&FSB,SLEEP-IN SUPPORT,"1,113.84",0.00,LD Supported Living
04/04/2018,Adults & Housing Department,Lifeways Community Care Ltd FA SL&FSB,Sleeping In Night Support,546.31,0.00,Supported Living
04/04/2018,Adults & Housing Department,Lifeways Community Care Ltd FA SL&FSB,Sleeping In Night Support,546.31,0.00,Supported Living
04/04/2018,Adults & Housing Department,CareTech Community Services Ltd FA SL&FSB,WAKING NIGHT SUPPORT,920.43,0.00,LD Supported Living
04/04/2018,Adults & Housing Department,CareTech Community Services Ltd FA SL&FSB,WAKING NIGHT SUPPORT,"1,227.24",0.00,LD Supported Living
04/04/2018,Adults & Housing Department,CareTech Community Services Ltd FA SL&FSB,WAKING NIGHT SUPPORT,736.34,0.00,LD Supported Living
04/04/2018,Adults & Housing Department,CareTech Community Services Ltd FA SL&FSB,WAKING NIGHT SUPPORT,920.43,0.00,LD Supported Living
04/04/2018,Adults & Housing Department,CareTech Community Services Ltd FA SL&FSB,WAKING NIGHT SUPPORT,"1,227.24",0.00,LD Supported Living
04/04/2018,Adults & Housing Department,CareTech Community Services Ltd FA SL&FSB,WAKING NIGHT SUPPORT,"1,227.24",0.00,LD Supported Living
04/04/2018,Adults & Housing Department,CareTech Community Services Ltd FA SL&FSB,WAKING NIGHT SUPPORT,"1,475.61",0.00,LD Supported Living
04/04/2018,Adults & Housing Department,CareTech Community Services Ltd FA SL&FSB,WAKING NIGHT SUPPORT,"1,227.24",0.00,LD Supported Living
04/04/2018,Adults & Housing Department,CareTech Community Services Ltd FA SL&FSB,WAKING NIGHT SUPPORT,740.24,0.00,LD Supported Living
04/04/2018,Adults & Housing Department,Community Integrated Care FA SL&FSB,WAKING NIGHT SUPPORT,900.90,0.00,LD Supported Living
04/04/2018,Adults & Housing Department,Lifeways Community Care Ltd FA SL&FSB,WAKING NIGHT SUPPORT,766.38,0.00,LD Supported Living
04/04/2018,Adults & Housing Department,Lifeways Community Care Ltd FA SL&FSB,WAKING NIGHT SUPPORT,910.98,0.00,MH Supported Living
04/04/2018,Adults & Housing Department,Lifeways Community Care Ltd FA SL&FSB,WAKING NIGHT SUPPORT,751.92,0.00,LD Supported Living
04/04/2018,Adults & Housing Department,Lifeways Community Care Ltd FA SL&FSB,WAKING NIGHT SUPPORT,766.38,0.00,LD Supported Living
04/04/2018,Adults & Housing Department,Lifeways Community Care Ltd FA SL&FSB,WAKING NIGHT SUPPORT,683.07,0.00,LD Supported Living
04/04/2018,Adults & Housing Department,Lifeways Community Care Ltd FA SL&FSB,WAKING NIGHT SUPPORT,766.38,0.00,LD Supported Living
04/04/2018,Adults & Housing Department,Lifeways Community Care Ltd FA SL&FSB,Waking Night Support Hours,885.59,0.00,Supported Living
04/04/2018,Adults & Housing Department,Lifeways Community Care Ltd FA SL&FSB,Waking Night Support Hours,885.59,0.00,Supported Living
04/04/2018,Adults & Housing Department,Lifeways Community Care Ltd FA SL&FSB,Waking Night Support Hours,558.87,0.00,Supported Living
04/04/2018,Adults & Housing Department,Lifeways Community Care Ltd FA SL&FSB,Waking Night Support Hours,885.59,0.00,Supported Living
04/04/2018,Adults & Housing Department,Prime Life Ltd FA SL&FSB,Waking Night Support Hours,750.46,0.00,Supported Living
04/04/2018,Adults & Housing Department,Prime Life Ltd FA SL&FSB,Waking Night Support Hours,750.46,0.00,Supported Living
04/04/2018,Adults & Housing Department,Prime Life Ltd FA SL&FSB,Waking Night Support Hours,750.46,0.00,Supported Living
04/04/2018,Adults & Housing Department,Prime Life Ltd FA SL&FSB,Waking Night Support Hours,750.46,0.00,Supported Living
06/04/2018,Adults & Housing Department,Stoneycroft Hotel,Accommodation Expenses,624.96,0.00,Accommodation Expenses
06/04/2018,Adults & Housing Department,Westcotes House Ltd,Accommodation Expenses,643.50,128.70,Accommodation Expenses
06/04/2018,Adults & Housing Department,Westcotes House Ltd,Accommodation Expenses,"1,540.00",308.00,Accommodation Expenses
06/04/2018,Adults & Housing Department,Westcotes House Ltd,Accommodation Expenses,"1,540.00",308.00,Accommodation Expenses
06/04/2018,Adults & Housing Department,Westcotes House Ltd,Accommodation Expenses,"1,485.00",297.00,Accommodation Expenses
06/04/2018,Adults & Housing Department,Westcotes House Ltd,Accommodation Expenses,"1,485.00",297.00,Accommodation Expenses
06/04/2018,Adults & Housing Department,Knighton Manor Ltd,Adult Social Care only - Residential Homes,522.80,0.00,Residential Care
06/04/2018,Adults & Housing Department,Knighton Manor Ltd,Adult Social Care only - Residential Homes,522.80,0.00,Residential Care
06/04/2018,Adults & Housing Department,Knighton Manor Ltd,Adult Social Care only - Residential Homes,537.80,0.00,Residential Care
06/04/2018,Adults & Housing Department,Knighton Manor Ltd,Adult Social Care only - Residential Homes,537.80,0.00,Residential Care
06/04/2018,Adults & Housing Department,Knighton Manor Ltd,Adult Social Care only - Residential Homes,522.80,0.00,Residential Care
06/04/2018,Adults & Housing Department,Knighton Manor Ltd,Adult Social Care only - Residential Homes,522.80,0.00,Residential Care
06/04/2018,Adults & Housing Department,Knighton Manor Ltd,Adult Social Care only - Residential Homes,537.80,0.00,Residential Care
06/04/2018,Adults & Housing Department,Knighton Manor Ltd,Adult Social Care only - Residential Homes,522.80,0.00,Residential Care
06/04/2018,Adults & Housing Department,Knighton Manor Ltd,Adult Social Care only - Residential Homes,522.80,0.00,Residential Care
06/04/2018,Adults & Housing Department,Knighton Manor Ltd,Adult Social Care only - Residential Homes,537.80,0.00,Residential Care
06/04/2018,Adults & Housing Department,Knighton Manor Ltd,Adult Social Care only - Residential Homes,537.80,0.00,Residential Care
06/04/2018,Adults & Housing Department,Knighton Manor Ltd,Adult Social Care only - Residential Homes,537.80,0.00,Residential Care
06/04/2018,Adults & Housing Department,Knighton Manor Ltd,Adult Social Care only - Residential Homes,522.80,0.00,Residential Care
06/04/2018,Adults & Housing Department,Knighton Manor Ltd,Adult Social Care only - Residential Homes,537.80,0.00,Residential Care
06/04/2018,Adults & Housing Department,Knighton Manor Ltd,Adult Social Care only - Residential Homes,522.80,0.00,Residential Care
06/04/2018,Adults & Housing Department,Knighton Manor Ltd,Adult Social Care only - Residential Homes,537.80,0.00,Residential Care
06/04/2018,Adults & Housing Department,Knighton Manor Ltd,Adult Social Care only - Residential Homes,537.80,0.00,Residential Care
06/04/2018,Adults & Housing Department,Knighton Manor Ltd,Adult Social Care only - Residential Homes,537.80,0.00,Residential Care
06/04/2018,Adults & Housing Department,Knighton Manor Ltd,Adult Social Care only - Residential Homes,537.80,0.00,Residential Care
06/04/2018,Adults & Housing Department,Knighton Manor Ltd,Adult Social Care only - Residential Homes,522.80,0.00,Residential Care
06/04/2018,Adults & Housing Department,Knighton Manor Ltd,Adult Social Care only - Residential Homes,522.80,0.00,Residential Care
06/04/2018,Adults & Housing Department,Knighton Manor Ltd,Adult Social Care only - Residential Homes,537.80,0.00,Residential Care
06/04/2018,Adults & Housing Department,Boots UK Limited T/a Boots The Chemist,Associate Advisor Activity,795.00,0.00,Public Health Initiatives
06/04/2018,Adults & Housing Department,Abca Systems,CCTV Equipment Repair & Maintenance,994.50,198.90,Repairs & Maintenance - Equipment & Furniture
06/04/2018,Adults & Housing Department,LASS -Responding to the challenges of Health and HIV,Grant Payments,"1,450.00",0.00,Grant Payments
06/04/2018,Adults & Housing Department,Kohinoor Media Ltd T/A Kohinoor Radio,Marketing and Advertising,650.00,130.00,Marketing & Advertising
06/04/2018,Adults & Housing Department,Leicester Racecourse Co Ltd,Marketing and Advertising,"2,500.00",500.00,Marketing & Advertising
06/04/2018,Adults & Housing Department,St Martins Cathedral Properties Ltd,Marketing and Advertising,750.00,150.00,Marketing & Advertising
06/04/2018,Adults & Housing Department,Boots UK Limited T/a Boots The Chemist,Nicotine Replacement Therapy (NRT),"3,455.76",0.00,Public Health Initiatives
06/04/2018,Adults & Housing Department,Medicine Chest Pharmacy,Nicotine Replacement Therapy (NRT),698.63,0.00,Public Health Initiatives
06/04/2018,Adults & Housing Department,Morningside Leicester Ltd,Nicotine Replacement Therapy (NRT),894.70,0.00,Public Health Initiatives
06/04/2018,Adults & Housing Department,Parkview Leicester Ltd T/a Parkview Dispensing Chemist,Nicotine Replacement Therapy (NRT),"1,554.34",0.00,Public Health Initiatives
06/04/2018,Adults & Housing Department,Well Pharmacy,Nicotine Replacement Therapy (NRT),591.10,0.00,Public Health Initiatives
06/04/2018,Adults & Housing Department,The Manor Care Home,Nursing Permanent,944.52,0.00,Nursing Care
06/04/2018,Adults & Housing Department,The Manor Care Home,Nursing Permanent,944.52,0.00,Nursing Care
06/04/2018,Adults & Housing Department,The Manor Care Home,Nursing Permanent,944.52,0.00,Nursing Care
06/04/2018,Adults & Housing Department,The Manor Care Home,Nursing Permanent,944.52,0.00,Nursing Care
06/04/2018,Adults & Housing Department,The Manor Care Home,Nursing Permanent,944.52,0.00,Nursing Care
06/04/2018,Adults & Housing Department,The Manor Care Home,Nursing Permanent,944.52,0.00,Nursing Care
06/04/2018,Adults & Housing Department,The Manor Care Home,Nursing Permanent,944.52,0.00,Nursing Care
06/04/2018,Adults & Housing Department,The Manor Care Home,Nursing Permanent,944.52,0.00,Nursing Care
06/04/2018,Adults & Housing Department,NHS Leicester City CCG,PCT - Primary Care Trust,"87,884.71",0.00,Health Authorities
06/04/2018,Adults & Housing Department,L R Harris & Son,Repairs & Maintenance Vehicles,928.00,185.60,Vehicles Repairs & Maintenance / Parts & Accessories
06/04/2018,Adults & Housing Department,The Manor Care Home,Residential Permanent,969.00,0.00,Residential Care
06/04/2018,Adults & Housing Department,The Manor Care Home,Residential Permanent,969.00,0.00,Residential Care
06/04/2018,Adults & Housing Department,The Manor Care Home,Residential Permanent,969.00,0.00,Residential Care
06/04/2018,Adults & Housing Department,The Manor Care Home,Residential Permanent,969.00,0.00,Residential Care
06/04/2018,Adults & Housing Department,The Manor Care Home,Residential Permanent,969.00,0.00,Residential Care
06/04/2018,Adults & Housing Department,The Manor Care Home,Residential Permanent,969.00,0.00,Residential Care
06/04/2018,Adults & Housing Department,Community Integrated Care FA SL&FSB,Supported Living - Day Intensive,"20,954.12",0.00,Supported Living
06/04/2018,Adults & Housing Department,Community Integrated Care FA SL&FSB,Supported Living - Day Intensive,"24,116.40",0.00,Supported Living
06/04/2018,Adults & Housing Department,Community Integrated Care FA SL&FSB,Supported Living - Day Intensive,"4,029.65",0.00,Supported Living
10/04/2018,Adults & Housing Department,Stoneycroft Hotel,Accommodation Expenses,520.80,104.16,Accommodation Expenses
10/04/2018,Adults & Housing Department,Stoneycroft Hotel,Accommodation Expenses,520.80,104.16,Accommodation Expenses
10/04/2018,Adults & Housing Department,Westcotes House Ltd,Accommodation Expenses,"1,386.00",277.20,Accommodation Expenses
10/04/2018,Adults & Housing Department,Westcotes House Ltd,Accommodation Expenses,"1,386.00",277.20,Accommodation Expenses
10/04/2018,Adults & Housing Department,Skills For Living (Voyage Care),Day Care /Community Opportunities,"2,130.44",426.09,Day Care /Community Opportunities
10/04/2018,Adults & Housing Department,BE YOU BE LIMITLESS LTD,Grant Payments,"3,254.00",0.00,Grant Payments
10/04/2018,Adults & Housing Department,Turning Point (Services) Ltd,Leicestershire Partnership Trust - Drug Services,"387,516.88","77,503.38",Drug and Alcohol Services
10/04/2018,Adults & Housing Department,Allpay Ltd,Management & Business & Administrative Services,"2,397.88",479.58,Management & Business & Administrative Services
10/04/2018,Adults & Housing Department,Allpay Ltd,Management & Business & Administrative Services,845.60,169.12,Management & Business & Administrative Services
10/04/2018,Adults & Housing Department,AMS International,Materials Purchase,514.69,102.94,Materials Purchase
10/04/2018,Adults & Housing Department,Domiciliary Care Services UK Ltd,Personal Care / Generic,"1,065.40",0.00,Home Care
10/04/2018,Adults & Housing Department,Domiciliary Care Services UK Ltd,Personal Care / Generic,"1,700.40",0.00,Home Care
10/04/2018,Adults & Housing Department,Family Care Agency Ltd,Personal Care / Generic,539.25,0.00,Home Care
10/04/2018,Adults & Housing Department,UK Care Team Ltd,Personal Care / Generic,"1,238.90",0.00,Home Care
10/04/2018,Adults & Housing Department,UK Care Team Ltd,Personal Care / Generic,586.85,0.00,Home Care
10/04/2018,Adults & Housing Department,Westcotes House Ltd,Persons From Abroad Accommodation Costs,"1,540.00",308.00,Residential Care
10/04/2018,Adults & Housing Department,Liquid Logic ,Shared Lives - Day Care,552.60,0.00,Shared Lives
10/04/2018,Adults & Housing Department,,Shared Lives - Day Care,715.00,0.00,Shared Lives
10/04/2018,Adults & Housing Department,In House First Aid & Lifeguard Training,Training,600.00,0.00,Employee Training
11/04/2018,Adults & Housing Department,Croft Hotel,Accommodation Expenses,540.00,108.00,Accommodation Expenses
11/04/2018,Adults & Housing Department,Croft Hotel,Accommodation Expenses,560.00,112.00,Accommodation Expenses
11/04/2018,Adults & Housing Department,Croft Hotel,Accommodation Expenses,"1,000.00",200.00,Accommodation Expenses
11/04/2018,Adults & Housing Department,Arbor House,Added Years Pension invoice payments,"3,251.89",0.00,Pension Miscellaneous
11/04/2018,Adults & Housing Department,LASS -Responding to the challenges of Health and HIV,Floating Support - ILS,"6,966.08",0.00,Floating Support - ILS
11/04/2018,Adults & Housing Department,Institute of Swimming,Training,800.00,0.00,Employee Training
13/04/2018,Adults & Housing Department,Leicestershire County Council,Advocacy,"9,027.00",0.00,VCS - Adults & Older People
13/04/2018,Adults & Housing Department,Care Quality Commission,Day Care /Community Opportunities,"7,635.00",0.00,Day Care /Community Opportunities
13/04/2018,Adults & Housing Department,Total Gas & Power Ltd,Electricity Bills,580.81,116.16,Electricity Utilities
13/04/2018,Adults & Housing Department,Total Gas & Power Ltd,Electricity Bills,794.70,158.94,Electricity Utilities
13/04/2018,Adults & Housing Department,Total Gas & Power Ltd,Electricity Bills,951.50,190.30,Electricity Utilities
13/04/2018,Adults & Housing Department,Total Gas & Power Ltd,Electricity Bills,637.30,31.87,Electricity Utilities
13/04/2018,Adults & Housing Department,Zoggs International Limited,Equipment Purchased for Resale,"1,339.20",267.84,Equipment Purchase
13/04/2018,Adults & Housing Department,Exterion Media (UK) Ltd,Marketing and Advertising,"5,000.00","1,000.00",Marketing & Advertising
13/04/2018,Adults & Housing Department,Adhar Project,Paid Persons Representatives (PPR),"4,529.05",905.81,Consultant Fees
13/04/2018,Adults & Housing Department,Adhar Project,Paid Persons Representatives (PPR),515.25,0.00,Consultant Fees
17/04/2018,Adults & Housing Department,Leicestershire County Council,Advocacy,"57,710.60",0.00,VCS - Adults & Older People
17/04/2018,Adults & Housing Department,Pivotell Ltd,Aids & Adaptations,"3,042.00",608.40,Aids & Adaptations
17/04/2018,Adults & Housing Department,Prism UK Medical Ltd,Equipment Purchase,820.11,164.02,Equipment Purchase
17/04/2018,Adults & Housing Department,Prism UK Medical Ltd,Equipment Purchase,"3,757.94",751.59,Equipment Purchase
17/04/2018,Adults & Housing Department,Prism UK Medical Ltd,Equipment Purchase,500.00,100.00,Equipment Purchase
17/04/2018,Adults & Housing Department,Prism UK Medical Ltd,Equipment Purchase,500.00,100.00,Equipment Purchase
17/04/2018,Adults & Housing Department,Leicester Lift Project Co No 1 Ltd,Rent - Other,"13,768.81","2,753.76",Rent - Other
17/04/2018,Adults & Housing Department,Leicestershire County Council,Training costs,958.00,191.60,Room & Space Hire & Entertainment Services
18/04/2018,Adults & Housing Department,ABBEY HOUSE,Added Years Pension invoice payments,"3,572.92",0.00,Pension Miscellaneous
18/04/2018,Adults & Housing Department,Soar Media Ltd,Books,575.00,115.00,Printed & Electronic Media
18/04/2018,Adults & Housing Department,Arcadis LLP,Consultants Fees,"2,103.36",420.67,Consultant Fees
18/04/2018,Adults & Housing Department,Pathfinders Community Support Ltd,Day Care /Community Opportunities,650.83,0.00,Day Care /Community Opportunities
18/04/2018,Adults & Housing Department,Pathfinders Community Support Ltd,Day Care /Community Opportunities,668.42,0.00,Day Care /Community Opportunities
18/04/2018,Adults & Housing Department,Pathfinders Community Support Ltd,Day Care /Community Opportunities,"1,002.63",0.00,Day Care /Community Opportunities
18/04/2018,Adults & Housing Department,Millfield GRP Products Ltd,Repairs & Maintenance Vehicles,690.00,138.00,Vehicles Repairs & Maintenance / Parts & Accessories
18/04/2018,Adults & Housing Department,Bonney Care Agency Ltd FA SL&FSB,Sleeping In Night Support,"1,878.03",0.00,Supported Living
18/04/2018,Adults & Housing Department,Bonney Care Agency Ltd FA SL&FSB,Sleeping In Night Support,"1,289.96",0.00,Supported Living
18/04/2018,Adults & Housing Department,Bonney Care Agency Ltd FA SL&FSB,Sleeping In Night Support,"1,878.03",0.00,Supported Living
20/04/2018,Adults & Housing Department,Leicestershire Centre for Integrated Living (LCIL),"Advice, Information & Guidance","11,550.00",0.00,VCS - Adults & Older People
20/04/2018,Adults & Housing Department,Tynetec Ltd,Aids & Adaptations,"1,565.00",313.00,Aids & Adaptations
20/04/2018,Adults & Housing Department,"LOROS (Hospice Care for Leicester, Leics & Rutland)",Books,750.00,0.00,Printed & Electronic Media
20/04/2018,Adults & Housing Department,Soar Media Ltd,Books,600.00,120.00,Printed & Electronic Media
20/04/2018,Adults & Housing Department,IBC Quality Solutions Ltd,Day Care /Community Opportunities,514.40,0.00,Day Care /Community Opportunities
20/04/2018,Adults & Housing Department,IBC Quality Solutions Ltd,Day Care /Community Opportunities,601.00,0.00,Day Care /Community Opportunities
20/04/2018,Adults & Housing Department,IBC Quality Solutions Ltd,Day Care /Community Opportunities,601.00,0.00,Day Care /Community Opportunities
20/04/2018,Adults & Housing Department,IBC Quality Solutions Ltd,Day Care /Community Opportunities,601.00,0.00,Day Care /Community Opportunities
20/04/2018,Adults & Housing Department,IBC Quality Solutions Ltd,Day Care /Community Opportunities,601.00,0.00,Day Care /Community Opportunities
20/04/2018,Adults & Housing Department,IBC Quality Solutions Ltd,Day Care /Community Opportunities,771.60,0.00,Day Care /Community Opportunities
20/04/2018,Adults & Housing Department,IBC Quality Solutions Ltd,Day Care /Community Opportunities,"1,234.56",0.00,Day Care /Community Opportunities
20/04/2018,Adults & Housing Department,IBC Quality Solutions Ltd,Day Care /Community Opportunities,601.00,0.00,Day Care /Community Opportunities
20/04/2018,Adults & Housing Department,IBC Quality Solutions Ltd,Day Care /Community Opportunities,601.00,0.00,Day Care /Community Opportunities
20/04/2018,Adults & Housing Department,IBC Quality Solutions Ltd,Day Care /Community Opportunities,601.00,0.00,Day Care /Community Opportunities
20/04/2018,Adults & Housing Department,IBC Quality Solutions Ltd,Day Care /Community Opportunities,591.56,0.00,Day Care /Community Opportunities
20/04/2018,Adults & Housing Department,IBC Quality Solutions Ltd,Day Care /Community Opportunities,925.92,0.00,Day Care /Community Opportunities
20/04/2018,Adults & Housing Department,IBC Quality Solutions Ltd,Day Care /Community Opportunities,601.00,0.00,Day Care /Community Opportunities
20/04/2018,Adults & Housing Department,IBC Quality Solutions Ltd,Day Care /Community Opportunities,"1,800.40",0.00,Day Care /Community Opportunities
20/04/2018,Adults & Housing Department,IBC Quality Solutions Ltd,Day Care /Community Opportunities,601.00,0.00,Day Care /Community Opportunities
20/04/2018,Adults & Housing Department,IBC Quality Solutions Ltd,Day Care /Community Opportunities,"1,028.80",0.00,Day Care /Community Opportunities
20/04/2018,Adults & Housing Department,IBC Quality Solutions Ltd,Day Care /Community Opportunities,925.92,0.00,Day Care /Community Opportunities
20/04/2018,Adults & Housing Department,IBC Quality Solutions Ltd,Day Care /Community Opportunities,601.00,0.00,Day Care /Community Opportunities
20/04/2018,Adults & Housing Department,IBC Quality Solutions Ltd,Day Care /Community Opportunities,"1,543.20",0.00,Day Care /Community Opportunities
20/04/2018,Adults & Housing Department,IBC Quality Solutions Ltd,Day Care /Community Opportunities,601.00,0.00,Day Care /Community Opportunities
20/04/2018,Adults & Housing Department,IBC Quality Solutions Ltd,Day Care /Community Opportunities,601.00,0.00,Day Care /Community Opportunities
20/04/2018,Adults & Housing Department,IBC Quality Solutions Ltd,Day Care /Community Opportunities,514.40,0.00,Day Care /Community Opportunities
20/04/2018,Adults & Housing Department,Mosaic Shaping Disability Serv,Day Care /Community Opportunities,786.72,0.00,Day Care /Community Opportunities
20/04/2018,Adults & Housing Department,Mosaic Shaping Disability Serv,Day Care /Community Opportunities,786.72,0.00,Day Care /Community Opportunities
20/04/2018,Adults & Housing Department,Affinity Trust FA SL&FSB,DAY SUPPORT,"2,678.92",0.00,LD Supported Living
20/04/2018,Adults & Housing Department,Affinity Trust FA SL&FSB,DAY SUPPORT,"2,619.54",0.00,LD Supported Living
20/04/2018,Adults & Housing Department,Affinity Trust FA SL&FSB,DAY SUPPORT,"1,188.00",0.00,LD Supported Living
20/04/2018,Adults & Housing Department,Affinity Trust FA SL&FSB,DAY SUPPORT,"3,326.40",0.00,LD Supported Living
20/04/2018,Adults & Housing Department,Affinity Trust FA SL&FSB,DAY SUPPORT,"1,039.50",0.00,LD Supported Living
20/04/2018,Adults & Housing Department,Affinity Trust FA SL&FSB,DAY SUPPORT,"4,752.00",0.00,LD Supported Living
20/04/2018,Adults & Housing Department,Affinity Trust FA SL&FSB,DAY SUPPORT,712.80,0.00,LD Supported Living
20/04/2018,Adults & Housing Department,Affinity Trust FA SL&FSB,DAY SUPPORT,"12,474.00",0.00,LD Supported Living
20/04/2018,Adults & Housing Department,Affinity Trust FA SL&FSB,DAY SUPPORT,594.00,0.00,LD Supported Living
20/04/2018,Adults & Housing Department,Affinity Trust FA SL&FSB,DAY SUPPORT,"12,474.00",0.00,LD Supported Living
20/04/2018,Adults & Housing Department,Affinity Trust FA SL&FSB,DAY SUPPORT,801.87,0.00,LD Supported Living
20/04/2018,Adults & Housing Department,Affinity Trust FA SL&FSB,DAY SUPPORT,"6,237.00",0.00,LD Supported Living
20/04/2018,Adults & Housing Department,Affinity Trust FA SL&FSB,DAY SUPPORT,"1,306.80",0.00,LD Supported Living
20/04/2018,Adults & Housing Department,Affinity Trust FA SL&FSB,DAY SUPPORT,"1,306.80",0.00,LD Supported Living
20/04/2018,Adults & Housing Department,Affinity Trust FA SL&FSB,DAY SUPPORT,"6,237.00",0.00,LD Supported Living
20/04/2018,Adults & Housing Department,Affinity Trust FA SL&FSB,DAY SUPPORT,"1,039.50",0.00,LD Supported Living
20/04/2018,Adults & Housing Department,Affinity Trust FA SL&FSB,DAY SUPPORT,"1,247.40",0.00,LD Supported Living
20/04/2018,Adults & Housing Department,Affinity Trust FA SL&FSB,DAY SUPPORT,"5,286.60",0.00,LD Supported Living
20/04/2018,Adults & Housing Department,Affinity Trust FA SL&FSB,DAY SUPPORT,653.40,0.00,LD Supported Living
20/04/2018,Adults & Housing Department,Affinity Trust FA SL&FSB,DAY SUPPORT,"1,039.50",0.00,LD Supported Living
20/04/2018,Adults & Housing Department,Affinity Trust FA SL&FSB,DAY SUPPORT,891.00,0.00,LD Supported Living
20/04/2018,Adults & Housing Department,Affinity Trust FA SL&FSB,DAY SUPPORT,"1,250.14",0.00,LD Supported Living
20/04/2018,Adults & Housing Department,Affinity Trust FA SL&FSB,DAY SUPPORT,"9,355.50",0.00,LD Supported Living
20/04/2018,Adults & Housing Department,Affinity Trust FA SL&FSB,DAY SUPPORT,504.90,0.00,LD Supported Living
20/04/2018,Adults & Housing Department,Affinity Trust FA SL&FSB,DAY SUPPORT,"1,574.10",0.00,LD Supported Living
20/04/2018,Adults & Housing Department,CareTech Community Services Ltd FA SL&FSB,DAY SUPPORT,"2,074.62",0.00,LD Supported Living
20/04/2018,Adults & Housing Department,CareTech Community Services Ltd FA SL&FSB,DAY SUPPORT,"1,519.44",0.00,LD Supported Living
20/04/2018,Adults & Housing Department,CareTech Community Services Ltd FA SL&FSB,DAY SUPPORT,"3,024.29",0.00,LD Supported Living
20/04/2018,Adults & Housing Department,CareTech Community Services Ltd FA SL&FSB,DAY SUPPORT,"1,313.15",0.00,LD Supported Living
20/04/2018,Adults & Housing Department,CareTech Community Services Ltd FA SL&FSB,DAY SUPPORT,"1,168.80",0.00,LD Supported Living
20/04/2018,Adults & Housing Department,CareTech Community Services Ltd FA SL&FSB,DAY SUPPORT,"1,899.30",0.00,LD Supported Living
20/04/2018,Adults & Housing Department,CareTech Community Services Ltd FA SL&FSB,DAY SUPPORT,"3,039.06",0.00,LD Supported Living
20/04/2018,Adults & Housing Department,CareTech Community Services Ltd FA SL&FSB,DAY SUPPORT,"4,818.96",0.00,LD Supported Living
20/04/2018,Adults & Housing Department,CareTech Community Services Ltd FA SL&FSB,DAY SUPPORT,"2,951.23",0.00,LD Supported Living
20/04/2018,Adults & Housing Department,CareTech Community Services Ltd FA SL&FSB,DAY SUPPORT,"1,227.24",0.00,LD Supported Living
20/04/2018,Adults & Housing Department,CareTech Community Services Ltd FA SL&FSB,DAY SUPPORT,"2,571.35",0.00,LD Supported Living
20/04/2018,Adults & Housing Department,CareTech Community Services Ltd FA SL&FSB,DAY SUPPORT,"3,155.77",0.00,LD Supported Living
20/04/2018,Adults & Housing Department,CareTech Community Services Ltd FA SL&FSB,DAY SUPPORT,"1,461.00",0.00,LD Supported Living
20/04/2018,Adults & Housing Department,Community Integrated Care FA SL&FSB,DAY SUPPORT,"6,091.82",0.00,LD Supported Living
20/04/2018,Adults & Housing Department,Community Integrated Care FA SL&FSB,DAY SUPPORT,"5,405.40",0.00,LD Supported Living
20/04/2018,Adults & Housing Department,Community Integrated Care FA SL&FSB,DAY SUPPORT,"1,944.80",0.00,LD Supported Living
20/04/2018,Adults & Housing Department,Community Integrated Care FA SL&FSB,DAY SUPPORT,"2,287.89",0.00,LD Supported Living
20/04/2018,Adults & Housing Department,Community Integrated Care FA SL&FSB,DAY SUPPORT,"6,006.02",0.00,LD Supported Living
20/04/2018,Adults & Housing Department,Community Integrated Care FA SL&FSB,DAY SUPPORT,514.80,0.00,LD Supported Living
20/04/2018,Adults & Housing Department,Community Integrated Care FA SL&FSB,DAY SUPPORT,"6,006.00",0.00,LD Supported Living
20/04/2018,Adults & Housing Department,Community Integrated Care FA SL&FSB,DAY SUPPORT,"5,661.66",0.00,LD Supported Living
20/04/2018,Adults & Housing Department,Community Integrated Care FA SL&FSB,DAY SUPPORT,"1,372.80",0.00,LD Supported Living
20/04/2018,Adults & Housing Department,Community Integrated Care FA SL&FSB,DAY SUPPORT,"1,319.60",0.00,LD Supported Living
20/04/2018,Adults & Housing Department,Community Integrated Care FA SL&FSB,DAY SUPPORT,"5,090.81",0.00,LD Supported Living
20/04/2018,Adults & Housing Department,Community Integrated Care FA SL&FSB,DAY SUPPORT,"5,033.59",0.00,LD Supported Living
20/04/2018,Adults & Housing Department,Community Integrated Care FA SL&FSB,DAY SUPPORT,"3,603.60",0.00,LD Supported Living
20/04/2018,Adults & Housing Department,Community Integrated Care FA SL&FSB,DAY SUPPORT,"6,006.00",0.00,LD Supported Living
20/04/2018,Adults & Housing Department,Community Integrated Care FA SL&FSB,DAY SUPPORT,"5,605.60",0.00,LD Supported Living
20/04/2018,Adults & Housing Department,Community Integrated Care FA SL&FSB,DAY SUPPORT,"1,887.60",0.00,LD Supported Living
20/04/2018,Adults & Housing Department,Community Integrated Care FA SL&FSB,DAY SUPPORT,"1,601.60",0.00,LD Supported Living
20/04/2018,Adults & Housing Department,Community Integrated Care FA SL&FSB,DAY SUPPORT,"1,144.00",0.00,Physical Disability Supported Living
20/04/2018,Adults & Housing Department,Community Integrated Care FA SL&FSB,DAY SUPPORT,"5,033.60",0.00,LD Supported Living
20/04/2018,Adults & Housing Department,Community Integrated Care FA SL&FSB,DAY SUPPORT,"3,489.20",0.00,LD Supported Living
20/04/2018,Adults & Housing Department,Community Integrated Care FA SL&FSB,DAY SUPPORT,"5,573.57",0.00,LD Supported Living
20/04/2018,Adults & Housing Department,Community Integrated Care FA SL&FSB,DAY SUPPORT,"7,378.77",0.00,LD Supported Living
20/04/2018,Adults & Housing Department,Community Integrated Care FA SL&FSB,DAY SUPPORT,"5,805.82",0.00,LD Supported Living
20/04/2018,Adults & Housing Department,Community Integrated Care FA SL&FSB,DAY SUPPORT,686.40,0.00,LD Supported Living
20/04/2018,Adults & Housing Department,Community Integrated Care FA SL&FSB,DAY SUPPORT,865.29,0.00,LD Supported Living
20/04/2018,Adults & Housing Department,Community Integrated Care FA SL&FSB,DAY SUPPORT,"6,006.00",0.00,LD Supported Living
20/04/2018,Adults & Housing Department,Community Integrated Care FA SL&FSB,DAY SUPPORT,"5,605.60",0.00,LD Supported Living
20/04/2018,Adults & Housing Department,Community Integrated Care FA SL&FSB,DAY SUPPORT,"6,149.02",0.00,LD Supported Living
20/04/2018,Adults & Housing Department,Community Integrated Care FA SL&FSB,DAY SUPPORT,"4,347.14",0.00,LD Supported Living
20/04/2018,Adults & Housing Department,Community Integrated Care FA SL&FSB,DAY SUPPORT,"1,369.37",0.00,LD Supported Living
20/04/2018,Adults & Housing Department,Affinity Trust - Shared Bungalow - Ratby,Day Support Hours,"6,237.00",0.00,Supported Living
20/04/2018,Adults & Housing Department,Affinity Trust - Shared Bungalow - Ratby,Day Support Hours,"7,068.60",0.00,Supported Living
20/04/2018,Adults & Housing Department,Affinity Trust - Shared Bungalow - Ratby,Day Support Hours,"8,296.72",0.00,Supported Living
20/04/2018,Adults & Housing Department,Affinity Trust - Shared Bungalow - Ratby,Day Support Hours,"5,299.66",0.00,Supported Living
20/04/2018,Adults & Housing Department,Affinity Trust - Shared Bungalow - Ratby,Day Support Hours,"6,590.97",0.00,Supported Living
20/04/2018,Adults & Housing Department,Affinity Trust - Shared Bungalow - Ratby,Day Support Hours,"6,580.86",0.00,Supported Living
20/04/2018,Adults & Housing Department,Affinity Trust - Shared Bungalow - Ratby,Day Support Hours,"10,809.96",0.00,Supported Living
20/04/2018,Adults & Housing Department,Affinity Trust - Shared Bungalow - Ratby,Day Support Hours,"5,613.30",0.00,Supported Living
20/04/2018,Adults & Housing Department,Affinity Trust - Shared Bungalow - Ratby,Day Support Hours,673.20,0.00,Supported Living
20/04/2018,Adults & Housing Department,Affinity Trust - Shared Bungalow - Ratby,Day Support Hours,"7,203.23",0.00,Supported Living
20/04/2018,Adults & Housing Department,Affinity Trust - Shared Bungalow - Ratby,Day Support Hours,"5,299.66",0.00,Supported Living
20/04/2018,Adults & Housing Department,Affinity Trust FA SL&FSB,Day Support Hours,"4,489.60",0.00,Supported Living
20/04/2018,Adults & Housing Department,Affinity Trust FA SL&FSB,Day Support Hours,729.54,0.00,Supported Living
20/04/2018,Adults & Housing Department,Affinity Trust FA SL&FSB,Day Support Hours,"4,489.60",0.00,Supported Living
20/04/2018,Adults & Housing Department,Affinity Trust FA SL&FSB,Day Support Hours,"2,357.04",0.00,Supported Living
20/04/2018,Adults & Housing Department,Affinity Trust FA SL&FSB,Day Support Hours,"5,892.60",0.00,Supported Living
20/04/2018,Adults & Housing Department,Affinity Trust FA SL&FSB,Day Support Hours,"9,007.26",0.00,Supported Living
20/04/2018,Adults & Housing Department,Affinity Trust FA SL&FSB,Day Support Hours,"1,192.54",0.00,Supported Living
20/04/2018,Adults & Housing Department,Affinity Trust FA SL&FSB,Day Support Hours,"5,892.60",0.00,Supported Living
20/04/2018,Adults & Housing Department,Affinity Trust FA SL&FSB,Day Support Hours,"2,946.30",0.00,Supported Living
20/04/2018,Adults & Housing Department,Affinity Trust FA SL&FSB,Day Support Hours,"2,244.77",0.00,Supported Living
20/04/2018,Adults & Housing Department,Affinity Trust FA SL&FSB,Day Support Hours,"3,801.60",0.00,Supported Living
20/04/2018,Adults & Housing Department,Affinity Trust FA SL&FSB,Day Support Hours,"2,050.62",0.00,Supported Living
20/04/2018,Adults & Housing Department,Affinity Trust FA SL&FSB,Day Support Hours,687.47,0.00,Supported Living
20/04/2018,Adults & Housing Department,Affinity Trust FA SL&FSB,Day Support Hours,883.89,0.00,Supported Living
20/04/2018,Adults & Housing Department,Pathfinders Community Support Ltd FA SL&SFB,Day Support Hours,"1,122.40",0.00,Supported Living
20/04/2018,Adults & Housing Department,Pathfinders Community Support Ltd FA SL&SFB,Day Support Hours,"1,066.28",0.00,Supported Living
20/04/2018,Adults & Housing Department,Pathfinders Community Support Ltd FA SL&SFB,Day Support Hours,561.20,0.00,Supported Living
20/04/2018,Adults & Housing Department,Prism UK Medical Ltd,Equipment Purchase,500.00,100.00,Equipment Purchase
20/04/2018,Adults & Housing Department,ESE Direct Ltd,Furniture Purchase,818.40,163.68,Furniture Purchase
20/04/2018,Adults & Housing Department,Liberty HSC Ltd,Independent Best Assessors (Ind BIA),"2,000.00",0.00,Consultant Fees
20/04/2018,Adults & Housing Department,Staffs & Stoke Partnership NHS Trust,ISHS Chlamydia,"10,328.00",0.00,Sexual Health Services (ISHS)
20/04/2018,Adults & Housing Department,The Shalom Club,Lunch Club,"1,185.25",0.00,VCS - Adults & Older People
20/04/2018,Adults & Housing Department,Water Plus Ltd,Metered Water,771.03,0.00,Water Utilities
20/04/2018,Adults & Housing Department,Water Plus Ltd,Metered Water,714.42,0.00,Water Utilities
20/04/2018,Adults & Housing Department,Water Plus Ltd,Metered Water,"1,218.65",0.00,Water Utilities
20/04/2018,Adults & Housing Department,Water Plus Ltd,Metered Water,836.90,0.00,Water Utilities
20/04/2018,Adults & Housing Department,Water Plus Ltd,Metered Water,637.97,0.00,Water Utilities
20/04/2018,Adults & Housing Department,Alzheimers Society,Paid Persons Representatives (PPR),"1,657.23",0.00,Consultant Fees
20/04/2018,Adults & Housing Department,Adaptus Cares Limited,Personal Care / Generic,"1,121.63",0.00,Home Care
20/04/2018,Adults & Housing Department,Adaptus Cares Limited,Personal Care / Generic,"1,819.97",0.00,Home Care
20/04/2018,Adults & Housing Department,Adaptus Cares Limited,Personal Care / Generic,"1,773.70",0.00,Home Care
20/04/2018,Adults & Housing Department,Adaptus Cares Limited,Personal Care / Generic,"1,033.79",0.00,Home Care
20/04/2018,Adults & Housing Department,Adaptus Cares Limited,Personal Care / Generic,511.85,0.00,Home Care
20/04/2018,Adults & Housing Department,Adaptus Cares Limited,Personal Care / Generic,"1,838.24",0.00,Home Care
20/04/2018,Adults & Housing Department,Adaptus Cares Limited,Personal Care / Generic,620.50,0.00,Home Care
20/04/2018,Adults & Housing Department,Adaptus Cares Limited,Personal Care / Generic,"1,927.96",0.00,Home Care
20/04/2018,Adults & Housing Department,Bluewood Healthcare,Personal Care / Generic,"1,297.66",0.00,Home Care
20/04/2018,Adults & Housing Department,Bluewood Healthcare,Personal Care / Generic,752.09,0.00,Home Care
20/04/2018,Adults & Housing Department,Bluewood Healthcare,Personal Care / Generic,594.23,0.00,Home Care
20/04/2018,Adults & Housing Department,Bluewood Healthcare,Personal Care / Generic,648.98,0.00,Home Care
20/04/2018,Adults & Housing Department,Bluewood Healthcare,Personal Care / Generic,810.62,0.00,Home Care
20/04/2018,Adults & Housing Department,Bluewood Healthcare,Personal Care / Generic,978.39,0.00,Home Care
20/04/2018,Adults & Housing Department,Bluewood Healthcare,Personal Care / Generic,801.47,0.00,Home Care
20/04/2018,Adults & Housing Department,Bluewood Healthcare,Personal Care / Generic,803.46,0.00,Home Care
20/04/2018,Adults & Housing Department,Bluewood Healthcare,Personal Care / Generic,886.05,0.00,Home Care
20/04/2018,Adults & Housing Department,Bluewood Healthcare,Personal Care / Generic,"1,469.92",0.00,Home Care
20/04/2018,Adults & Housing Department,Bluewood Healthcare,Personal Care / Generic,"1,720.66",0.00,Home Care
20/04/2018,Adults & Housing Department,Bluewood Healthcare,Personal Care / Generic,632.00,0.00,Home Care
20/04/2018,Adults & Housing Department,Bluewood Healthcare,Personal Care / Generic,662.88,0.00,Home Care
20/04/2018,Adults & Housing Department,Bluewood Healthcare,Personal Care / Generic,673.12,0.00,Home Care
20/04/2018,Adults & Housing Department,Bluewood Healthcare,Personal Care / Generic,868.89,0.00,Home Care
20/04/2018,Adults & Housing Department,Bluewood Healthcare,Personal Care / Generic,576.80,0.00,Home Care
20/04/2018,Adults & Housing Department,Bluewood Healthcare,Personal Care / Generic,"2,224.98",0.00,Home Care
20/04/2018,Adults & Housing Department,Bluewood Healthcare,Personal Care / Generic,"1,198.03",0.00,Home Care
20/04/2018,Adults & Housing Department,Bluewood Healthcare,Personal Care / Generic,"1,724.10",0.00,Home Care
20/04/2018,Adults & Housing Department,Bluewood Healthcare,Personal Care / Generic,769.13,0.00,Home Care
20/04/2018,Adults & Housing Department,Bluewood Healthcare,Personal Care / Generic,"1,476.72",0.00,Home Care
20/04/2018,Adults & Housing Department,Bluewood Healthcare,Personal Care / Generic,"1,335.70",0.00,Home Care
20/04/2018,Adults & Housing Department,Carers Direct Homecare Ltd,Personal Care / Generic,967.80,0.00,Home Care
20/04/2018,Adults & Housing Department,Carers Direct Homecare Ltd,Personal Care / Generic,"2,608.48",0.00,Home Care
20/04/2018,Adults & Housing Department,Carers Direct Homecare Ltd,Personal Care / Generic,"2,207.52",0.00,Home Care
20/04/2018,Adults & Housing Department,Carers Direct Homecare Ltd,Personal Care / Generic,"2,121.14",0.00,Home Care
20/04/2018,Adults & Housing Department,Carers Direct Homecare Ltd,Personal Care / Generic,"1,426.15",0.00,Home Care
20/04/2018,Adults & Housing Department,Carers Direct Homecare Ltd,Personal Care / Generic,"1,806.56",0.00,Home Care
20/04/2018,Adults & Housing Department,Carers Direct Homecare Ltd,Personal Care / Generic,"1,025.16",0.00,Home Care
20/04/2018,Adults & Housing Department,Carers Direct Homecare Ltd,Personal Care / Generic,"1,806.00",0.00,Home Care
20/04/2018,Adults & Housing Department,Domiciliary Care Services UK Ltd,Personal Care / Generic,"2,356.25",0.00,Home Care
20/04/2018,Adults & Housing Department,Domiciliary Care Services UK Ltd,Personal Care / Generic,"1,430.24",0.00,Home Care
20/04/2018,Adults & Housing Department,Domiciliary Care Services UK Ltd,Personal Care / Generic,"2,188.88",0.00,Home Care
20/04/2018,Adults & Housing Department,Domiciliary Care Services UK Ltd,Personal Care / Generic,"1,652.32",0.00,Home Care
20/04/2018,Adults & Housing Department,Domiciliary Care Services UK Ltd,Personal Care / Generic,"1,430.24",0.00,Home Care
20/04/2018,Adults & Housing Department,Domiciliary Care Services UK Ltd,Personal Care / Generic,"1,839.04",0.00,Home Care
20/04/2018,Adults & Housing Department,Domiciliary Care Services UK Ltd,Personal Care / Generic,"2,058.00",0.00,Home Care
20/04/2018,Adults & Housing Department,Domiciliary Care Services UK Ltd,Personal Care / Generic,"1,546.98",0.00,Home Care
20/04/2018,Adults & Housing Department,Domiciliary Care Services UK Ltd,Personal Care / Generic,"1,225.84",0.00,Home Care
20/04/2018,Adults & Housing Department,Domiciliary Care Services UK Ltd,Personal Care / Generic,631.10,0.00,Home Care
20/04/2018,Adults & Housing Department,Domiciliary Care Services UK Ltd,Personal Care / Generic,"1,510.30",0.00,Home Care
20/04/2018,Adults & Housing Department,Domiciliary Care Services UK Ltd,Personal Care / Generic,"1,839.04",0.00,Home Care
20/04/2018,Adults & Housing Department,Domiciliary Care Services UK Ltd,Personal Care / Generic,539.94,0.00,Home Care
20/04/2018,Adults & Housing Department,Domiciliary Care Services UK Ltd,Personal Care / Generic,999.58,0.00,Home Care
20/04/2018,Adults & Housing Department,Domiciliary Care Services UK Ltd,Personal Care / Generic,"1,846.34",0.00,Home Care
20/04/2018,Adults & Housing Department,Domiciliary Care Services UK Ltd,Personal Care / Generic,"1,977.74",0.00,Home Care
20/04/2018,Adults & Housing Department,Domiciliary Care Services UK Ltd,Personal Care / Generic,609.50,0.00,Home Care
20/04/2018,Adults & Housing Department,Domiciliary Care Services UK Ltd,Personal Care / Generic,802.76,0.00,Home Care
20/04/2018,Adults & Housing Department,Domiciliary Care Services UK Ltd,Personal Care / Generic,759.12,0.00,Home Care
20/04/2018,Adults & Housing Department,Domiciliary Care Services UK Ltd,Personal Care / Generic,"1,525.22",0.00,Home Care
20/04/2018,Adults & Housing Department,Domiciliary Care Services UK Ltd,Personal Care / Generic,"1,824.00",0.00,Home Care
20/04/2018,Adults & Housing Department,Domiciliary Care Services UK Ltd,Personal Care / Generic,"1,736.86",0.00,Home Care
20/04/2018,Adults & Housing Department,Domiciliary Care Services UK Ltd,Personal Care / Generic,"2,050.72",0.00,Home Care
20/04/2018,Adults & Housing Department,Domiciliary Care Services UK Ltd,Personal Care / Generic,810.02,0.00,Home Care
20/04/2018,Adults & Housing Department,Domiciliary Care Services UK Ltd,Personal Care / Generic,"2,043.44",0.00,Home Care
20/04/2018,Adults & Housing Department,Domiciliary Care Services UK Ltd,Personal Care / Generic,"1,649.74",0.00,Home Care
20/04/2018,Adults & Housing Department,Domiciliary Care Services UK Ltd,Personal Care / Generic,"1,839.04",0.00,Home Care
20/04/2018,Adults & Housing Department,Domiciliary Care Services UK Ltd,Personal Care / Generic,"1,306.28",0.00,Home Care
20/04/2018,Adults & Housing Department,Domiciliary Care Services UK Ltd,Personal Care / Generic,"1,955.78",0.00,Home Care
20/04/2018,Adults & Housing Department,Domiciliary Care Services UK Ltd,Personal Care / Generic,"1,955.48",0.00,Home Care
20/04/2018,Adults & Housing Department,Domiciliary Care Services UK Ltd,Personal Care / Generic,510.72,0.00,Home Care
20/04/2018,Adults & Housing Department,Domiciliary Care Services UK Ltd,Personal Care / Generic,561.66,0.00,Home Care
20/04/2018,Adults & Housing Department,Domiciliary Care Services UK Ltd,Personal Care / Generic,605.56,0.00,Home Care
20/04/2018,Adults & Housing Department,Domiciliary Care Services UK Ltd,Personal Care / Generic,"2,276.48",0.00,Home Care
20/04/2018,Adults & Housing Department,Domiciliary Care Services UK Ltd,Personal Care / Generic,817.32,0.00,Home Care
20/04/2018,Adults & Housing Department,Domiciliary Care Services UK Ltd,Personal Care / Generic,"1,846.34",0.00,Home Care
20/04/2018,Adults & Housing Department,Domiciliary Care Services UK Ltd,Personal Care / Generic,704.18,0.00,Home Care
20/04/2018,Adults & Housing Department,Domiciliary Care Services UK Ltd,Personal Care / Generic,561.94,0.00,Home Care
20/04/2018,Adults & Housing Department,Domiciliary Care Services UK Ltd,Personal Care / Generic,"1,846.32",0.00,Home Care
20/04/2018,Adults & Housing Department,Domiciliary Care Services UK Ltd,Personal Care / Generic,612.92,0.00,Home Care
20/04/2018,Adults & Housing Department,Domiciliary Care Services UK Ltd,Personal Care / Generic,"1,839.04",0.00,Home Care
20/04/2018,Adults & Housing Department,Domiciliary Care Services UK Ltd,Personal Care / Generic,"1,349.94",0.00,Home Care
20/04/2018,Adults & Housing Department,Domiciliary Care Services UK Ltd,Personal Care / Generic,"2,043.44",0.00,Home Care
20/04/2018,Adults & Housing Department,Domiciliary Care Services UK Ltd,Personal Care / Generic,660.33,0.00,Home Care
20/04/2018,Adults & Housing Department,Domiciliary Care Services UK Ltd,Personal Care / Generic,"1,430.24",0.00,Home Care
20/04/2018,Adults & Housing Department,Domiciliary Care Services UK Ltd,Personal Care / Generic,"1,795.24",0.00,Home Care
20/04/2018,Adults & Housing Department,Domiciliary Care Services UK Ltd,Personal Care / Generic,"1,043.58",0.00,Home Care
20/04/2018,Adults & Housing Department,Domiciliary Care Services UK Ltd,Personal Care / Generic,"2,036.14",0.00,Home Care
20/04/2018,Adults & Housing Department,Domiciliary Care Services UK Ltd,Personal Care / Generic,"1,839.04",0.00,Home Care
20/04/2018,Adults & Housing Department,Domiciliary Care Services UK Ltd,Personal Care / Generic,"1,839.04",0.00,Home Care
20/04/2018,Adults & Housing Department,MiLife Homecare,Personal Care / Generic,613.76,0.00,Home Care
20/04/2018,Adults & Housing Department,MiLife Homecare,Personal Care / Generic,"1,144.64",0.00,Home Care
20/04/2018,Adults & Housing Department,MiLife Homecare,Personal Care / Generic,"1,711.27",0.00,Home Care
20/04/2018,Adults & Housing Department,MiLife Homecare,Personal Care / Generic,668.08,0.00,Home Care
20/04/2018,Adults & Housing Department,MiLife Homecare,Personal Care / Generic,640.80,0.00,Home Care
20/04/2018,Adults & Housing Department,Universal Care Services (UK) Ltd,Personal Care / Generic,"2,365.81",0.00,Home Care
20/04/2018,Adults & Housing Department,Universal Care Services (UK) Ltd,Personal Care / Generic,585.17,0.00,Home Care
20/04/2018,Adults & Housing Department,Universal Care Services (UK) Ltd,Personal Care / Generic,"1,227.78",0.00,Home Care
20/04/2018,Adults & Housing Department,Universal Care Services (UK) Ltd,Personal Care / Generic,904.68,0.00,Home Care
20/04/2018,Adults & Housing Department,Universal Care Services (UK) Ltd,Personal Care / Generic,"1,288.81",0.00,Home Care
20/04/2018,Adults & Housing Department,Universal Care Services (UK) Ltd,Personal Care / Generic,854.42,0.00,Home Care
20/04/2018,Adults & Housing Department,Universal Care Services (UK) Ltd,Personal Care / Generic,901.09,0.00,Home Care
20/04/2018,Adults & Housing Department,Universal Care Services (UK) Ltd,Personal Care / Generic,696.46,0.00,Home Care
20/04/2018,Adults & Housing Department,Universal Care Services (UK) Ltd,Personal Care / Generic,"1,041.10",0.00,Home Care
20/04/2018,Adults & Housing Department,Universal Care Services (UK) Ltd,Personal Care / Generic,"1,098.54",0.00,Home Care
20/04/2018,Adults & Housing Department,Universal Care Services (UK) Ltd,Personal Care / Generic,660.56,0.00,Home Care
20/04/2018,Adults & Housing Department,Universal Care Services (UK) Ltd,Personal Care / Generic,542.09,0.00,Home Care
20/04/2018,Adults & Housing Department,Universal Care Services (UK) Ltd,Personal Care / Generic,624.66,0.00,Home Care
20/04/2018,Adults & Housing Department,Universal Care Services (UK) Ltd,Personal Care / Generic,703.64,0.00,Home Care
20/04/2018,Adults & Housing Department,Universal Care Services (UK) Ltd,Personal Care / Generic,703.64,0.00,Home Care
20/04/2018,Adults & Housing Department,Universal Care Services (UK) Ltd,Personal Care / Generic,919.04,0.00,Home Care
20/04/2018,Adults & Housing Department,Universal Care Services (UK) Ltd,Personal Care / Generic,703.64,0.00,Home Care
20/04/2018,Adults & Housing Department,Universal Care Services (UK) Ltd,Personal Care / Generic,822.10,0.00,Home Care
20/04/2018,Adults & Housing Department,Universal Care Services (UK) Ltd,Personal Care / Generic,577.99,0.00,Home Care
20/04/2018,Adults & Housing Department,Universal Care Services (UK) Ltd,Personal Care / Generic,"1,493.44",0.00,Home Care
20/04/2018,Adults & Housing Department,Westminster Homecare Ltd ),Personal Care / Generic,632.40,0.00,Home Care
20/04/2018,Adults & Housing Department,Westminster Homecare Ltd ),Personal Care / Generic,"1,745.49",0.00,Home Care
20/04/2018,Adults & Housing Department,Westminster Homecare Ltd ),Personal Care / Generic,554.69,0.00,Home Care
20/04/2018,Adults & Housing Department,Westminster Homecare Ltd ),Personal Care / Generic,"1,385.44",0.00,Home Care
20/04/2018,Adults & Housing Department,Westminster Homecare Ltd ),Personal Care / Generic,"1,781.36",0.00,Home Care
20/04/2018,Adults & Housing Department,Westminster Homecare Ltd ),Personal Care / Generic,578.92,0.00,Home Care
20/04/2018,Adults & Housing Department,Westminster Homecare Ltd ),Personal Care / Generic,805.78,0.00,Home Care
20/04/2018,Adults & Housing Department,Westminster Homecare Ltd ),Personal Care / Generic,"1,017.84",0.00,Home Care
20/04/2018,Adults & Housing Department,Westminster Homecare Ltd ),Personal Care / Generic,"1,385.44",0.00,Home Care
20/04/2018,Adults & Housing Department,Westminster Homecare Ltd ),Personal Care / Generic,752.07,0.00,Home Care
20/04/2018,Adults & Housing Department,Westminster Homecare Ltd ),Personal Care / Generic,744.92,0.00,Home Care
20/04/2018,Adults & Housing Department,Westminster Homecare Ltd ),Personal Care / Generic,611.52,0.00,Home Care
20/04/2018,Adults & Housing Department,Westminster Homecare Ltd ),Personal Care / Generic,533.68,0.00,Home Care
20/04/2018,Adults & Housing Department,Westminster Homecare Ltd ),Personal Care / Generic,960.96,0.00,Home Care
20/04/2018,Adults & Housing Department,Westminster Homecare Ltd ),Personal Care / Generic,865.71,0.00,Home Care
20/04/2018,Adults & Housing Department,Westminster Homecare Ltd ),Personal Care / Generic,"1,468.90",0.00,Home Care
20/04/2018,Adults & Housing Department,Westminster Homecare Ltd ),Personal Care / Generic,887.14,0.00,Home Care
20/04/2018,Adults & Housing Department,Westminster Homecare Ltd ),Personal Care / Generic,505.44,0.00,Home Care
20/04/2018,Adults & Housing Department,Westminster Homecare Ltd ),Personal Care / Generic,"1,102.59",0.00,Home Care
20/04/2018,Adults & Housing Department,Westminster Homecare Ltd ),Personal Care / Generic,512.38,0.00,Home Care
20/04/2018,Adults & Housing Department,Westminster Homecare Ltd ),Personal Care / Generic,508.88,0.00,Home Care
20/04/2018,Adults & Housing Department,Westminster Homecare Ltd ),Personal Care / Generic,639.69,0.00,Home Care
20/04/2018,Adults & Housing Department,Westminster Homecare Ltd ),Personal Care / Generic,"2,176.72",0.00,Home Care
20/04/2018,Adults & Housing Department,Westminster Homecare Ltd ),Personal Care / Generic,522.94,0.00,Home Care
20/04/2018,Adults & Housing Department,Westminster Homecare Ltd ),Personal Care / Generic,840.96,0.00,Home Care
20/04/2018,Adults & Housing Department,Westminster Homecare Ltd ),Personal Care / Generic,947.20,0.00,Home Care
20/04/2018,Adults & Housing Department,Westminster Homecare Ltd ),Personal Care / Generic,"1,138.00",0.00,Home Care
20/04/2018,Adults & Housing Department,Westminster Homecare Ltd ),Personal Care / Generic,840.94,0.00,Home Care
20/04/2018,Adults & Housing Department,Westminster Homecare Ltd ),Personal Care / Generic,769.59,0.00,Home Care
20/04/2018,Adults & Housing Department,Westminster Homecare Ltd ),Personal Care / Generic,572.03,0.00,Home Care
20/04/2018,Adults & Housing Department,Westminster Homecare Ltd ),Personal Care / Generic,"1,366.27",0.00,Home Care
20/04/2018,Adults & Housing Department,Westminster Homecare Ltd ),Personal Care / Generic,744.83,0.00,Home Care
20/04/2018,Adults & Housing Department,Westminster Homecare Ltd ),Personal Care / Generic,889.56,0.00,Home Care
20/04/2018,Adults & Housing Department,Westminster Homecare Ltd ),Personal Care / Generic,515.38,0.00,Home Care
20/04/2018,Adults & Housing Department,Westminster Homecare Ltd ),Personal Care / Generic,720.39,0.00,Home Care
20/04/2018,Adults & Housing Department,Westminster Homecare Ltd ),Personal Care / Generic,"1,059.23",0.00,Home Care
20/04/2018,Adults & Housing Department,Westminster Homecare Ltd ),Personal Care / Generic,681.30,0.00,Home Care
20/04/2018,Adults & Housing Department,Westminster Homecare Ltd ),Personal Care / Generic,"1,901.04",0.00,Home Care
20/04/2018,Adults & Housing Department,Westminster Homecare Ltd ),Personal Care / Generic,671.51,0.00,Home Care
20/04/2018,Adults & Housing Department,Westminster Homecare Ltd ),Personal Care / Generic,589.71,0.00,Home Care
20/04/2018,Adults & Housing Department,Westminster Homecare Ltd ),Personal Care / Generic,"1,959.83",0.00,Home Care
20/04/2018,Adults & Housing Department,Westminster Homecare Ltd ),Personal Care / Generic,"1,950.72",0.00,Home Care
20/04/2018,Adults & Housing Department,Westminster Homecare Ltd ),Personal Care / Generic,547.71,0.00,Home Care
20/04/2018,Adults & Housing Department,Westminster Homecare Ltd ),Personal Care / Generic,"1,120.33",0.00,Home Care
20/04/2018,Adults & Housing Department,Westminster Homecare Ltd ),Personal Care / Generic,508.95,0.00,Home Care
20/04/2018,Adults & Housing Department,Westminster Homecare Ltd ),Personal Care / Generic,"1,781.36",0.00,Home Care
20/04/2018,Adults & Housing Department,Westminster Homecare Ltd ),Personal Care / Generic,"1,682.18",0.00,Home Care
20/04/2018,Adults & Housing Department,Westminster Homecare Ltd ),Personal Care / Generic,678.64,0.00,Home Care
20/04/2018,Adults & Housing Department,Westminster Homecare Ltd ),Personal Care / Generic,"1,353.63",0.00,Home Care
20/04/2018,Adults & Housing Department,Westminster Homecare Ltd ),Personal Care / Generic,"1,187.20",0.00,Home Care
20/04/2018,Adults & Housing Department,Westminster Homecare Ltd ),Personal Care / Generic,650.40,0.00,Home Care
20/04/2018,Adults & Housing Department,Westminster Homecare Ltd ),Personal Care / Generic,"2,176.72",0.00,Home Care
20/04/2018,Adults & Housing Department,Westminster Homecare Ltd ),Personal Care / Generic,511.85,0.00,Home Care
20/04/2018,Adults & Housing Department,Westminster Homecare Ltd ),Personal Care / Generic,723.68,0.00,Home Care
20/04/2018,Adults & Housing Department,Westminster Homecare Ltd ),Personal Care / Generic,"1,521.47",0.00,Home Care
20/04/2018,Adults & Housing Department,Westminster Homecare Ltd ),Personal Care / Generic,"1,979.04",0.00,Home Care
20/04/2018,Adults & Housing Department,Westminster Homecare Ltd ),Personal Care / Generic,"2,046.08",0.00,Home Care
20/04/2018,Adults & Housing Department,Westminster Homecare Ltd ),Personal Care / Generic,"1,498.58",0.00,Home Care
20/04/2018,Adults & Housing Department,Westminster Homecare Ltd ),Personal Care / Generic,523.00,0.00,Home Care
20/04/2018,Adults & Housing Department,Westminster Homecare Ltd ),Personal Care / Generic,692.72,0.00,Home Care
20/04/2018,Adults & Housing Department,Westminster Homecare Ltd ),Personal Care / Generic,607.82,0.00,Home Care
20/04/2018,Adults & Housing Department,Westminster Homecare Ltd ),Personal Care / Generic,"1,060.04",0.00,Home Care
20/04/2018,Adults & Housing Department,Westminster Homecare Ltd ),Personal Care / Generic,897.57,0.00,Home Care
20/04/2018,Adults & Housing Department,Westminster Homecare Ltd ),Personal Care / Generic,790.92,0.00,Home Care
20/04/2018,Adults & Housing Department,Westminster Homecare Ltd ),Personal Care / Generic,536.57,0.00,Home Care
20/04/2018,Adults & Housing Department,Westminster Homecare Ltd ),Personal Care / Generic,571.86,0.00,Home Care
20/04/2018,Adults & Housing Department,Westminster Homecare Ltd ),Personal Care / Generic,710.35,0.00,Home Care
20/04/2018,Adults & Housing Department,Westminster Homecare Ltd ),Personal Care / Generic,621.82,0.00,Home Care
20/04/2018,Adults & Housing Department,Westminster Homecare Ltd ),Personal Care / Generic,533.66,0.00,Home Care
20/04/2018,Adults & Housing Department,Westminster Homecare Ltd ),Personal Care / Generic,"1,781.36",0.00,Home Care
20/04/2018,Adults & Housing Department,Westminster Homecare Ltd ),Personal Care / Generic,876.36,0.00,Home Care
20/04/2018,Adults & Housing Department,Westminster Homecare Ltd ),Personal Care / Generic,"1,710.42",0.00,Home Care
20/04/2018,Adults & Housing Department,Westminster Homecare Ltd ),Personal Care / Generic,522.92,0.00,Home Care
20/04/2018,Adults & Housing Department,Westminster Homecare Ltd ),Personal Care / Generic,"1,314.66",0.00,Home Care
20/04/2018,Adults & Housing Department,Westminster Homecare Ltd ),Personal Care / Generic,"1,222.53",0.00,Home Care
20/04/2018,Adults & Housing Department,Westminster Homecare Ltd ),Personal Care / Generic,572.51,0.00,Home Care
20/04/2018,Adults & Housing Department,Westminster Homecare Ltd ),Personal Care / Generic,"1,274.37",0.00,Home Care
20/04/2018,Adults & Housing Department,Westminster Homecare Ltd ),Personal Care / Generic,638.96,0.00,Home Care
20/04/2018,Adults & Housing Department,Affinity Trust FA SL&FSB,SLEEP-IN SUPPORT,742.56,0.00,LD Supported Living
20/04/2018,Adults & Housing Department,Affinity Trust FA SL&FSB,SLEEP-IN SUPPORT,"1,113.84",0.00,LD Supported Living
20/04/2018,Adults & Housing Department,Affinity Trust FA SL&FSB,SLEEP-IN SUPPORT,"1,113.84",0.00,LD Supported Living
20/04/2018,Adults & Housing Department,Affinity Trust FA SL&FSB,SLEEP-IN SUPPORT,742.56,0.00,LD Supported Living
20/04/2018,Adults & Housing Department,Affinity Trust FA SL&FSB,SLEEP-IN SUPPORT,742.56,0.00,LD Supported Living
20/04/2018,Adults & Housing Department,Affinity Trust FA SL&FSB,SLEEP-IN SUPPORT,"1,113.84",0.00,LD Supported Living
20/04/2018,Adults & Housing Department,Affinity Trust FA SL&FSB,SLEEP-IN SUPPORT,556.92,0.00,LD Supported Living
20/04/2018,Adults & Housing Department,Community Integrated Care FA SL&FSB,SLEEP-IN SUPPORT,954.72,0.00,LD Supported Living
20/04/2018,Adults & Housing Department,Community Integrated Care FA SL&FSB,SLEEP-IN SUPPORT,"1,272.96",0.00,LD Supported Living
20/04/2018,Adults & Housing Department,Community Integrated Care FA SL&FSB,SLEEP-IN SUPPORT,"2,227.68",0.00,LD Supported Living
20/04/2018,Adults & Housing Department,Community Integrated Care FA SL&FSB,SLEEP-IN SUPPORT,"1,113.84",0.00,LD Supported Living
20/04/2018,Adults & Housing Department,Community Integrated Care FA SL&FSB,SLEEP-IN SUPPORT,"2,227.68",0.00,LD Supported Living
20/04/2018,Adults & Housing Department,Community Integrated Care FA SL&FSB,SLEEP-IN SUPPORT,"1,113.84",0.00,LD Supported Living
20/04/2018,Adults & Housing Department,Creative Support Ltd,SLEEP-IN SUPPORT,"2,227.68",0.00,MH Supported Living
20/04/2018,Adults & Housing Department,Affinity Trust - Shared Bungalow - Ratby,Sleeping In Night Support,556.92,0.00,Supported Living
20/04/2018,Adults & Housing Department,Affinity Trust - Shared Bungalow - Ratby,Sleeping In Night Support,556.92,0.00,Supported Living
20/04/2018,Adults & Housing Department,Affinity Trust - Shared Bungalow - Ratby,Sleeping In Night Support,556.92,0.00,Supported Living
20/04/2018,Adults & Housing Department,Affinity Trust - Shared Bungalow - Ratby,Sleeping In Night Support,556.92,0.00,Supported Living
20/04/2018,Adults & Housing Department,Affinity Trust FA SL&FSB,Sleeping In Night Support,"2,227.68",0.00,Supported Living
20/04/2018,Adults & Housing Department,Tew Hands Interpreting Ltd.,Translation/Interpretation Fees,"2,831.25",0.00,Management & Business & Administrative Services
20/04/2018,Adults & Housing Department,Tew Hands Interpreting Ltd.,Translation/Interpretation Fees,"4,078.14",0.00,Management & Business & Administrative Services
20/04/2018,Adults & Housing Department,Affinity Trust FA SL&FSB,WAKING NIGHT SUPPORT,"3,742.20",0.00,LD Supported Living
20/04/2018,Adults & Housing Department,Affinity Trust FA SL&FSB,WAKING NIGHT SUPPORT,"3,742.20",0.00,LD Supported Living
20/04/2018,Adults & Housing Department,Affinity Trust FA SL&FSB,WAKING NIGHT SUPPORT,"7,484.40",0.00,LD Supported Living
20/04/2018,Adults & Housing Department,CareTech Community Services Ltd FA SL&FSB,WAKING NIGHT SUPPORT,"1,227.24",0.00,LD Supported Living
20/04/2018,Adults & Housing Department,CareTech Community Services Ltd FA SL&FSB,WAKING NIGHT SUPPORT,"1,227.24",0.00,LD Supported Living
20/04/2018,Adults & Housing Department,CareTech Community Services Ltd FA SL&FSB,WAKING NIGHT SUPPORT,920.43,0.00,LD Supported Living
20/04/2018,Adults & Housing Department,CareTech Community Services Ltd FA SL&FSB,WAKING NIGHT SUPPORT,"1,227.24",0.00,LD Supported Living
20/04/2018,Adults & Housing Department,CareTech Community Services Ltd FA SL&FSB,WAKING NIGHT SUPPORT,736.34,0.00,LD Supported Living
20/04/2018,Adults & Housing Department,CareTech Community Services Ltd FA SL&FSB,WAKING NIGHT SUPPORT,920.43,0.00,LD Supported Living
20/04/2018,Adults & Housing Department,CareTech Community Services Ltd FA SL&FSB,WAKING NIGHT SUPPORT,740.24,0.00,LD Supported Living
20/04/2018,Adults & Housing Department,CareTech Community Services Ltd FA SL&FSB,WAKING NIGHT SUPPORT,"1,475.61",0.00,LD Supported Living
20/04/2018,Adults & Housing Department,CareTech Community Services Ltd FA SL&FSB,WAKING NIGHT SUPPORT,"1,227.24",0.00,LD Supported Living
20/04/2018,Adults & Housing Department,Community Integrated Care FA SL&FSB,WAKING NIGHT SUPPORT,654.94,0.00,LD Supported Living
20/04/2018,Adults & Housing Department,Community Integrated Care FA SL&FSB,WAKING NIGHT SUPPORT,600.60,0.00,LD Supported Living
20/04/2018,Adults & Housing Department,Community Integrated Care FA SL&FSB,WAKING NIGHT SUPPORT,600.60,0.00,LD Supported Living
20/04/2018,Adults & Housing Department,Community Integrated Care FA SL&FSB,WAKING NIGHT SUPPORT,"1,201.20",0.00,LD Supported Living
20/04/2018,Adults & Housing Department,Community Integrated Care FA SL&FSB,WAKING NIGHT SUPPORT,"1,781.78",0.00,LD Supported Living
20/04/2018,Adults & Housing Department,Community Integrated Care FA SL&FSB,WAKING NIGHT SUPPORT,600.60,0.00,LD Supported Living
20/04/2018,Adults & Housing Department,Community Integrated Care FA SL&FSB,WAKING NIGHT SUPPORT,600.60,0.00,LD Supported Living
20/04/2018,Adults & Housing Department,Community Integrated Care FA SL&FSB,WAKING NIGHT SUPPORT,600.60,0.00,LD Supported Living
20/04/2018,Adults & Housing Department,Community Integrated Care FA SL&FSB,WAKING NIGHT SUPPORT,600.60,0.00,LD Supported Living
20/04/2018,Adults & Housing Department,Community Integrated Care FA SL&FSB,WAKING NIGHT SUPPORT,600.60,0.00,LD Supported Living
20/04/2018,Adults & Housing Department,Community Integrated Care FA SL&FSB,WAKING NIGHT SUPPORT,600.60,0.00,LD Supported Living
20/04/2018,Adults & Housing Department,Community Integrated Care FA SL&FSB,WAKING NIGHT SUPPORT,654.94,0.00,LD Supported Living
20/04/2018,Adults & Housing Department,Community Integrated Care FA SL&FSB,WAKING NIGHT SUPPORT,600.60,0.00,LD Supported Living
20/04/2018,Adults & Housing Department,Community Integrated Care FA SL&FSB,WAKING NIGHT SUPPORT,"1,201.20",0.00,LD Supported Living
20/04/2018,Adults & Housing Department,Community Integrated Care FA SL&FSB,WAKING NIGHT SUPPORT,"1,287.00",0.00,LD Supported Living
20/04/2018,Adults & Housing Department,Community Integrated Care FA SL&FSB,WAKING NIGHT SUPPORT,600.60,0.00,LD Supported Living
20/04/2018,Adults & Housing Department,Community Integrated Care FA SL&FSB,WAKING NIGHT SUPPORT,600.60,0.00,LD Supported Living
20/04/2018,Adults & Housing Department,Community Integrated Care FA SL&FSB,WAKING NIGHT SUPPORT,"1,201.20",0.00,LD Supported Living
20/04/2018,Adults & Housing Department,Creative Support Ltd,WAKING NIGHT SUPPORT,"3,588.48",0.00,MH Supported Living
20/04/2018,Adults & Housing Department,Affinity Trust - Shared Bungalow - Ratby,Waking Night Support Hours,996.66,0.00,Supported Living
20/04/2018,Adults & Housing Department,Affinity Trust - Shared Bungalow - Ratby,Waking Night Support Hours,"1,271.76",0.00,Supported Living
20/04/2018,Adults & Housing Department,Affinity Trust - Shared Bungalow - Ratby,Waking Night Support Hours,"1,271.76",0.00,Supported Living
20/04/2018,Adults & Housing Department,Affinity Trust - Shared Bungalow - Ratby,Waking Night Support Hours,996.66,0.00,Supported Living
20/04/2018,Adults & Housing Department,Affinity Trust - Shared Bungalow - Ratby,Waking Night Support Hours,752.40,0.00,Supported Living
20/04/2018,Adults & Housing Department,Affinity Trust - Shared Bungalow - Ratby,Waking Night Support Hours,748.44,0.00,Supported Living
20/04/2018,Adults & Housing Department,Affinity Trust - Shared Bungalow - Ratby,Waking Night Support Hours,"1,271.76",0.00,Supported Living
20/04/2018,Adults & Housing Department,Affinity Trust - Shared Bungalow - Ratby,Waking Night Support Hours,"1,060.29",0.00,Supported Living
20/04/2018,Adults & Housing Department,Affinity Trust - Shared Bungalow - Ratby,Waking Night Support Hours,"1,060.29",0.00,Supported Living
20/04/2018,Adults & Housing Department,Affinity Trust - Shared Bungalow - Ratby,Waking Night Support Hours,"4,490.64",0.00,Supported Living
20/04/2018,Adults & Housing Department,Affinity Trust - Shared Bungalow - Ratby,Waking Night Support Hours,"1,271.76",0.00,Supported Living
20/04/2018,Adults & Housing Department,Affinity Trust - Shared Bungalow - Ratby,Waking Night Support Hours,996.66,0.00,Supported Living
20/04/2018,Adults & Housing Department,Affinity Trust - Shared Bungalow - Ratby,Waking Night Support Hours,"1,271.76",0.00,Supported Living
20/04/2018,Adults & Housing Department,Affinity Trust FA SL&FSB,Waking Night Support Hours,"1,178.52",0.00,Supported Living
20/04/2018,Adults & Housing Department,Affinity Trust FA SL&FSB,Waking Night Support Hours,"1,178.52",0.00,Supported Living
20/04/2018,Adults & Housing Department,Affinity Trust FA SL&FSB,Waking Night Support Hours,"1,247.40",0.00,Supported Living
20/04/2018,Adults & Housing Department,Staffs & Stoke Partnership NHS Trust,Young people's SH Services,"8,052.00",0.00,Sexual Health Services (ISHS)
24/04/2018,Adults & Housing Department,Lifeways Community Care Ltd FA SL&FSB,DAY SUPPORT,"4,489.54",0.00,LD Supported Living
24/04/2018,Adults & Housing Department,Lifeways Community Care Ltd FA SL&FSB,DAY SUPPORT,"4,729.00",0.00,LD Supported Living
24/04/2018,Adults & Housing Department,Lifeways Community Care Ltd FA SL&FSB,DAY SUPPORT,896.52,0.00,LD Supported Living
24/04/2018,Adults & Housing Department,Lifeways Community Care Ltd FA SL&FSB,DAY SUPPORT,"2,024.40",0.00,LD Supported Living
24/04/2018,Adults & Housing Department,Lifeways Community Care Ltd FA SL&FSB,DAY SUPPORT,"4,453.68",0.00,LD Supported Living
24/04/2018,Adults & Housing Department,Lifeways Community Care Ltd FA SL&FSB,DAY SUPPORT,"1,041.12",0.00,LD Supported Living
24/04/2018,Adults & Housing Department,Lifeways Community Care Ltd FA SL&FSB,DAY SUPPORT,"1,041.12",0.00,MH Supported Living
24/04/2018,Adults & Housing Department,Lifeways Community Care Ltd FA SL&FSB,DAY SUPPORT,"4,048.80",0.00,LD Supported Living
24/04/2018,Adults & Housing Department,Lifeways Community Care Ltd FA SL&FSB,DAY SUPPORT,890.74,0.00,LD Supported Living
24/04/2018,Adults & Housing Department,Lifeways Community Care Ltd FA SL&FSB,DAY SUPPORT,"5,094.73",0.00,LD Supported Living
24/04/2018,Adults & Housing Department,Lifeways Community Care Ltd FA SL&FSB,DAY SUPPORT,607.32,0.00,MH Supported Living
24/04/2018,Adults & Housing Department,Lifeways Community Care Ltd FA SL&FSB,DAY SUPPORT,578.40,0.00,LD Supported Living
24/04/2018,Adults & Housing Department,Lifeways Community Care Ltd FA SL&FSB,DAY SUPPORT,"1,908.60",0.00,LD Supported Living
24/04/2018,Adults & Housing Department,Lifeways Community Care Ltd FA SL&FSB,DAY SUPPORT,"1,908.72",0.00,LD Supported Living
24/04/2018,Adults & Housing Department,Lifeways Community Care Ltd FA SL&FSB,DAY SUPPORT,679.62,0.00,MH Supported Living
24/04/2018,Adults & Housing Department,Lifeways Community Care Ltd FA SL&FSB,DAY SUPPORT,751.92,0.00,LD Supported Living
24/04/2018,Adults & Housing Department,Lifeways Community Care Ltd FA SL&FSB,DAY SUPPORT,"2,429.28",0.00,LD Supported Living
24/04/2018,Adults & Housing Department,Lifeways Community Care Ltd FA SL&FSB,DAY SUPPORT,"6,940.80",0.00,LD Supported Living
24/04/2018,Adults & Housing Department,Lifeways Community Care Ltd FA SL&FSB,DAY SUPPORT,819.48,0.00,MH Supported Living
24/04/2018,Adults & Housing Department,Lifeways Community Care Ltd FA SL&FSB,DAY SUPPORT,963.61,0.00,MH Supported Living
24/04/2018,Adults & Housing Department,Lifeways Community Care Ltd FA SL&FSB,DAY SUPPORT,"2,024.40",0.00,LD Supported Living
24/04/2018,Adults & Housing Department,Lifeways Community Care Ltd FA SL&FSB,DAY SUPPORT,809.76,0.00,MH Supported Living
24/04/2018,Adults & Housing Department,Lifeways Community Care Ltd FA SL&FSB,DAY SUPPORT,"5,061.00",0.00,LD Supported Living
24/04/2018,Adults & Housing Department,Lifeways Community Care Ltd FA SL&FSB,DAY SUPPORT,"1,185.72",0.00,MH Supported Living
24/04/2018,Adults & Housing Department,Lifeways Community Care Ltd FA SL&FSB,DAY SUPPORT,"4,106.64",0.00,LD Supported Living
24/04/2018,Adults & Housing Department,Lifeways Community Care Ltd FA SL&FSB,DAY SUPPORT,"5,436.97",0.00,LD Supported Living
24/04/2018,Adults & Housing Department,Lifeways Community Care Ltd FA SL&FSB,DAY SUPPORT,"1,735.20",0.00,LD Supported Living
24/04/2018,Adults & Housing Department,Lifeways Community Care Ltd FA SL&FSB,DAY SUPPORT,983.28,0.00,LD Supported Living
24/04/2018,Adults & Housing Department,Lifeways Community Care Ltd FA SL&FSB,DAY SUPPORT,"2,024.40",0.00,LD Supported Living
24/04/2018,Adults & Housing Department,Lifeways Community Care Ltd FA SL&FSB,DAY SUPPORT,"3,759.59",0.00,LD Supported Living
24/04/2018,Adults & Housing Department,Lifeways Community Care Ltd FA SL&FSB,DAY SUPPORT,"4,048.80",0.00,LD Supported Living
24/04/2018,Adults & Housing Department,Lifeways Community Care Ltd FA SL&FSB,DAY SUPPORT,890.74,0.00,LD Supported Living
24/04/2018,Adults & Housing Department,Lifeways Community Care Ltd FA SL&FSB,DAY SUPPORT,795.11,0.00,MH Supported Living
24/04/2018,Adults & Housing Department,Lifeways Community Care Ltd FA SL&FSB,DAY SUPPORT,795.11,0.00,MH Supported Living
24/04/2018,Adults & Housing Department,Lifeways Community Care Ltd FA SL&FSB,DAY SUPPORT,867.60,0.00,MH Supported Living
24/04/2018,Adults & Housing Department,Lifeways Community Care Ltd FA SL&FSB,DAY SUPPORT,"6,073.20",0.00,LD Supported Living
24/04/2018,Adults & Housing Department,Lifeways Community Care Ltd FA SL&FSB,DAY SUPPORT,"5,841.84",0.00,LD Supported Living
24/04/2018,Adults & Housing Department,Lifeways Community Care Ltd FA SL&FSB,DAY SUPPORT,"6,796.20",0.00,LD Supported Living
24/04/2018,Adults & Housing Department,Lifeways Community Care Ltd FA SL&FSB,DAY SUPPORT,"3,152.28",0.00,MH Supported Living
24/04/2018,Adults & Housing Department,Lifeways Community Care Ltd FA SL&FSB,DAY SUPPORT,795.11,0.00,MH Supported Living
24/04/2018,Adults & Housing Department,Lifeways Community Care Ltd FA SL&FSB,DAY SUPPORT,578.40,0.00,LD Supported Living
24/04/2018,Adults & Housing Department,Lifeways Community Care Ltd FA SL&FSB,DAY SUPPORT,737.46,0.00,MH Supported Living
24/04/2018,Adults & Housing Department,Lifeways Community Care Ltd FA SL&FSB,DAY SUPPORT,578.40,0.00,LD Supported Living
24/04/2018,Adults & Housing Department,Lifeways Community Care Ltd FA SL&FSB,DAY SUPPORT,578.40,0.00,MH Supported Living
24/04/2018,Adults & Housing Department,Lifeways Community Care Ltd FA SL&FSB,DAY SUPPORT,"1,518.30",0.00,MH Supported Living
24/04/2018,Adults & Housing Department,Lifeways Community Care Ltd FA SL&FSB,DAY SUPPORT,"1,125.57",0.00,MH Supported Living
24/04/2018,Adults & Housing Department,Lifeways Community Care Ltd FA SL&FSB,DAY SUPPORT,578.40,0.00,LD Supported Living
24/04/2018,Adults & Housing Department,Lifeways Community Care Ltd FA SL&FSB,DAY SUPPORT,802.53,0.00,LD Supported Living
24/04/2018,Adults & Housing Department,Lifeways Community Care Ltd FA SL&FSB,DAY SUPPORT,867.60,0.00,LD Supported Living
24/04/2018,Adults & Housing Department,Lifeways Community Care Ltd FA SL&FSB,DAY SUPPORT,"4,048.80",0.00,LD Supported Living
24/04/2018,Adults & Housing Department,Lifeways Community Care Ltd FA SL&FSB,DAY SUPPORT,"2,024.40",0.00,LD Supported Living
24/04/2018,Adults & Housing Department,Lifeways Community Care Ltd FA SL&FSB,DAY SUPPORT,"2,024.40",0.00,LD Supported Living
24/04/2018,Adults & Housing Department,Lifeways Community Care Ltd FA SL&FSB,DAY SUPPORT,"5,061.00",0.00,LD Supported Living
24/04/2018,Adults & Housing Department,Lifeways Community Care Ltd FA SL&FSB,DAY SUPPORT,"2,313.57",0.00,LD Supported Living
24/04/2018,Adults & Housing Department,Lifeways Community Care Ltd FA SL&FSB,DAY SUPPORT,520.56,0.00,MH Supported Living
24/04/2018,Adults & Housing Department,Lifeways Community Care Ltd FA SL&FSB,DAY SUPPORT,"4,077.72",0.00,LD Supported Living
24/04/2018,Adults & Housing Department,Lifeways Community Care Ltd FA SL&FSB,DAY SUPPORT,"6,073.20",0.00,LD Supported Living
24/04/2018,Adults & Housing Department,Lifeways Community Care Ltd FA SL&FSB,DAY SUPPORT,607.32,0.00,LD Supported Living
24/04/2018,Adults & Housing Department,Lifeways Community Care Ltd FA SL&FSB,DAY SUPPORT,"3,036.60",0.00,LD Supported Living
24/04/2018,Adults & Housing Department,Lifeways Community Care Ltd FA SL&FSB,DAY SUPPORT,"2,024.40",0.00,MH Supported Living
24/04/2018,Adults & Housing Department,Lifeways Community Care Ltd FA SL&FSB,DAY SUPPORT,"2,024.40",0.00,LD Supported Living
24/04/2018,Adults & Housing Department,Lifeways Community Care Ltd FA SL&FSB,DAY SUPPORT,751.92,0.00,LD Supported Living
24/04/2018,Adults & Housing Department,Lifeways Community Care Ltd FA SL&FSB,DAY SUPPORT,"1,156.74",0.00,LD Supported Living
24/04/2018,Adults & Housing Department,Lifeways Community Care Ltd FA SL&FSB,DAY SUPPORT,"1,908.60",0.00,LD Supported Living
24/04/2018,Adults & Housing Department,Lifeways Community Care Ltd FA SL&FSB,DAY SUPPORT,665.16,0.00,LD Supported Living
24/04/2018,Adults & Housing Department,Lifeways Community Care Ltd FA SL&FSB,DAY SUPPORT,"3,026.96",0.00,LD Supported Living
24/04/2018,Adults & Housing Department,Mosaic Shaping Disability Services FA SL&FSB,DAY SUPPORT,"1,037.40",0.00,Physical Disability Supported Living
24/04/2018,Adults & Housing Department,Mosaic Shaping Disability Services FA SL&FSB,DAY SUPPORT,"1,155.96",0.00,Physical Disability Supported Living
24/04/2018,Adults & Housing Department,Mosaic Shaping Disability Services FA SL&FSB,DAY SUPPORT,"1,081.86",0.00,Physical Disability Supported Living
24/04/2018,Adults & Housing Department,Mosaic Shaping Disability Services FA SL&FSB,DAY SUPPORT,"7,884.24",0.00,Physical Disability Supported Living
24/04/2018,Adults & Housing Department,Mosaic Shaping Disability Services FA SL&FSB,DAY SUPPORT,"1,067.04",0.00,Physical Disability Supported Living
24/04/2018,Adults & Housing Department,Mosaic Shaping Disability Services FA SL&FSB,DAY SUPPORT,"2,074.80",0.00,Physical Disability Supported Living
24/04/2018,Adults & Housing Department,Mosaic Shaping Disability Services FA SL&FSB,DAY SUPPORT,"1,361.07",0.00,Physical Disability Supported Living
24/04/2018,Adults & Housing Department,Mosaic Shaping Disability Services FA SL&FSB,DAY SUPPORT,592.80,0.00,Physical Disability Supported Living
24/04/2018,Adults & Housing Department,Lifeways Community Care Ltd FA SL&FSB,Day Support Hours,"1,146.40",0.00,Supported Living
24/04/2018,Adults & Housing Department,Lifeways Community Care Ltd FA SL&FSB,Day Support Hours,630.52,0.00,Supported Living
24/04/2018,Adults & Housing Department,Lifeways Community Care Ltd FA SL&FSB,Day Support Hours,874.13,0.00,Supported Living
24/04/2018,Adults & Housing Department,Lifeways Community Care Ltd FA SL&FSB,Day Support Hours,"2,866.00",0.00,Supported Living
24/04/2018,Adults & Housing Department,Lifeways Community Care Ltd FA SL&FSB,Day Support Hours,"2,385.95",0.00,Supported Living
24/04/2018,Adults & Housing Department,Lifeways Community Care Ltd FA SL&FSB,Day Support Hours,573.77,0.00,Supported Living
24/04/2018,Adults & Housing Department,Lifeways Community Care Ltd FA SL&FSB,Day Support Hours,917.12,0.00,Supported Living
24/04/2018,Adults & Housing Department,Lifeways Community Care Ltd FA SL&FSB,Day Support Hours,515.88,0.00,Supported Living
24/04/2018,Adults & Housing Department,Lifeways Community Care Ltd FA SL&FSB,Day Support Hours,"1,117.74",0.00,Supported Living
24/04/2018,Adults & Housing Department,Lifeways Community Care Ltd FA SL&FSB,Day Support Hours,859.80,0.00,Supported Living
24/04/2018,Adults & Housing Department,Boots UK Limited T/a Boots The Chemist,Emergency hormonal contraception LES,"11,164.00",0.00,Contraception
24/04/2018,Adults & Housing Department,Leicestershire Independent Pharmacy Co Ltd,Emergency hormonal contraception LES,"7,897.00",0.00,Contraception
24/04/2018,Adults & Housing Department,Polypharmacy Ltd t/a Poly Pharmacy,Emergency hormonal contraception LES,"1,685.00",0.00,Contraception
24/04/2018,Adults & Housing Department,Leicester Sound & Lighting,Equipment Purchase,"2,454.72",490.94,Equipment Purchase
24/04/2018,Adults & Housing Department,Northgate Public Services (uk) Ltd,Equipment Purchase,"1,637.60",327.52,Equipment Purchase
24/04/2018,Adults & Housing Department,Prism UK Medical Ltd,Equipment Purchase,"2,995.37",599.07,Equipment Purchase
24/04/2018,Adults & Housing Department,Al Waqas Medical Practice,NHS Health Checks Payments To CCG,"1,504.00",0.00,NHS Health Checks
24/04/2018,Adults & Housing Department,Ar-Razi Medical Centre,NHS Health Checks Payments To CCG,540.00,0.00,NHS Health Checks
24/04/2018,Adults & Housing Department,Briton Street GP Surgery,NHS Health Checks Payments To CCG,740.00,0.00,NHS Health Checks
24/04/2018,Adults & Housing Department,De Montfort Surgery,NHS Health Checks Payments To CCG,"2,156.00",0.00,NHS Health Checks
24/04/2018,Adults & Housing Department,DHU Health Care CIC  - Heron GP Practice,NHS Health Checks Payments To CCG,"1,140.00",0.00,NHS Health Checks
24/04/2018,Adults & Housing Department,Downing Drive Surgery Limited,NHS Health Checks Payments To CCG,"1,076.00",0.00,NHS Health Checks
24/04/2018,Adults & Housing Department,East Leicester Medical Practice,NHS Health Checks Payments To CCG,"1,128.00",0.00,NHS Health Checks
24/04/2018,Adults & Housing Department,East Park Medical Centre,NHS Health Checks Payments To CCG,"3,060.00",0.00,NHS Health Checks
24/04/2018,Adults & Housing Department,Groby Road Medical Centre,NHS Health Checks Payments To CCG,"2,720.00",0.00,NHS Health Checks
24/04/2018,Adults & Housing Department,Hamilton Academy,NHS Health Checks Payments To CCG,720.00,0.00,NHS Health Checks
24/04/2018,Adults & Housing Department,Heatherbrook Surgery,NHS Health Checks Payments To CCG,"1,080.00",0.00,NHS Health Checks
24/04/2018,Adults & Housing Department,Highfields Surgery,NHS Health Checks Payments To CCG,572.00,0.00,NHS Health Checks
24/04/2018,Adults & Housing Department,Humberstone Medical Centre,NHS Health Checks Payments To CCG,"1,960.00",0.00,NHS Health Checks
24/04/2018,Adults & Housing Department,Johnson Medical Practice,NHS Health Checks Payments To CCG,572.00,0.00,NHS Health Checks
24/04/2018,Adults & Housing Department,LCH-ACROSS LEICESTER HEALTH LTD-SAYEED MEDICAL CENTRE,NHS Health Checks Payments To CCG,620.00,0.00,NHS Health Checks
24/04/2018,Adults & Housing Department,Manor Medical Practice,NHS Health Checks Payments To CCG,"1,020.00",0.00,NHS Health Checks
24/04/2018,Adults & Housing Department,Saffron Group Practice,NHS Health Checks Payments To CCG,"1,720.00",0.00,NHS Health Checks
24/04/2018,Adults & Housing Department,Spinney Hill Medical Centre,NHS Health Checks Payments To CCG,"2,044.00",0.00,NHS Health Checks
24/04/2018,Adults & Housing Department,St Elizabeths Medical Centre,NHS Health Checks Payments To CCG,"1,456.00",0.00,NHS Health Checks
24/04/2018,Adults & Housing Department,The Charnwood Practice,NHS Health Checks Payments To CCG,604.00,0.00,NHS Health Checks
24/04/2018,Adults & Housing Department,The Hedges Medical Centre,NHS Health Checks Payments To CCG,856.00,0.00,NHS Health Checks
24/04/2018,Adults & Housing Department,The Hockley Farm Medical Practice,NHS Health Checks Payments To CCG,"1,072.00",0.00,NHS Health Checks
24/04/2018,Adults & Housing Department,The Willows Medical Centre,NHS Health Checks Payments To CCG,"1,396.00",0.00,NHS Health Checks
24/04/2018,Adults & Housing Department,Walnut Street Medical Centre,NHS Health Checks Payments To CCG,"3,004.00",0.00,NHS Health Checks
24/04/2018,Adults & Housing Department,BTCV t/a The Conservation Volunteers (TCV),Nutrition/Healthy Eating Programmes - Community,"1,666.66",0.00,Nutrition Initiatives Children and Families
24/04/2018,Adults & Housing Department,The Monday Club Leicestershire Ltd,Other (Social Group),"2,500.00",0.00,VCS - Adults & Older People
24/04/2018,Adults & Housing Department,Beaumont Lodge Medical Practice,P Care Services  contraceptive  implants (LES),990.00,0.00,Contraception
24/04/2018,Adults & Housing Department,Downing Drive Surgery Limited,P Care Services  contraceptive  implants (LES),565.29,0.00,Contraception
24/04/2018,Adults & Housing Department,Humberstone Medical Centre,P Care Services  contraceptive  implants (LES),"1,650.87",0.00,Contraception
24/04/2018,Adults & Housing Department,Spinney Hill Medical Centre,P Care Services  contraceptive  implants (LES),"1,124.01",0.00,Contraception
24/04/2018,Adults & Housing Department,The Hedges Medical Centre,P Care Services  contraceptive  implants (LES),"1,470.87",0.00,Contraception
24/04/2018,Adults & Housing Department,DHU Health Care CIC  - Heron GP Practice,Pcare services IUD contraceptive devices (LES),569.17,0.00,Contraception
24/04/2018,Adults & Housing Department,Downing Drive Surgery Limited,Pcare services IUD contraceptive devices (LES),634.24,0.00,Contraception
24/04/2018,Adults & Housing Department,Spinney Hill Medical Centre,Pcare services IUD contraceptive devices (LES),"1,198.07",0.00,Contraception
24/04/2018,Adults & Housing Department,The Hedges Medical Centre,Pcare services IUD contraceptive devices (LES),536.69,0.00,Contraception
24/04/2018,Adults & Housing Department,Choices Care Ltd,Personal Care / Generic,916.01,0.00,Home Care
24/04/2018,Adults & Housing Department,Choices Care Ltd,Personal Care / Generic,"1,717.84",0.00,Home Care
24/04/2018,Adults & Housing Department,Choices Care Ltd,Personal Care / Generic,"1,707.38",0.00,Home Care
24/04/2018,Adults & Housing Department,Choices Care Ltd,Personal Care / Generic,"1,703.90",0.00,Home Care
24/04/2018,Adults & Housing Department,Choices Care Ltd,Personal Care / Generic,675.95,0.00,Home Care
24/04/2018,Adults & Housing Department,Choices Care Ltd,Personal Care / Generic,"1,093.77",0.00,Home Care
24/04/2018,Adults & Housing Department,Choices Care Ltd,Personal Care / Generic,"1,588.89",0.00,Home Care
24/04/2018,Adults & Housing Department,Choices Care Ltd,Personal Care / Generic,627.16,0.00,Home Care
24/04/2018,Adults & Housing Department,Choices Care Ltd,Personal Care / Generic,"1,072.96",0.00,Home Care
24/04/2018,Adults & Housing Department,Choices Care Ltd,Personal Care / Generic,975.52,0.00,Home Care
24/04/2018,Adults & Housing Department,Choices Care Ltd,Personal Care / Generic,"1,613.15",0.00,Home Care
24/04/2018,Adults & Housing Department,Choices Care Ltd,Personal Care / Generic,"1,324.03",0.00,Home Care
24/04/2018,Adults & Housing Department,Choices Care Ltd,Personal Care / Generic,676.01,0.00,Home Care
24/04/2018,Adults & Housing Department,Choices Care Ltd,Personal Care / Generic,"1,749.19",0.00,Home Care
24/04/2018,Adults & Housing Department,Choices Care Ltd,Personal Care / Generic,613.04,0.00,Home Care
24/04/2018,Adults & Housing Department,Choices Care Ltd,Personal Care / Generic,878.08,0.00,Home Care
24/04/2018,Adults & Housing Department,Choices Care Ltd,Personal Care / Generic,571.35,0.00,Home Care
24/04/2018,Adults & Housing Department,Choices Care Ltd,Personal Care / Generic,836.16,0.00,Home Care
24/04/2018,Adults & Housing Department,Choices Care Ltd,Personal Care / Generic,"1,644.66",0.00,Home Care
24/04/2018,Adults & Housing Department,Choices Care Ltd,Personal Care / Generic,"1,156.46",0.00,Home Care
24/04/2018,Adults & Housing Department,Choices Care Ltd,Personal Care / Generic,592.39,0.00,Home Care
24/04/2018,Adults & Housing Department,Anchor Trust Trading LTD,Sheltered Housing - ILS,"3,109.81",0.00,Sheltered Housing - ILS
24/04/2018,Adults & Housing Department,Lifeways Community Care Ltd FA SL&FSB,SLEEP-IN SUPPORT,"1,113.84",0.00,LD Supported Living
24/04/2018,Adults & Housing Department,Lifeways Community Care Ltd FA SL&FSB,SLEEP-IN SUPPORT,"1,113.84",0.00,LD Supported Living
24/04/2018,Adults & Housing Department,Lifeways Community Care Ltd FA SL&FSB,SLEEP-IN SUPPORT,742.56,0.00,LD Supported Living
24/04/2018,Adults & Housing Department,Lifeways Community Care Ltd FA SL&FSB,SLEEP-IN SUPPORT,742.56,0.00,LD Supported Living
24/04/2018,Adults & Housing Department,Lifeways Community Care Ltd FA SL&FSB,SLEEP-IN SUPPORT,742.56,0.00,LD Supported Living
24/04/2018,Adults & Housing Department,Lifeways Community Care Ltd FA SL&FSB,SLEEP-IN SUPPORT,742.56,0.00,MH Supported Living
24/04/2018,Adults & Housing Department,Lifeways Community Care Ltd FA SL&FSB,SLEEP-IN SUPPORT,742.56,0.00,MH Supported Living
24/04/2018,Adults & Housing Department,Lifeways Community Care Ltd FA SL&FSB,SLEEP-IN SUPPORT,742.56,0.00,LD Supported Living
24/04/2018,Adults & Housing Department,Lifeways Community Care Ltd FA SL&FSB,SLEEP-IN SUPPORT,742.56,0.00,LD Supported Living
24/04/2018,Adults & Housing Department,Lifeways Community Care Ltd FA SL&FSB,SLEEP-IN SUPPORT,"2,227.68",0.00,LD Supported Living
24/04/2018,Adults & Housing Department,Lifeways Community Care Ltd FA SL&FSB,SLEEP-IN SUPPORT,742.56,0.00,LD Supported Living
24/04/2018,Adults & Housing Department,Lifeways Community Care Ltd FA SL&FSB,SLEEP-IN SUPPORT,742.56,0.00,LD Supported Living
24/04/2018,Adults & Housing Department,Lifeways Community Care Ltd FA SL&FSB,SLEEP-IN SUPPORT,742.56,0.00,LD Supported Living
24/04/2018,Adults & Housing Department,Lifeways Community Care Ltd FA SL&FSB,SLEEP-IN SUPPORT,742.56,0.00,LD Supported Living
24/04/2018,Adults & Housing Department,Lifeways Community Care Ltd FA SL&FSB,SLEEP-IN SUPPORT,"1,113.84",0.00,LD Supported Living
24/04/2018,Adults & Housing Department,Lifeways Community Care Ltd FA SL&FSB,SLEEP-IN SUPPORT,"1,113.84",0.00,LD Supported Living
24/04/2018,Adults & Housing Department,Lifeways Community Care Ltd FA SL&FSB,WAKING NIGHT SUPPORT,"1,214.64",0.00,LD Supported Living
24/04/2018,Adults & Housing Department,Lifeways Community Care Ltd FA SL&FSB,WAKING NIGHT SUPPORT,"1,214.64",0.00,LD Supported Living
24/04/2018,Adults & Housing Department,Lifeways Community Care Ltd FA SL&FSB,WAKING NIGHT SUPPORT,683.07,0.00,LD Supported Living
24/04/2018,Adults & Housing Department,Lifeways Community Care Ltd FA SL&FSB,WAKING NIGHT SUPPORT,910.98,0.00,MH Supported Living
24/04/2018,Adults & Housing Department,Lifeways Community Care Ltd FA SL&FSB,WAKING NIGHT SUPPORT,"3,643.92",0.00,LD Supported Living
24/04/2018,Adults & Housing Department,Lifeways Community Care Ltd FA SL&FSB,WAKING NIGHT SUPPORT,766.38,0.00,LD Supported Living
24/04/2018,Adults & Housing Department,Lifeways Community Care Ltd FA SL&FSB,WAKING NIGHT SUPPORT,766.38,0.00,LD Supported Living
24/04/2018,Adults & Housing Department,Lifeways Community Care Ltd FA SL&FSB,WAKING NIGHT SUPPORT,766.38,0.00,LD Supported Living
24/04/2018,Adults & Housing Department,Lifeways Community Care Ltd FA SL&FSB,WAKING NIGHT SUPPORT,506.10,0.00,LD Supported Living
24/04/2018,Adults & Housing Department,Lifeways Community Care Ltd FA SL&FSB,Waking Night Support Hours,558.87,0.00,Supported Living
24/04/2018,Adults & Housing Department,Lifeways Community Care Ltd FA SL&FSB,Waking Night Support Hours,745.16,0.00,Supported Living
25/04/2018,Adults & Housing Department,Diva Creative Ltd,Consultants Fees,"14,000.00","2,800.00",Consultant Fees
25/04/2018,Adults & Housing Department,GWENDOLEN ROAD CARE HOME,Continuing Health Care Contribution - Residential Care,741.14,0.00,Continuing Health Care Contribution - Residential Care
25/04/2018,Adults & Housing Department,Venetia House,Continuing Health Care Contribution - Residential Care,899.64,0.00,Continuing Health Care Contribution - Residential Care
25/04/2018,Adults & Housing Department,Venetia House,Continuing Health Care Contribution - Residential Care,867.51,0.00,Continuing Health Care Contribution - Residential Care
25/04/2018,Adults & Housing Department,Venetia House,Continuing Health Care Contribution - Residential Care,899.64,0.00,Continuing Health Care Contribution - Residential Care
25/04/2018,Adults & Housing Department,Leicester Stroke Club,Day Care,"1,789.50",0.00,VCS - Adults & Older People
25/04/2018,Adults & Housing Department,Nottingham Community Housing Association,Day Care /Community Opportunities,717.80,0.00,Day Care /Community Opportunities
25/04/2018,Adults & Housing Department,Nottingham Community Housing Association,Day Care /Community Opportunities,717.80,0.00,Day Care /Community Opportunities
25/04/2018,Adults & Housing Department,Pathfinders Community Support Ltd,Day Care /Community Opportunities,879.50,0.00,Day Care /Community Opportunities
25/04/2018,Adults & Housing Department,Pathfinders Community Support Ltd,Day Care /Community Opportunities,879.50,0.00,Day Care /Community Opportunities
25/04/2018,Adults & Housing Department,Pathfinders Community Support Ltd,Day Care /Community Opportunities,633.24,0.00,Day Care /Community Opportunities
25/04/2018,Adults & Housing Department,Pathfinders Community Support Ltd,Day Care /Community Opportunities,879.50,0.00,Day Care /Community Opportunities
25/04/2018,Adults & Housing Department,Pathfinders Community Support Ltd,Day Care /Community Opportunities,879.50,0.00,Day Care /Community Opportunities
25/04/2018,Adults & Housing Department,Pathfinders Community Support Ltd,Day Care /Community Opportunities,879.50,0.00,Day Care /Community Opportunities
25/04/2018,Adults & Housing Department,Pathfinders Community Support Ltd,Day Care /Community Opportunities,879.50,0.00,Day Care /Community Opportunities
25/04/2018,Adults & Housing Department,Pathfinders Community Support Ltd,Day Care /Community Opportunities,879.50,0.00,Day Care /Community Opportunities
25/04/2018,Adults & Housing Department,Santosh Community Centre,Day Care /Community Opportunities,602.88,0.00,Day Care /Community Opportunities
25/04/2018,Adults & Housing Department,Santosh Community Centre,Day Care /Community Opportunities,602.88,0.00,Day Care /Community Opportunities
25/04/2018,Adults & Housing Department,Santosh Community Centre,Day Care /Community Opportunities,602.88,0.00,Day Care /Community Opportunities
25/04/2018,Adults & Housing Department,Portland College,DAY SUPPORT,"1,260.10",0.00,LD Flexible Short Break
25/04/2018,Adults & Housing Department,Portland College,DAY SUPPORT,756.06,0.00,LD Flexible Short Break
25/04/2018,Adults & Housing Department,Bristol Maid � Hospital Metal Craft Ltd,Equipment Purchase,945.05,189.01,Equipment Purchase
25/04/2018,Adults & Housing Department,Bristol Maid � Hospital Metal Craft Ltd,Equipment Purchase,679.35,135.87,Equipment Purchase
25/04/2018,Adults & Housing Department,MCS Care Services Ltd,Independent Best Assessors (Ind BIA),"2,000.00",0.00,Consultant Fees
25/04/2018,Adults & Housing Department,Abberdale House,Interim Residential (Delayed Discharges),"1,055.26",0.00,Residential Care
25/04/2018,Adults & Housing Department,Abberdale House,Interim Residential (Delayed Discharges),682.82,0.00,Residential Care
25/04/2018,Adults & Housing Department,Hicare Ltd,Interim Residential (Delayed Discharges),558.67,0.00,Residential Care
25/04/2018,Adults & Housing Department,Prime Life Ltd,Interim Residential (Delayed Discharges),869.04,0.00,Residential Care
25/04/2018,Adults & Housing Department,Prime Life Ltd,Interim Residential (Delayed Discharges),"1,613.93",0.00,Residential Care
25/04/2018,Adults & Housing Department,Prime Life Ltd,Interim Residential (Delayed Discharges),744.89,0.00,Residential Care
25/04/2018,Adults & Housing Department,Prime Life Ltd,Interim Residential (Delayed Discharges),869.04,0.00,Residential Care
25/04/2018,Adults & Housing Department,Thurn Court Residential Care Home,Interim Residential (Delayed Discharges),"11,952.00",0.00,Residential Care
25/04/2018,Adults & Housing Department,Staffs & Stoke Partnership NHS Trust,ISHS Chlamydia,"179,693.21",0.00,Sexual Health Services (ISHS)
25/04/2018,Adults & Housing Department,AMS International,Marketing and Advertising,538.26,107.65,Marketing & Advertising
25/04/2018,Adults & Housing Department,Sigma Pharmaceuticals,Nicotine Replacement Therapy (NRT),"7,068.04",353.40,Public Health Initiatives
25/04/2018,Adults & Housing Department,Abbey Healthcare T/a Aaron Court,Nursing Permanent,"1,889.04",0.00,Nursing Care
25/04/2018,Adults & Housing Department,Abbey Healthcare T/a Aaron Court,Nursing Permanent,880.20,0.00,Nursing Care
25/04/2018,Adults & Housing Department,Abbey Healthcare T/a Aaron Court,Nursing Permanent,"1,889.04",0.00,Nursing Care
25/04/2018,Adults & Housing Department,Abbey Healthcare T/a Aaron Court,Nursing Permanent,"1,889.04",0.00,Nursing Care
25/04/2018,Adults & Housing Department,Abbey Healthcare T/a Aaron Court,Nursing Permanent,"1,889.04",0.00,Nursing Care
25/04/2018,Adults & Housing Department,Abbey Healthcare T/a Aaron Court,Nursing Permanent,"1,889.04",0.00,Nursing Care
25/04/2018,Adults & Housing Department,Abbey Healthcare T/a Aaron Court,Nursing Permanent,"1,889.04",0.00,Nursing Care
25/04/2018,Adults & Housing Department,Abbey Healthcare T/a Aaron Court,Nursing Permanent,"1,889.04",0.00,Nursing Care
25/04/2018,Adults & Housing Department,Abbey Healthcare T/a Aaron Court,Nursing Permanent,"1,889.04",0.00,Nursing Care
25/04/2018,Adults & Housing Department,Abbey Healthcare T/a Aaron Court,Nursing Permanent,"1,889.04",0.00,Nursing Care
25/04/2018,Adults & Housing Department,Abbey Healthcare T/a Aaron Court,Nursing Permanent,"1,889.04",0.00,Nursing Care
25/04/2018,Adults & Housing Department,Ashleigh Nursing Home,Nursing Permanent,"1,889.04",0.00,Nursing Care
25/04/2018,Adults & Housing Department,Ashleigh Nursing Home,Nursing Permanent,"1,889.04",0.00,Nursing Care
25/04/2018,Adults & Housing Department,Ashleigh Nursing Home,Nursing Permanent,"1,889.04",0.00,Nursing Care
25/04/2018,Adults & Housing Department,Ashleigh Nursing Home,Nursing Permanent,"1,889.04",0.00,Nursing Care
25/04/2018,Adults & Housing Department,Ashleigh Nursing Home,Nursing Permanent,"1,889.04",0.00,Nursing Care
25/04/2018,Adults & Housing Department,Ashleigh Nursing Home,Nursing Permanent,"1,889.04",0.00,Nursing Care
25/04/2018,Adults & Housing Department,Aylesham Court Nursing Home,Nursing Permanent,868.00,0.00,Nursing Care
25/04/2018,Adults & Housing Department,Aylesham Court Nursing Home,Nursing Permanent,724.00,0.00,Nursing Care
25/04/2018,Adults & Housing Department,Aylesham Court Nursing Home,Nursing Permanent,"1,736.00",0.00,Nursing Care
25/04/2018,Adults & Housing Department,Aylesham Court Nursing Home,Nursing Permanent,"1,736.00",0.00,Nursing Care
25/04/2018,Adults & Housing Department,Aylesham Court Nursing Home,Nursing Permanent,"1,736.00",0.00,Nursing Care
25/04/2018,Adults & Housing Department,Aylesham Court Nursing Home,Nursing Permanent,724.00,0.00,Nursing Care
25/04/2018,Adults & Housing Department,Aylesham Court Nursing Home,Nursing Permanent,"1,736.00",0.00,Nursing Care
25/04/2018,Adults & Housing Department,Aylesham Court Nursing Home,Nursing Permanent,724.00,0.00,Nursing Care
25/04/2018,Adults & Housing Department,Aylesham Court Nursing Home,Nursing Permanent,868.00,0.00,Nursing Care
25/04/2018,Adults & Housing Department,Aylesham Court Nursing Home,Nursing Permanent,724.00,0.00,Nursing Care
25/04/2018,Adults & Housing Department,Aylesham Court Nursing Home,Nursing Permanent,724.00,0.00,Nursing Care
25/04/2018,Adults & Housing Department,Aylesham Court Nursing Home,Nursing Permanent,"1,736.00",0.00,Nursing Care
25/04/2018,Adults & Housing Department,Aylesham Court Nursing Home,Nursing Permanent,"1,585.04",0.00,Nursing Care
25/04/2018,Adults & Housing Department,Aylesham Court Nursing Home,Nursing Permanent,"1,736.00",0.00,Nursing Care
25/04/2018,Adults & Housing Department,Aylesham Court Nursing Home,Nursing Permanent,"1,993.20",0.00,Nursing Care
25/04/2018,Adults & Housing Department,Baron Park Nursing Home,Nursing Permanent,"2,291.16",0.00,Nursing Care
25/04/2018,Adults & Housing Department,Baron Park Nursing Home,Nursing Permanent,"1,736.00",0.00,Nursing Care
25/04/2018,Adults & Housing Department,Baron Park Nursing Home,Nursing Permanent,"3,193.72",0.00,Nursing Care
25/04/2018,Adults & Housing Department,Baron Park Nursing Home,Nursing Permanent,"1,736.00",0.00,Nursing Care
25/04/2018,Adults & Housing Department,Baron Park Nursing Home,Nursing Permanent,"1,736.00",0.00,Nursing Care
25/04/2018,Adults & Housing Department,Cheer Health Ltd T/A London Rd,Nursing Permanent,690.76,0.00,Nursing Care
25/04/2018,Adults & Housing Department,Cheer Health Ltd T/A London Rd,Nursing Permanent,"1,889.04",0.00,Nursing Care
25/04/2018,Adults & Housing Department,Cheer Health Ltd T/A London Rd,Nursing Permanent,944.52,0.00,Nursing Care
25/04/2018,Adults & Housing Department,Cheer Health Ltd T/A London Rd,Nursing Permanent,690.76,0.00,Nursing Care
25/04/2018,Adults & Housing Department,Cheer Health Ltd T/A London Rd,Nursing Permanent,690.76,0.00,Nursing Care
25/04/2018,Adults & Housing Department,Cheer Health Ltd T/A London Rd,Nursing Permanent,944.52,0.00,Nursing Care
25/04/2018,Adults & Housing Department,Cheer Health Ltd T/A London Rd,Nursing Permanent,690.76,0.00,Nursing Care
25/04/2018,Adults & Housing Department,Eden place Ltd -Ashley House,Nursing Permanent,"2,128.00",0.00,Nursing Care
25/04/2018,Adults & Housing Department,Eden place Ltd -Ashley House,Nursing Permanent,"1,852.00",0.00,Nursing Care
25/04/2018,Adults & Housing Department,Evington Home - Pilgrims' Friend Society,Nursing Permanent,"1,889.04",0.00,Nursing Care
25/04/2018,Adults & Housing Department,Evington Home - Pilgrims' Friend Society,Nursing Permanent,"1,754.11",0.00,Nursing Care
25/04/2018,Adults & Housing Department,Evington Home - Pilgrims' Friend Society,Nursing Permanent,944.52,0.00,Nursing Care
25/04/2018,Adults & Housing Department,Evington Home - Pilgrims' Friend Society,Nursing Permanent,944.52,0.00,Nursing Care
25/04/2018,Adults & Housing Department,G B Care Ltd,Nursing Permanent,"1,889.04",0.00,Nursing Care
25/04/2018,Adults & Housing Department,G B Care Ltd,Nursing Permanent,"1,889.04",0.00,Nursing Care
25/04/2018,Adults & Housing Department,G B Care Ltd,Nursing Permanent,"1,889.04",0.00,Nursing Care
25/04/2018,Adults & Housing Department,G B Care Ltd,Nursing Permanent,"1,889.04",0.00,Nursing Care
25/04/2018,Adults & Housing Department,G B Care Ltd,Nursing Permanent,"1,889.04",0.00,Nursing Care
25/04/2018,Adults & Housing Department,G B Care Ltd,Nursing Permanent,"1,889.04",0.00,Nursing Care
25/04/2018,Adults & Housing Department,G B Care Ltd,Nursing Permanent,"1,889.04",0.00,Nursing Care
25/04/2018,Adults & Housing Department,G B Care Ltd,Nursing Permanent,"1,889.04",0.00,Nursing Care
25/04/2018,Adults & Housing Department,G B Care Ltd,Nursing Permanent,"1,889.04",0.00,Nursing Care
25/04/2018,Adults & Housing Department,G B Care Ltd,Nursing Permanent,"3,732.14",0.00,Nursing Care
25/04/2018,Adults & Housing Department,G B Care Ltd,Nursing Permanent,"1,889.04",0.00,Nursing Care
25/04/2018,Adults & Housing Department,Glenside Manor Health Care Services Ltd,Nursing Permanent,990.84,0.00,Nursing Care
25/04/2018,Adults & Housing Department,Glenside Manor Health Care Services Ltd,Nursing Permanent,"6,275.00",0.00,Nursing Care
25/04/2018,Adults & Housing Department,Harley House Care Home,Nursing Permanent,"1,889.04",0.00,Nursing Care
25/04/2018,Adults & Housing Department,Harley House Care Home,Nursing Permanent,"1,889.04",0.00,Nursing Care
25/04/2018,Adults & Housing Department,Harley House Care Home,Nursing Permanent,"1,889.04",0.00,Nursing Care
25/04/2018,Adults & Housing Department,Hayes Park Nursing Home,Nursing Permanent,"1,889.04",0.00,Nursing Care
25/04/2018,Adults & Housing Department,Hayes Park Nursing Home,Nursing Permanent,"1,889.04",0.00,Nursing Care
25/04/2018,Adults & Housing Department,Hayes Park Nursing Home,Nursing Permanent,"1,889.04",0.00,Nursing Care
25/04/2018,Adults & Housing Department,Hayes Park Nursing Home,Nursing Permanent,"1,889.04",0.00,Nursing Care
25/04/2018,Adults & Housing Department,Hayes Park Nursing Home,Nursing Permanent,"1,889.04",0.00,Nursing Care
25/04/2018,Adults & Housing Department,Hayes Park Nursing Home,Nursing Permanent,"1,889.04",0.00,Nursing Care
25/04/2018,Adults & Housing Department,Hayes Park Nursing Home,Nursing Permanent,"1,889.04",0.00,Nursing Care
25/04/2018,Adults & Housing Department,Hayes Park Nursing Home,Nursing Permanent,"1,889.04",0.00,Nursing Care
25/04/2018,Adults & Housing Department,Hayes Park Nursing Home,Nursing Permanent,"1,889.04",0.00,Nursing Care
25/04/2018,Adults & Housing Department,Hayes Park Nursing Home,Nursing Permanent,"1,889.04",0.00,Nursing Care
25/04/2018,Adults & Housing Department,Hayes Park Nursing Home,Nursing Permanent,"1,889.04",0.00,Nursing Care
25/04/2018,Adults & Housing Department,Hayes Park Nursing Home,Nursing Permanent,"1,889.04",0.00,Nursing Care
25/04/2018,Adults & Housing Department,Hayes Park Nursing Home,Nursing Permanent,"1,889.04",0.00,Nursing Care
25/04/2018,Adults & Housing Department,Hayes Park Nursing Home,Nursing Permanent,"1,889.04",0.00,Nursing Care
25/04/2018,Adults & Housing Department,HC One Ltd T/a Mavis Bank Care Home,Nursing Permanent,"1,736.00",0.00,Nursing Care
25/04/2018,Adults & Housing Department,HC One Ltd T/a Mavis Bank Care Home,Nursing Permanent,932.36,0.00,Nursing Care
25/04/2018,Adults & Housing Department,HC-One Ltd T/a Cedar Court,Nursing Permanent,"1,736.00",0.00,Nursing Care
25/04/2018,Adults & Housing Department,HC-One Ltd T/a Cedar Court,Nursing Permanent,"1,736.00",0.00,Nursing Care
25/04/2018,Adults & Housing Department,HC-One Ltd T/a Cedar Court,Nursing Permanent,"1,736.00",0.00,Nursing Care
25/04/2018,Adults & Housing Department,HC-One Ltd T/a Cedar Court,Nursing Permanent,"1,736.00",0.00,Nursing Care
25/04/2018,Adults & Housing Department,HC-One Ltd T/a Cedar Court,Nursing Permanent,806.00,0.00,Nursing Care
25/04/2018,Adults & Housing Department,HC-One Ltd T/a Cedar Court,Nursing Permanent,"1,736.00",0.00,Nursing Care
25/04/2018,Adults & Housing Department,HC-One Ltd T/a Cedar Court,Nursing Permanent,868.00,0.00,Nursing Care
25/04/2018,Adults & Housing Department,HC-One Ltd T/a Cedar Court,Nursing Permanent,"1,736.00",0.00,Nursing Care
25/04/2018,Adults & Housing Department,HC-One Ltd T/a Cedar Court,Nursing Permanent,"1,736.00",0.00,Nursing Care
25/04/2018,Adults & Housing Department,HC-One Ltd T/a Harley Grange Care Home,Nursing Permanent,"1,889.04",0.00,Nursing Care
25/04/2018,Adults & Housing Department,HC-One Ltd T/a Harley Grange Care Home,Nursing Permanent,"1,889.04",0.00,Nursing Care
25/04/2018,Adults & Housing Department,HC-One Ltd T/a Harley Grange Care Home,Nursing Permanent,"1,889.04",0.00,Nursing Care
25/04/2018,Adults & Housing Department,HC-One Ltd T/a Harley Grange Care Home,Nursing Permanent,742.12,0.00,Nursing Care
25/04/2018,Adults & Housing Department,HC-One Ltd T/a Harley Grange Care Home,Nursing Permanent,"1,889.04",0.00,Nursing Care
25/04/2018,Adults & Housing Department,HC-One Ltd T/a Magna Nursing Home,Nursing Permanent,"1,736.00",0.00,Nursing Care
25/04/2018,Adults & Housing Department,HINCKLEY CARE LIMITED T/AS THE ASHTON CARE HOME,Nursing Permanent,"2,350.48",0.00,Nursing Care
25/04/2018,Adults & Housing Department,HINCKLEY CARE LIMITED T/AS THE ASHTON CARE HOME,Nursing Permanent,"1,736.00",0.00,Nursing Care
25/04/2018,Adults & Housing Department,"Langdale Residential Home, Langdale House Ltd",Nursing Permanent,"1,392.00",0.00,Nursing Care
25/04/2018,Adults & Housing Department,"Langdale Residential Home, Langdale House Ltd",Nursing Permanent,"1,736.00",0.00,Nursing Care
25/04/2018,Adults & Housing Department,Langdale View,Nursing Permanent,"1,889.04",0.00,Nursing Care
25/04/2018,Adults & Housing Department,Langdale View,Nursing Permanent,"1,889.04",0.00,Nursing Care
25/04/2018,Adults & Housing Department,Langdale View,Nursing Permanent,"1,889.04",0.00,Nursing Care
25/04/2018,Adults & Housing Department,Langdale View,Nursing Permanent,"1,889.04",0.00,Nursing Care
25/04/2018,Adults & Housing Department,Magnum Care Ltd T/a Aberry House,Nursing Permanent,"1,889.04",0.00,Nursing Care
25/04/2018,Adults & Housing Department,Magnum Care Ltd T/a Aberry House,Nursing Permanent,"1,889.04",0.00,Nursing Care
25/04/2018,Adults & Housing Department,Magnum Care Ltd T/a Aberry House,Nursing Permanent,"1,889.04",0.00,Nursing Care
25/04/2018,Adults & Housing Department,Magnum Care Ltd T/a Aberry House,Nursing Permanent,944.52,0.00,Nursing Care
25/04/2018,Adults & Housing Department,Magnum Care Ltd T/a Aberry House,Nursing Permanent,"1,889.04",0.00,Nursing Care
25/04/2018,Adults & Housing Department,Magnum Care Ltd T/a Aberry House,Nursing Permanent,"1,889.04",0.00,Nursing Care
25/04/2018,Adults & Housing Department,Magnum Care Ltd T/a Aberry House,Nursing Permanent,"1,889.04",0.00,Nursing Care
25/04/2018,Adults & Housing Department,Magnum Care Ltd T/a Aberry House,Nursing Permanent,"1,889.04",0.00,Nursing Care
25/04/2018,Adults & Housing Department,Magnum Care Ltd T/a Aberry House,Nursing Permanent,"1,889.04",0.00,Nursing Care
25/04/2018,Adults & Housing Department,Magnum Care Ltd T/a Aberry House,Nursing Permanent,"1,889.04",0.00,Nursing Care
25/04/2018,Adults & Housing Department,MHA-Foxton Grange,Nursing Permanent,"1,889.04",0.00,Nursing Care
25/04/2018,Adults & Housing Department,MHA-Foxton Grange,Nursing Permanent,"1,348.00",0.00,Nursing Care
25/04/2018,Adults & Housing Department,MHA-Foxton Grange,Nursing Permanent,"1,889.04",0.00,Nursing Care
25/04/2018,Adults & Housing Department,Milkwood Care Ltd T/a Castleford House Nursing Home,Nursing Permanent,"1,736.00",0.00,Nursing Care
25/04/2018,Adults & Housing Department,Mymil Ltd T/a Scraptoft Court Care Home,Nursing Permanent,"1,889.04",0.00,Nursing Care
25/04/2018,Adults & Housing Department,Mymil Ltd T/a Scraptoft Court Care Home,Nursing Permanent,"1,510.96",0.00,Nursing Care
25/04/2018,Adults & Housing Department,Mymil Ltd T/a Scraptoft Court Care Home,Nursing Permanent,"1,889.04",0.00,Nursing Care
25/04/2018,Adults & Housing Department,Mymil Ltd T/a Scraptoft Court Care Home,Nursing Permanent,"1,889.04",0.00,Nursing Care
25/04/2018,Adults & Housing Department,Mymil Ltd T/a Scraptoft Court Care Home,Nursing Permanent,"1,889.04",0.00,Nursing Care
25/04/2018,Adults & Housing Department,Mymil Ltd T/a Scraptoft Court Care Home,Nursing Permanent,"1,889.04",0.00,Nursing Care
25/04/2018,Adults & Housing Department,Nightingale Nursing Home,Nursing Permanent,944.52,0.00,Nursing Care
25/04/2018,Adults & Housing Department,Nightingale Nursing Home,Nursing Permanent,"1,889.04",0.00,Nursing Care
25/04/2018,Adults & Housing Department,Nightingale Nursing Home,Nursing Permanent,"1,310.96",0.00,Nursing Care
25/04/2018,Adults & Housing Department,Nightingale Nursing Home,Nursing Permanent,"1,889.04",0.00,Nursing Care
25/04/2018,Adults & Housing Department,Nightingale Nursing Home,Nursing Permanent,"1,889.04",0.00,Nursing Care
25/04/2018,Adults & Housing Department,Prime Life Plc,Nursing Permanent,"1,889.04",0.00,Nursing Care
25/04/2018,Adults & Housing Department,Prime Life Plc,Nursing Permanent,"1,889.04",0.00,Nursing Care
25/04/2018,Adults & Housing Department,Prime Life Plc,Nursing Permanent,"1,889.04",0.00,Nursing Care
25/04/2018,Adults & Housing Department,Prime Life Plc,Nursing Permanent,944.52,0.00,Nursing Care
25/04/2018,Adults & Housing Department,Prime Life Plc,Nursing Permanent,"1,889.04",0.00,Nursing Care
25/04/2018,Adults & Housing Department,Prime Life Plc,Nursing Permanent,562.44,0.00,Nursing Care
25/04/2018,Adults & Housing Department,Prime Life Plc,Nursing Permanent,"1,889.04",0.00,Nursing Care
25/04/2018,Adults & Housing Department,Prime Life Plc,Nursing Permanent,944.52,0.00,Nursing Care
25/04/2018,Adults & Housing Department,Prime Life Plc,Nursing Permanent,"1,889.04",0.00,Nursing Care
25/04/2018,Adults & Housing Department,Prime Life Plc,Nursing Permanent,"1,889.04",0.00,Nursing Care
25/04/2018,Adults & Housing Department,Prime Life Plc,Nursing Permanent,"1,889.04",0.00,Nursing Care
25/04/2018,Adults & Housing Department,Prime Life Plc,Nursing Permanent,"1,889.04",0.00,Nursing Care
25/04/2018,Adults & Housing Department,Prime Life Plc,Nursing Permanent,"1,889.04",0.00,Nursing Care
25/04/2018,Adults & Housing Department,Prime Life Plc,Nursing Permanent,"1,889.04",0.00,Nursing Care
25/04/2018,Adults & Housing Department,Prime Life Plc,Nursing Permanent,"1,889.04",0.00,Nursing Care
25/04/2018,Adults & Housing Department,Prime Life Plc,Nursing Permanent,"1,889.04",0.00,Nursing Care
25/04/2018,Adults & Housing Department,Prime Life Plc,Nursing Permanent,"1,889.04",0.00,Nursing Care
25/04/2018,Adults & Housing Department,Prime Life Plc,Nursing Permanent,"1,889.04",0.00,Nursing Care
25/04/2018,Adults & Housing Department,Prime Life Plc,Nursing Permanent,944.52,0.00,Nursing Care
25/04/2018,Adults & Housing Department,Prime Life Plc,Nursing Permanent,"1,889.04",0.00,Nursing Care
25/04/2018,Adults & Housing Department,Prime Life Plc,Nursing Permanent,"1,889.04",0.00,Nursing Care
25/04/2018,Adults & Housing Department,Prime Life Plc,Nursing Permanent,944.52,0.00,Nursing Care
25/04/2018,Adults & Housing Department,Primelife Ltd,Nursing Permanent,"1,736.00",0.00,Nursing Care
25/04/2018,Adults & Housing Department,Rushcliffe Care Group,Nursing Permanent,"1,852.00",0.00,Nursing Care
25/04/2018,Adults & Housing Department,Rushcliffe Care Group,Nursing Permanent,"5,448.00",0.00,Nursing Care
25/04/2018,Adults & Housing Department,Rushey Mead Manor Care Home,Nursing Permanent,"1,889.04",0.00,Nursing Care
25/04/2018,Adults & Housing Department,Rushey Mead Manor Care Home,Nursing Permanent,"1,889.04",0.00,Nursing Care
25/04/2018,Adults & Housing Department,Rushey Mead Manor Care Home,Nursing Permanent,"1,889.04",0.00,Nursing Care
25/04/2018,Adults & Housing Department,Rushey Mead Manor Care Home,Nursing Permanent,"1,889.04",0.00,Nursing Care
25/04/2018,Adults & Housing Department,Rushey Mead Manor Care Home,Nursing Permanent,"1,889.04",0.00,Nursing Care
25/04/2018,Adults & Housing Department,Rushey Mead Manor Care Home,Nursing Permanent,"1,889.04",0.00,Nursing Care
25/04/2018,Adults & Housing Department,Rushey Mead Manor Care Home,Nursing Permanent,"1,889.04",0.00,Nursing Care
25/04/2018,Adults & Housing Department,Rushey Mead Manor Care Home,Nursing Permanent,"1,889.04",0.00,Nursing Care
25/04/2018,Adults & Housing Department,Rushey Mead Manor Care Home,Nursing Permanent,"1,889.04",0.00,Nursing Care
25/04/2018,Adults & Housing Department,Rushey Mead Manor Care Home,Nursing Permanent,"1,889.04",0.00,Nursing Care
25/04/2018,Adults & Housing Department,Rushey Mead Manor Care Home,Nursing Permanent,"1,889.04",0.00,Nursing Care
25/04/2018,Adults & Housing Department,Rushey Mead Manor Care Home,Nursing Permanent,"1,889.04",0.00,Nursing Care
25/04/2018,Adults & Housing Department,Rushey Mead Manor Care Home,Nursing Permanent,"1,889.04",0.00,Nursing Care
25/04/2018,Adults & Housing Department,Rushey Mead Manor Care Home,Nursing Permanent,"1,889.04",0.00,Nursing Care
25/04/2018,Adults & Housing Department,St George's Nursing Home Ltd,Nursing Permanent,800.00,0.00,Nursing Care
25/04/2018,Adults & Housing Department,St George's Nursing Home Ltd,Nursing Permanent,"1,889.04",0.00,Nursing Care
25/04/2018,Adults & Housing Department,Sussex Health Care T/A Rapkyns Care Home,Nursing Permanent,"1,831.36",0.00,Nursing Care
25/04/2018,Adults & Housing Department,The Lodge Rest Ltd T/a Claro Homes,Nursing Permanent,"1,736.00",0.00,Nursing Care
25/04/2018,Adults & Housing Department,The Lodge Rest Ltd T/a Claro Homes,Nursing Permanent,"1,204.00",0.00,Nursing Care
25/04/2018,Adults & Housing Department,Thorpe House Nursing & Residential,Nursing Permanent,"1,736.00",0.00,Nursing Care
25/04/2018,Adults & Housing Department,Western Park Ltd,Nursing Permanent,"1,889.04",0.00,Nursing Care
25/04/2018,Adults & Housing Department,Western Park Ltd,Nursing Permanent,"1,889.04",0.00,Nursing Care
25/04/2018,Adults & Housing Department,Western Park Ltd,Nursing Permanent,"1,889.04",0.00,Nursing Care
25/04/2018,Adults & Housing Department,Western Park Ltd,Nursing Permanent,"1,889.04",0.00,Nursing Care
25/04/2018,Adults & Housing Department,Western Park Ltd,Nursing Permanent,"1,889.04",0.00,Nursing Care
25/04/2018,Adults & Housing Department,Western Park Ltd,Nursing Permanent,"1,889.04",0.00,Nursing Care
25/04/2018,Adults & Housing Department,Western Park Ltd,Nursing Permanent,"1,889.04",0.00,Nursing Care
25/04/2018,Adults & Housing Department,Western Park Ltd,Nursing Permanent,"1,889.04",0.00,Nursing Care
25/04/2018,Adults & Housing Department,Western Park Ltd,Nursing Permanent,"1,889.04",0.00,Nursing Care
25/04/2018,Adults & Housing Department,Western Park Ltd,Nursing Permanent,"1,889.04",0.00,Nursing Care
25/04/2018,Adults & Housing Department,Western Park Ltd,Nursing Permanent,"1,889.04",0.00,Nursing Care
25/04/2018,Adults & Housing Department,Western Park Ltd,Nursing Permanent,"1,889.04",0.00,Nursing Care
25/04/2018,Adults & Housing Department,Cheer Health Ltd T/A London Rd,Nursing Respite,"1,490.88",0.00,Nursing Care
25/04/2018,Adults & Housing Department,Cheer Health Ltd T/A London Rd,Nursing Respite,742.12,0.00,Nursing Care
25/04/2018,Adults & Housing Department,Hayes Park Nursing Home,Nursing Short Stay,"1,889.04",0.00,Nursing Care
25/04/2018,Adults & Housing Department,Hayes Park Nursing Home,Nursing Short Stay,944.52,0.00,Nursing Care
25/04/2018,Adults & Housing Department,Hayes Park Nursing Home,Nursing Short Stay,944.52,0.00,Nursing Care
25/04/2018,Adults & Housing Department,Rushey Mead Manor Care Home,Nursing Short Stay,"1,555.48",0.00,Nursing Care
25/04/2018,Adults & Housing Department,Rushey Mead Manor Care Home,Nursing Short Stay,944.52,0.00,Nursing Care
25/04/2018,Adults & Housing Department,Rushey Mead Manor Care Home,Nursing Short Stay,944.52,0.00,Nursing Care
25/04/2018,Adults & Housing Department,Rushey Mead Manor Care Home,Nursing Short Stay,777.74,0.00,Nursing Care
25/04/2018,Adults & Housing Department,Rushey Mead Manor Care Home,Nursing Short Stay,944.52,0.00,Nursing Care
25/04/2018,Adults & Housing Department,Rushey Mead Manor Care Home,Nursing Short Stay,"1,555.48",0.00,Nursing Care
25/04/2018,Adults & Housing Department,Rushey Mead Manor Care Home,Nursing Short Stay,"1,281.85",0.00,Nursing Care
25/04/2018,Adults & Housing Department,Direct Health UK Ltd,Personal Care / Generic,703.53,0.00,Home Care
25/04/2018,Adults & Housing Department,Direct Health UK Ltd,Personal Care / Generic,542.75,0.00,Home Care
25/04/2018,Adults & Housing Department,Direct Health UK Ltd,Personal Care / Generic,945.65,0.00,Home Care
25/04/2018,Adults & Housing Department,Direct Health UK Ltd,Personal Care / Generic,556.35,0.00,Home Care
25/04/2018,Adults & Housing Department,Direct Health UK Ltd,Personal Care / Generic,889.41,0.00,Home Care
25/04/2018,Adults & Housing Department,Direct Health UK Ltd,Personal Care / Generic,761.91,0.00,Home Care
25/04/2018,Adults & Housing Department,Direct Health UK Ltd,Personal Care / Generic,831.18,0.00,Home Care
25/04/2018,Adults & Housing Department,Direct Health UK Ltd,Personal Care / Generic,747.34,0.00,Home Care
25/04/2018,Adults & Housing Department,Direct Health UK Ltd,Personal Care / Generic,874.93,0.00,Home Care
25/04/2018,Adults & Housing Department,Direct Health UK Ltd,Personal Care / Generic,809.19,0.00,Home Care
25/04/2018,Adults & Housing Department,Direct Health UK Ltd,Personal Care / Generic,535.95,0.00,Home Care
25/04/2018,Adults & Housing Department,Direct Health UK Ltd,Personal Care / Generic,579.56,0.00,Home Care
25/04/2018,Adults & Housing Department,Direct Health UK Ltd,Personal Care / Generic,977.33,0.00,Home Care
25/04/2018,Adults & Housing Department,Direct Health UK Ltd,Personal Care / Generic,827.67,0.00,Home Care
25/04/2018,Adults & Housing Department,Direct Health UK Ltd,Personal Care / Generic,699.98,0.00,Home Care
25/04/2018,Adults & Housing Department,Direct Health UK Ltd,Personal Care / Generic,710.78,0.00,Home Care
25/04/2018,Adults & Housing Department,Direct Health UK Ltd,Personal Care / Generic,579.70,0.00,Home Care
25/04/2018,Adults & Housing Department,Direct Health UK Ltd,Personal Care / Generic,729.14,0.00,Home Care
25/04/2018,Adults & Housing Department,Direct Health UK Ltd,Personal Care / Generic,540.08,0.00,Home Care
25/04/2018,Adults & Housing Department,Direct Health UK Ltd,Personal Care / Generic,"2,599.71",0.00,Home Care
25/04/2018,Adults & Housing Department,Direct Health UK Ltd,Personal Care / Generic,714.56,0.00,Home Care
25/04/2018,Adults & Housing Department,Direct Health UK Ltd,Personal Care / Generic,"1,057.81",0.00,Home Care
25/04/2018,Adults & Housing Department,Direct Health UK Ltd,Personal Care / Generic,"1,629.34",0.00,Home Care
25/04/2018,Adults & Housing Department,ENGLISH ROSE CARE LTD,Personal Care / Generic,901.70,0.00,Home Care
25/04/2018,Adults & Housing Department,ENGLISH ROSE CARE LTD,Personal Care / Generic,"1,840.11",0.00,Home Care
25/04/2018,Adults & Housing Department,ENGLISH ROSE CARE LTD,Personal Care / Generic,535.19,0.00,Home Care
25/04/2018,Adults & Housing Department,ENGLISH ROSE CARE LTD,Personal Care / Generic,820.96,0.00,Home Care
25/04/2018,Adults & Housing Department,ENGLISH ROSE CARE LTD,Personal Care / Generic,729.47,0.00,Home Care
25/04/2018,Adults & Housing Department,ENGLISH ROSE CARE LTD,Personal Care / Generic,538.86,0.00,Home Care
25/04/2018,Adults & Housing Department,ENGLISH ROSE CARE LTD,Personal Care / Generic,"2,701.94",0.00,Home Care
25/04/2018,Adults & Housing Department,ENGLISH ROSE CARE LTD,Personal Care / Generic,"1,759.20",0.00,Home Care
25/04/2018,Adults & Housing Department,UK Care Team Ltd,Personal Care / Generic,880.47,0.00,Home Care
25/04/2018,Adults & Housing Department,UK Care Team Ltd,Personal Care / Generic,565.28,0.00,Home Care
25/04/2018,Adults & Housing Department,UK TOP CARE LTD,Personal Care / Generic,"1,177.12",0.00,Home Care
25/04/2018,Adults & Housing Department,A.L.A.Care Ltd,Residential Permanent,"1,596.00",0.00,Residential Care
25/04/2018,Adults & Housing Department,A.L.A.Care Ltd,Residential Permanent,"1,596.00",0.00,Residential Care
25/04/2018,Adults & Housing Department,Aarons Unit,Residential Permanent,"7,900.00",0.00,Residential Care
25/04/2018,Adults & Housing Department,Aarons Unit,Residential Permanent,"5,420.00",0.00,Residential Care
25/04/2018,Adults & Housing Department,Aarons Unit,Residential Permanent,"1,780.00",0.00,Residential Care
25/04/2018,Adults & Housing Department,Aarons Unit,Residential Permanent,"1,780.00",0.00,Residential Care
25/04/2018,Adults & Housing Department,Abberdale House,Residential Permanent,"3,312.00",0.00,Residential Care
25/04/2018,Adults & Housing Department,Abberdale House,Residential Permanent,"1,938.00",0.00,Residential Care
25/04/2018,Adults & Housing Department,Abberdale House,Residential Permanent,"1,938.00",0.00,Residential Care
25/04/2018,Adults & Housing Department,Abberdale House,Residential Permanent,"1,938.00",0.00,Residential Care
25/04/2018,Adults & Housing Department,Abberdale House,Residential Permanent,"1,938.00",0.00,Residential Care
25/04/2018,Adults & Housing Department,Abberdale House,Residential Permanent,"1,938.00",0.00,Residential Care
25/04/2018,Adults & Housing Department,Abberdale House,Residential Permanent,"1,938.00",0.00,Residential Care
25/04/2018,Adults & Housing Department,Abberdale House,Residential Permanent,"1,938.00",0.00,Residential Care
25/04/2018,Adults & Housing Department,Abberdale House,Residential Permanent,"1,938.00",0.00,Residential Care
25/04/2018,Adults & Housing Department,Abberdale House,Residential Permanent,"1,938.00",0.00,Residential Care
25/04/2018,Adults & Housing Department,Abberdale House,Residential Permanent,"1,738.08",0.00,Residential Care
25/04/2018,Adults & Housing Department,Abberdale House,Residential Permanent,"1,738.08",0.00,Residential Care
25/04/2018,Adults & Housing Department,Abberdale House,Residential Permanent,"1,938.00",0.00,Residential Care
25/04/2018,Adults & Housing Department,Abberdale House,Residential Permanent,"1,738.08",0.00,Residential Care
25/04/2018,Adults & Housing Department,Abberdale House,Residential Permanent,"1,301.14",0.00,Residential Care
25/04/2018,Adults & Housing Department,Abbey Healthcare T/a Aaron Court,Residential Permanent,"1,738.08",0.00,Residential Care
25/04/2018,Adults & Housing Department,Abbey Healthcare T/a Aaron Court,Residential Permanent,"1,738.08",0.00,Residential Care
25/04/2018,Adults & Housing Department,Abbey Healthcare T/a Aaron Court,Residential Permanent,"1,938.00",0.00,Residential Care
25/04/2018,Adults & Housing Department,Abbey Healthcare T/a Aaron Court,Residential Permanent,"1,738.08",0.00,Residential Care
25/04/2018,Adults & Housing Department,Abbey Healthcare T/a Aaron Court,Residential Permanent,"1,738.08",0.00,Residential Care
25/04/2018,Adults & Housing Department,Abbey Healthcare T/a Aaron Court,Residential Permanent,"1,938.00",0.00,Residential Care
25/04/2018,Adults & Housing Department,Abbey Healthcare T/a Aaron Court,Residential Permanent,"1,738.08",0.00,Residential Care
25/04/2018,Adults & Housing Department,Abbey Healthcare T/a Aaron Court,Residential Permanent,"1,938.00",0.00,Residential Care
25/04/2018,Adults & Housing Department,Abbey Healthcare T/a Aaron Court,Residential Permanent,"1,738.08",0.00,Residential Care
25/04/2018,Adults & Housing Department,Abbey Healthcare T/a Aaron Court,Residential Permanent,"1,938.00",0.00,Residential Care
25/04/2018,Adults & Housing Department,Abbey Healthcare T/a Aaron Court,Residential Permanent,"1,738.08",0.00,Residential Care
25/04/2018,Adults & Housing Department,Abbey Healthcare T/a Aaron Court,Residential Permanent,"1,938.00",0.00,Residential Care
25/04/2018,Adults & Housing Department,Abbey Healthcare T/a Aaron Court,Residential Permanent,"1,738.08",0.00,Residential Care
25/04/2018,Adults & Housing Department,Abbey Healthcare T/a Aaron Court,Residential Permanent,"1,938.00",0.00,Residential Care
25/04/2018,Adults & Housing Department,Abbey Healthcare T/a Aaron Court,Residential Permanent,"1,428.00",0.00,Residential Care
25/04/2018,Adults & Housing Department,Abbey Healthcare T/a Aaron Court,Residential Permanent,"1,738.08",0.00,Residential Care
25/04/2018,Adults & Housing Department,Abbey Healthcare T/a Aaron Court,Residential Permanent,"1,738.08",0.00,Residential Care
25/04/2018,Adults & Housing Department,ABBEY HOUSE,Residential Permanent,"1,766.64",0.00,Residential Care
25/04/2018,Adults & Housing Department,ABBEY HOUSE,Residential Permanent,"1,766.64",0.00,Residential Care
25/04/2018,Adults & Housing Department,ABBEY HOUSE,Residential Permanent,"1,738.08",0.00,Residential Care
25/04/2018,Adults & Housing Department,ABBEY HOUSE,Residential Permanent,"1,738.08",0.00,Residential Care
25/04/2018,Adults & Housing Department,ABBEY HOUSE,Residential Permanent,869.04,0.00,Residential Care
25/04/2018,Adults & Housing Department,ABBEY HOUSE,Residential Permanent,"1,738.08",0.00,Residential Care
25/04/2018,Adults & Housing Department,ABBEY HOUSE,Residential Permanent,"1,938.00",0.00,Residential Care
25/04/2018,Adults & Housing Department,ABBEY HOUSE,Residential Permanent,620.74,0.00,Residential Care
25/04/2018,Adults & Housing Department,ABBEY HOUSE,Residential Permanent,"1,938.00",0.00,Residential Care
25/04/2018,Adults & Housing Department,ABBEY HOUSE,Residential Permanent,"1,938.00",0.00,Residential Care
25/04/2018,Adults & Housing Department,ABBEY HOUSE,Residential Permanent,"1,738.08",0.00,Residential Care
25/04/2018,Adults & Housing Department,ABBEY HOUSE,Residential Permanent,"1,938.00",0.00,Residential Care
25/04/2018,Adults & Housing Department,ABBEY HOUSE,Residential Permanent,"1,738.08",0.00,Residential Care
25/04/2018,Adults & Housing Department,ABBEY HOUSE,Residential Permanent,"1,738.08",0.00,Residential Care
25/04/2018,Adults & Housing Department,ABBEY HOUSE,Residential Permanent,"1,738.08",0.00,Residential Care
25/04/2018,Adults & Housing Department,ABBEY HOUSE,Residential Permanent,"1,938.00",0.00,Residential Care
25/04/2018,Adults & Housing Department,ABBEY HOUSE,Residential Permanent,"1,766.64",0.00,Residential Care
25/04/2018,Adults & Housing Department,ABBEY HOUSE,Residential Permanent,"2,304.00",0.00,Residential Care
25/04/2018,Adults & Housing Department,ABBEY HOUSE,Residential Permanent,"1,938.00",0.00,Residential Care
25/04/2018,Adults & Housing Department,ABBEY HOUSE,Residential Permanent,"1,938.00",0.00,Residential Care
25/04/2018,Adults & Housing Department,ABBEY HOUSE,Residential Permanent,"1,938.00",0.00,Residential Care
25/04/2018,Adults & Housing Department,ABBEY HOUSE,Residential Permanent,"1,938.00",0.00,Residential Care
25/04/2018,Adults & Housing Department,ABBEY HOUSE,Residential Permanent,"1,738.08",0.00,Residential Care
25/04/2018,Adults & Housing Department,ABBEY HOUSE,Residential Permanent,"1,738.08",0.00,Residential Care
25/04/2018,Adults & Housing Department,ABBEY HOUSE,Residential Permanent,"1,738.08",0.00,Residential Care
25/04/2018,Adults & Housing Department,ABBEY HOUSE,Residential Permanent,"1,738.08",0.00,Residential Care
25/04/2018,Adults & Housing Department,ABBEY HOUSE,Residential Permanent,"5,376.00",0.00,Residential Care
25/04/2018,Adults & Housing Department,ABBEY HOUSE,Residential Permanent,"1,738.08",0.00,Residential Care
25/04/2018,Adults & Housing Department,ABBEY HOUSE,Residential Permanent,"1,938.00",0.00,Residential Care
25/04/2018,Adults & Housing Department,ABBEY HOUSE,Residential Permanent,"1,938.00",0.00,Residential Care
25/04/2018,Adults & Housing Department,ABBEY HOUSE,Residential Permanent,"1,938.00",0.00,Residential Care
25/04/2018,Adults & Housing Department,ABBEY HOUSE,Residential Permanent,"1,738.08",0.00,Residential Care
25/04/2018,Adults & Housing Department,ABBEY HOUSE,Residential Permanent,"1,738.08",0.00,Residential Care
25/04/2018,Adults & Housing Department,ABBEY HOUSE,Residential Permanent,"1,938.00",0.00,Residential Care
25/04/2018,Adults & Housing Department,ABBEY HOUSE,Residential Permanent,869.04,0.00,Residential Care
25/04/2018,Adults & Housing Department,Abbotsford Care Ltd T/a Diamond House,Residential Permanent,"1,938.00",0.00,Residential Care
25/04/2018,Adults & Housing Department,Abbotsford Care Ltd T/a Diamond House,Residential Permanent,596.00,0.00,Residential Care
25/04/2018,Adults & Housing Department,Abbotsford Care Ltd T/a Diamond House,Residential Permanent,"1,938.00",0.00,Residential Care
25/04/2018,Adults & Housing Department,Abbotsford Care Ltd T/a Diamond House,Residential Permanent,"1,738.08",0.00,Residential Care
25/04/2018,Adults & Housing Department,Abbotsford Care Ltd T/a Diamond House,Residential Permanent,"1,938.00",0.00,Residential Care
25/04/2018,Adults & Housing Department,Abbotsford Care Ltd T/a Diamond House,Residential Permanent,"1,738.08",0.00,Residential Care
25/04/2018,Adults & Housing Department,Abbotsford Care Ltd T/a Diamond House,Residential Permanent,"1,938.00",0.00,Residential Care
25/04/2018,Adults & Housing Department,Abbotsford Care Ltd T/a Diamond House,Residential Permanent,"1,738.08",0.00,Residential Care
25/04/2018,Adults & Housing Department,Abbotsford Care Ltd T/a Diamond House,Residential Permanent,"1,738.08",0.00,Residential Care
25/04/2018,Adults & Housing Department,Abbotsford Care Ltd T/a Diamond House,Residential Permanent,"1,938.00",0.00,Residential Care
25/04/2018,Adults & Housing Department,Abbotsford Care Ltd T/a Diamond House,Residential Permanent,796.00,0.00,Residential Care
25/04/2018,Adults & Housing Department,Abbotsford Care Ltd T/a Diamond House,Residential Permanent,"1,938.00",0.00,Residential Care
25/04/2018,Adults & Housing Department,Abbotsford Care Ltd T/a Diamond House,Residential Permanent,"1,738.08",0.00,Residential Care
25/04/2018,Adults & Housing Department,Abbotsford Care Ltd T/a Diamond House,Residential Permanent,899.79,0.00,Residential Care
25/04/2018,Adults & Housing Department,Abbotsford Care Ltd T/a Diamond House,Residential Permanent,"1,738.08",0.00,Residential Care
25/04/2018,Adults & Housing Department,Abbotsford Care Ltd T/a Diamond House,Residential Permanent,"1,938.00",0.00,Residential Care
25/04/2018,Adults & Housing Department,Abbotsford Care Ltd T/a Diamond House,Residential Permanent,"1,938.00",0.00,Residential Care
25/04/2018,Adults & Housing Department,Abbotsford Care Ltd T/a Diamond House,Residential Permanent,969.00,0.00,Residential Care
25/04/2018,Adults & Housing Department,Abbotsford Care Ltd T/a Diamond House,Residential Permanent,"1,938.00",0.00,Residential Care
25/04/2018,Adults & Housing Department,Abbotsford Care Ltd T/a Diamond House,Residential Permanent,"1,738.08",0.00,Residential Care
25/04/2018,Adults & Housing Department,Abbotsford Care Ltd T/a Diamond House,Residential Permanent,"1,738.08",0.00,Residential Care
25/04/2018,Adults & Housing Department,Abbotsford Care Ltd T/a Diamond House,Residential Permanent,"1,938.00",0.00,Residential Care
25/04/2018,Adults & Housing Department,Abbotsford Care Ltd T/a Diamond House,Residential Permanent,"1,938.00",0.00,Residential Care
25/04/2018,Adults & Housing Department,Abbotsford Care Ltd T/a Diamond House,Residential Permanent,"1,738.08",0.00,Residential Care
25/04/2018,Adults & Housing Department,Abbotsford Care Ltd T/a Diamond House,Residential Permanent,"1,738.08",0.00,Residential Care
25/04/2018,Adults & Housing Department,Abbotsford Care Ltd T/a Diamond House,Residential Permanent,"1,938.00",0.00,Residential Care
25/04/2018,Adults & Housing Department,Ala Care Ltd,Residential Permanent,"1,900.00",0.00,Residential Care
25/04/2018,Adults & Housing Department,ALLAG CARE LIMITED T/AS SYCAMORE COTTAGE,Residential Permanent,"1,780.00",0.00,Residential Care
25/04/2018,Adults & Housing Department,AMAFHH HEALTHCARE LTD T/A QUARRY HILL GRANGE HOME,Residential Permanent,"1,596.00",0.00,Residential Care
25/04/2018,Adults & Housing Department,Apple House Leices Ltd T/A Apple House,Residential Permanent,"1,624.00",0.00,Residential Care
25/04/2018,Adults & Housing Department,Apple House Leices Ltd T/A Apple House,Residential Permanent,"1,624.00",0.00,Residential Care
25/04/2018,Adults & Housing Department,Apple House Leices Ltd T/A Apple House,Residential Permanent,"1,624.00",0.00,Residential Care
25/04/2018,Adults & Housing Department,Apple House Leices Ltd T/A Apple House,Residential Permanent,"1,624.00",0.00,Residential Care
25/04/2018,Adults & Housing Department,APPLEWOOD HOUSE AND APARTMENT,Residential Permanent,"1,624.00",0.00,Residential Care
25/04/2018,Adults & Housing Department,APPLEWOOD HOUSE AND APARTMENT,Residential Permanent,"6,100.00",0.00,Residential Care
25/04/2018,Adults & Housing Department,Arbor House,Residential Permanent,"1,738.08",0.00,Residential Care
25/04/2018,Adults & Housing Department,Arbor House,Residential Permanent,"1,738.08",0.00,Residential Care
25/04/2018,Adults & Housing Department,Arbor House,Residential Permanent,"1,738.08",0.00,Residential Care
25/04/2018,Adults & Housing Department,Arbor House,Residential Permanent,869.04,0.00,Residential Care
25/04/2018,Adults & Housing Department,Arbor House,Residential Permanent,"1,738.08",0.00,Residential Care
25/04/2018,Adults & Housing Department,Arbor House,Residential Permanent,"1,738.08",0.00,Residential Care
25/04/2018,Adults & Housing Department,Arbor House,Residential Permanent,"1,117.34",0.00,Residential Care
25/04/2018,Adults & Housing Department,Arbor House,Residential Permanent,"1,738.08",0.00,Residential Care
25/04/2018,Adults & Housing Department,Arbor House,Residential Permanent,"1,938.00",0.00,Residential Care
25/04/2018,Adults & Housing Department,Arbor House,Residential Permanent,"1,938.00",0.00,Residential Care
25/04/2018,Adults & Housing Department,Arbor House,Residential Permanent,"1,738.08",0.00,Residential Care
25/04/2018,Adults & Housing Department,Arbor House,Residential Permanent,"1,938.00",0.00,Residential Care
25/04/2018,Adults & Housing Department,Arbor House,Residential Permanent,"1,738.08",0.00,Residential Care
25/04/2018,Adults & Housing Department,Arbor House,Residential Permanent,"1,738.08",0.00,Residential Care
25/04/2018,Adults & Housing Department,Arbor House,Residential Permanent,"1,738.08",0.00,Residential Care
25/04/2018,Adults & Housing Department,Arbor House,Residential Permanent,"1,938.00",0.00,Residential Care
25/04/2018,Adults & Housing Department,Arbor House,Residential Permanent,"1,738.08",0.00,Residential Care
25/04/2018,Adults & Housing Department,Arbor House,Residential Permanent,"1,738.08",0.00,Residential Care
25/04/2018,Adults & Housing Department,Arbor House,Residential Permanent,"1,938.00",0.00,Residential Care
25/04/2018,Adults & Housing Department,Arbor House,Residential Permanent,"1,738.08",0.00,Residential Care
25/04/2018,Adults & Housing Department,Arbor House,Residential Permanent,"1,738.08",0.00,Residential Care
25/04/2018,Adults & Housing Department,Arbor House,Residential Permanent,"1,738.08",0.00,Residential Care
25/04/2018,Adults & Housing Department,Arbor House,Residential Permanent,869.04,0.00,Residential Care
25/04/2018,Adults & Housing Department,Arbor House,Residential Permanent,"1,938.00",0.00,Residential Care
25/04/2018,Adults & Housing Department,Arbor House,Residential Permanent,"1,738.08",0.00,Residential Care
25/04/2018,Adults & Housing Department,Arbor House,Residential Permanent,"1,738.08",0.00,Residential Care
25/04/2018,Adults & Housing Department,Arbor House,Residential Permanent,"1,738.08",0.00,Residential Care
25/04/2018,Adults & Housing Department,Arbor House,Residential Permanent,"1,738.08",0.00,Residential Care
25/04/2018,Adults & Housing Department,Ashleigh Nursing Home,Residential Permanent,"1,910.60",0.00,Residential Care
25/04/2018,Adults & Housing Department,Ashleigh Nursing Home,Residential Permanent,"1,938.00",0.00,Residential Care
25/04/2018,Adults & Housing Department,Ashton Lodge,Residential Permanent,"1,738.08",0.00,Residential Care
25/04/2018,Adults & Housing Department,Ashton Lodge,Residential Permanent,"1,738.08",0.00,Residential Care
25/04/2018,Adults & Housing Department,Ashton Lodge,Residential Permanent,"1,558.56",0.00,Residential Care
25/04/2018,Adults & Housing Department,Ashton Lodge,Residential Permanent,"1,738.08",0.00,Residential Care
25/04/2018,Adults & Housing Department,Ashton Lodge,Residential Permanent,"1,738.08",0.00,Residential Care
25/04/2018,Adults & Housing Department,Ashton Lodge,Residential Permanent,"1,938.00",0.00,Residential Care
25/04/2018,Adults & Housing Department,Ashton Lodge,Residential Permanent,"1,938.00",0.00,Residential Care
25/04/2018,Adults & Housing Department,Ashton Lodge,Residential Permanent,"1,738.08",0.00,Residential Care
25/04/2018,Adults & Housing Department,Ashton Lodge,Residential Permanent,"1,738.08",0.00,Residential Care
25/04/2018,Adults & Housing Department,Ashton Lodge,Residential Permanent,"1,938.00",0.00,Residential Care
25/04/2018,Adults & Housing Department,Ashton Lodge,Residential Permanent,"1,738.08",0.00,Residential Care
25/04/2018,Adults & Housing Department,Ashton Lodge,Residential Permanent,"1,938.00",0.00,Residential Care
25/04/2018,Adults & Housing Department,Ashton Lodge,Residential Permanent,"1,738.08",0.00,Residential Care
25/04/2018,Adults & Housing Department,Ashton Lodge,Residential Permanent,"1,938.00",0.00,Residential Care
25/04/2018,Adults & Housing Department,Ashton Lodge,Residential Permanent,"1,938.00",0.00,Residential Care
25/04/2018,Adults & Housing Department,Ashton Lodge,Residential Permanent,"1,738.08",0.00,Residential Care
25/04/2018,Adults & Housing Department,Ashton Lodge,Residential Permanent,"1,938.00",0.00,Residential Care
25/04/2018,Adults & Housing Department,ASPIRE HEALTH AND CARE LIMITED T/A BODEN HOUSE,Residential Permanent,"1,766.64",0.00,Residential Care
25/04/2018,Adults & Housing Department,ASPIRE HEALTH AND CARE LIMITED T/A BODEN HOUSE,Residential Permanent,"4,633.36",0.00,Residential Care
25/04/2018,Adults & Housing Department,ASPIRE HEALTH AND CARE LIMITED T/A BODEN HOUSE,Residential Permanent,"5,262.00",0.00,Residential Care
25/04/2018,Adults & Housing Department,ASPIRE HEALTH AND CARE LIMITED T/A BODEN HOUSE,Residential Permanent,"1,938.00",0.00,Residential Care
25/04/2018,Adults & Housing Department,Autism Care (Uk) Ltd,Residential Permanent,"6,302.32",0.00,Residential Care
25/04/2018,Adults & Housing Department,Autism Plus Ltd,Residential Permanent,"9,156.20",0.00,Residential Care
25/04/2018,Adults & Housing Department,Avery Homes Grantham Ltd,Residential Permanent,"1,780.00",0.00,Residential Care
25/04/2018,Adults & Housing Department,Avery Homes Grantham Ltd,Residential Permanent,532.40,0.00,Residential Care
25/04/2018,Adults & Housing Department,Aylesham Court Nursing Home,Residential Permanent,"1,596.00",0.00,Residential Care
25/04/2018,Adults & Housing Department,AYLESTONE GRANGE,Residential Permanent,"1,938.00",0.00,Residential Care
25/04/2018,Adults & Housing Department,AYLESTONE GRANGE,Residential Permanent,"2,111.00",0.00,Residential Care
25/04/2018,Adults & Housing Department,AYLESTONE GRANGE,Residential Permanent,"1,938.00",0.00,Residential Care
25/04/2018,Adults & Housing Department,AYLESTONE GRANGE,Residential Permanent,"2,136.00",0.00,Residential Care
25/04/2018,Adults & Housing Department,BARCLAY HOUSE T/A: Plans4Rehab Limited,Residential Permanent,"1,766.64",0.00,Residential Care
25/04/2018,Adults & Housing Department,BARCLAY HOUSE T/A: Plans4Rehab Limited,Residential Permanent,"1,892.32",0.00,Residential Care
25/04/2018,Adults & Housing Department,BARCLAY HOUSE T/A: Plans4Rehab Limited,Residential Permanent,"1,766.64",0.00,Residential Care
25/04/2018,Adults & Housing Department,BARCLAY HOUSE T/A: Plans4Rehab Limited,Residential Permanent,"1,892.32",0.00,Residential Care
25/04/2018,Adults & Housing Department,Barkby Road Residential Home,Residential Permanent,"6,130.00",0.00,Residential Care
25/04/2018,Adults & Housing Department,Barkby Road Residential Home,Residential Permanent,"1,624.00",0.00,Residential Care
25/04/2018,Adults & Housing Department,Barkby Road Residential Home,Residential Permanent,"3,697.68",0.00,Residential Care
25/04/2018,Adults & Housing Department,Barkby Road Residential Home,Residential Permanent,"1,624.00",0.00,Residential Care
25/04/2018,Adults & Housing Department,Barkby Road Residential Home,Residential Permanent,"7,521.08",0.00,Residential Care
25/04/2018,Adults & Housing Department,Barkby Road Residential Home,Residential Permanent,"7,299.44",0.00,Residential Care
25/04/2018,Adults & Housing Department,Barkby Road Residential Home,Residential Permanent,"1,624.00",0.00,Residential Care
25/04/2018,Adults & Housing Department,Barkby Road Residential Home,Residential Permanent,"4,524.12",0.00,Residential Care
25/04/2018,Adults & Housing Department,Barkby Road Residential Home,Residential Permanent,"1,624.00",0.00,Residential Care
25/04/2018,Adults & Housing Department,Barkby Road Residential Home,Residential Permanent,"1,624.00",0.00,Residential Care
25/04/2018,Adults & Housing Department,Baron Park Nursing Home,Residential Permanent,"1,780.00",0.00,Residential Care
25/04/2018,Adults & Housing Department,Baron Park Nursing Home,Residential Permanent,"1,940.00",0.00,Residential Care
25/04/2018,Adults & Housing Department,BEECH TREES,Residential Permanent,"1,676.00",0.00,Residential Care
25/04/2018,Adults & Housing Department,BEECH TREES,Residential Permanent,"5,846.20",0.00,Residential Care
25/04/2018,Adults & Housing Department,BEECHWOOD,Residential Permanent,"2,919.08",0.00,Residential Care
25/04/2018,Adults & Housing Department,BEECHWOOD,Residential Permanent,"1,766.64",0.00,Residential Care
25/04/2018,Adults & Housing Department,BODNANT HOUSE,Residential Permanent,"1,558.56",0.00,Residential Care
25/04/2018,Adults & Housing Department,BODNANT HOUSE,Residential Permanent,"1,558.56",0.00,Residential Care
25/04/2018,Adults & Housing Department,BODNANT HOUSE,Residential Permanent,"1,766.64",0.00,Residential Care
25/04/2018,Adults & Housing Department,BODNANT HOUSE,Residential Permanent,"1,558.56",0.00,Residential Care
25/04/2018,Adults & Housing Department,BODNANT HOUSE,Residential Permanent,"3,210.00",0.00,Residential Care
25/04/2018,Adults & Housing Department,BODNANT HOUSE,Residential Permanent,"1,938.00",0.00,Residential Care
25/04/2018,Adults & Housing Department,Broadoak Group of Care Homes T/A: Primrose Lodge,Residential Permanent,"1,738.08",0.00,Residential Care
25/04/2018,Adults & Housing Department,Brooklyn Care Home,Residential Permanent,"9,704.00",0.00,Residential Care
25/04/2018,Adults & Housing Department,Brooklyn Care Home,Residential Permanent,"1,624.00",0.00,Residential Care
25/04/2018,Adults & Housing Department,BURGESS CARE LTD,Residential Permanent,"4,362.00",0.00,Residential Care
25/04/2018,Adults & Housing Department,BURGESS CARE LTD,Residential Permanent,"5,985.96",0.00,Residential Care
25/04/2018,Adults & Housing Department,BURGESS CARE LTD,Residential Permanent,"1,624.00",0.00,Residential Care
25/04/2018,Adults & Housing Department,Cedar Mews - Birstall Care Service Limited,Residential Permanent,553.71,0.00,Residential Care
25/04/2018,Adults & Housing Department,Cedar Mews - Birstall Care Service Limited,Residential Permanent,703.43,0.00,Residential Care
25/04/2018,Adults & Housing Department,Charnwood Hall Nursing Home,Residential Permanent,"1,738.08",0.00,Residential Care
25/04/2018,Adults & Housing Department,Chartwell Care Services Ltd T/A Barclay Street,Residential Permanent,"1,938.00",0.00,Residential Care
25/04/2018,Adults & Housing Department,Chartwell Care Services Ltd T/A Barclay Street,Residential Permanent,"6,317.60",0.00,Residential Care
25/04/2018,Adults & Housing Department,Cherre Residential Care,Residential Permanent,"1,766.64",0.00,Residential Care
25/04/2018,Adults & Housing Department,Cherre Residential Care,Residential Permanent,"3,319.48",0.00,Residential Care
25/04/2018,Adults & Housing Department,Cherre Residential Care,Residential Permanent,662.88,0.00,Residential Care
25/04/2018,Adults & Housing Department,Cherre Residential Care,Residential Permanent,883.32,0.00,Residential Care
25/04/2018,Adults & Housing Department,Cherre Residential Care,Residential Permanent,883.32,0.00,Residential Care
25/04/2018,Adults & Housing Department,Cherre Residential Care,Residential Permanent,"1,640.45",0.00,Residential Care
25/04/2018,Adults & Housing Department,Cherre Residential Care,Residential Permanent,"11,817.48",0.00,Residential Care
25/04/2018,Adults & Housing Department,Cherre Residential Care,Residential Permanent,"1,766.64",0.00,Residential Care
25/04/2018,Adults & Housing Department,Cherre Residential Care,Residential Permanent,"11,817.48",0.00,Residential Care
25/04/2018,Adults & Housing Department,Cherre Residential Care,Residential Permanent,"5,908.74",0.00,Residential Care
25/04/2018,Adults & Housing Department,Cherre Residential Care,Residential Permanent,"1,766.64",0.00,Residential Care
25/04/2018,Adults & Housing Department,Cherre Residential Care,Residential Permanent,"10,973.37",0.00,Residential Care
25/04/2018,Adults & Housing Department,Cherre Residential Care,Residential Permanent,"2,862.12",0.00,Residential Care
25/04/2018,Adults & Housing Department,Cherre Residential Care,Residential Permanent,"1,431.06",0.00,Residential Care
25/04/2018,Adults & Housing Department,Cherre Residential Care,Residential Permanent,"1,766.64",0.00,Residential Care
25/04/2018,Adults & Housing Department,Cherre Residential Care,Residential Permanent,"2,442.04",0.00,Residential Care
25/04/2018,Adults & Housing Department,Cherre Residential Care,Residential Permanent,"5,908.74",0.00,Residential Care
25/04/2018,Adults & Housing Department,Cherre Residential Care,Residential Permanent,"1,766.64",0.00,Residential Care
25/04/2018,Adults & Housing Department,Cherre Residential Care,Residential Permanent,"1,766.64",0.00,Residential Care
25/04/2018,Adults & Housing Department,Cherre Residential Care,Residential Permanent,"1,766.64",0.00,Residential Care
25/04/2018,Adults & Housing Department,Cherre Residential Care,Residential Permanent,"1,766.64",0.00,Residential Care
25/04/2018,Adults & Housing Department,Cherre Residential Care,Residential Permanent,"1,766.64",0.00,Residential Care
25/04/2018,Adults & Housing Department,Cherre Residential Care,Residential Permanent,"3,261.56",0.00,Residential Care
25/04/2018,Adults & Housing Department,Cherre Residential Care,Residential Permanent,883.32,0.00,Residential Care
25/04/2018,Adults & Housing Department,Cherrytree,Residential Permanent,"1,780.00",0.00,Residential Care
25/04/2018,Adults & Housing Department,Chestnuts (Arnesby) Ltd,Residential Permanent,"2,446.72",0.00,Residential Care
25/04/2018,Adults & Housing Department,Chestnuts (Arnesby) Ltd,Residential Permanent,"1,872.56",0.00,Residential Care
25/04/2018,Adults & Housing Department,Chestnuts (Arnesby) Ltd,Residential Permanent,"1,766.64",0.00,Residential Care
25/04/2018,Adults & Housing Department,Chestnuts (Arnesby) Ltd,Residential Permanent,"1,938.00",0.00,Residential Care
25/04/2018,Adults & Housing Department,Chhg Ltd T/A Gretton Homes,Residential Permanent,"7,602.12",0.00,Residential Care
25/04/2018,Adults & Housing Department,Chhg Ltd T/A Gretton Homes,Residential Permanent,"5,720.00",0.00,Residential Care
25/04/2018,Adults & Housing Department,Chhg Ltd T/A Gretton Homes,Residential Permanent,"1,624.00",0.00,Residential Care
25/04/2018,Adults & Housing Department,Christchurch Court,Residential Permanent,"1,780.00",0.00,Residential Care
25/04/2018,Adults & Housing Department,Christchurch Court,Residential Permanent,"3,453.56",0.00,Residential Care
25/04/2018,Adults & Housing Department,Christchurch Court,Residential Permanent,"6,208.12",0.00,Residential Care
25/04/2018,Adults & Housing Department,CLARENDON MEWS CARE LIMITED,Residential Permanent,"1,938.00",0.00,Residential Care
25/04/2018,Adults & Housing Department,CLARENDON MEWS CARE LIMITED,Residential Permanent,"1,938.00",0.00,Residential Care
25/04/2018,Adults & Housing Department,CLARENDON MEWS CARE LIMITED,Residential Permanent,"1,938.00",0.00,Residential Care
25/04/2018,Adults & Housing Department,CLARENDON MEWS CARE LIMITED,Residential Permanent,"1,938.00",0.00,Residential Care
25/04/2018,Adults & Housing Department,CLARENDON MEWS CARE LIMITED,Residential Permanent,"1,938.00",0.00,Residential Care
25/04/2018,Adults & Housing Department,CLARENDON MEWS CARE LIMITED,Residential Permanent,"1,938.00",0.00,Residential Care
25/04/2018,Adults & Housing Department,CLARENDON MEWS CARE LIMITED,Residential Permanent,"1,738.08",0.00,Residential Care
25/04/2018,Adults & Housing Department,CLARENDON MEWS CARE LIMITED,Residential Permanent,"1,938.00",0.00,Residential Care
25/04/2018,Adults & Housing Department,CLARENDON MEWS CARE LIMITED,Residential Permanent,"1,938.00",0.00,Residential Care
25/04/2018,Adults & Housing Department,CLARENDON MEWS CARE LIMITED,Residential Permanent,"1,938.00",0.00,Residential Care
25/04/2018,Adults & Housing Department,CLARENDON MEWS CARE LIMITED,Residential Permanent,"1,738.08",0.00,Residential Care
25/04/2018,Adults & Housing Department,CLARENDON MEWS CARE LIMITED,Residential Permanent,"1,738.08",0.00,Residential Care
25/04/2018,Adults & Housing Department,CLARENDON MEWS CARE LIMITED,Residential Permanent,"4,062.00",0.00,Residential Care
25/04/2018,Adults & Housing Department,CLARENDON MEWS CARE LIMITED,Residential Permanent,"1,938.00",0.00,Residential Care
25/04/2018,Adults & Housing Department,CLARENDON MEWS CARE LIMITED,Residential Permanent,899.79,0.00,Residential Care
25/04/2018,Adults & Housing Department,CLARENDON MEWS CARE LIMITED,Residential Permanent,"1,938.00",0.00,Residential Care
25/04/2018,Adults & Housing Department,CLARENDON MEWS CARE LIMITED,Residential Permanent,"1,738.08",0.00,Residential Care
25/04/2018,Adults & Housing Department,CLARENDON MEWS CARE LIMITED,Residential Permanent,"1,938.00",0.00,Residential Care
25/04/2018,Adults & Housing Department,CLARENDON MEWS CARE LIMITED,Residential Permanent,"1,938.00",0.00,Residential Care
25/04/2018,Adults & Housing Department,CLARENDON MEWS CARE LIMITED,Residential Permanent,"1,938.00",0.00,Residential Care
25/04/2018,Adults & Housing Department,CLARENDON MEWS CARE LIMITED,Residential Permanent,"1,938.00",0.00,Residential Care
25/04/2018,Adults & Housing Department,CLARENDON MEWS CARE LIMITED,Residential Permanent,"1,938.00",0.00,Residential Care
25/04/2018,Adults & Housing Department,CLARENDON MEWS CARE LIMITED,Residential Permanent,"1,938.00",0.00,Residential Care
25/04/2018,Adults & Housing Department,CLARENDON MEWS CARE LIMITED,Residential Permanent,761.36,0.00,Residential Care
25/04/2018,Adults & Housing Department,CLARENDON MEWS CARE LIMITED,Residential Permanent,"1,738.08",0.00,Residential Care
25/04/2018,Adults & Housing Department,Community Living Project,Residential Permanent,"3,660.00",0.00,Residential Care
25/04/2018,Adults & Housing Department,Community Living Project,Residential Permanent,"1,624.00",0.00,Residential Care
25/04/2018,Adults & Housing Department,Community Living Project,Residential Permanent,"2,812.40",0.00,Residential Care
25/04/2018,Adults & Housing Department,COOPER HOUSE,Residential Permanent,"1,738.08",0.00,Residential Care
25/04/2018,Adults & Housing Department,COOPER HOUSE,Residential Permanent,"1,738.08",0.00,Residential Care
25/04/2018,Adults & Housing Department,COOPER HOUSE,Residential Permanent,"1,738.08",0.00,Residential Care
25/04/2018,Adults & Housing Department,COOPER HOUSE,Residential Permanent,"1,738.08",0.00,Residential Care
25/04/2018,Adults & Housing Department,COOPER HOUSE,Residential Permanent,"1,738.08",0.00,Residential Care
25/04/2018,Adults & Housing Department,COOPER HOUSE,Residential Permanent,"1,738.08",0.00,Residential Care
25/04/2018,Adults & Housing Department,COOPER HOUSE,Residential Permanent,"1,738.08",0.00,Residential Care
25/04/2018,Adults & Housing Department,COOPER HOUSE,Residential Permanent,"1,738.08",0.00,Residential Care
25/04/2018,Adults & Housing Department,COOPER HOUSE,Residential Permanent,"1,738.08",0.00,Residential Care
25/04/2018,Adults & Housing Department,COOPER HOUSE,Residential Permanent,"1,738.08",0.00,Residential Care
25/04/2018,Adults & Housing Department,COOPER HOUSE,Residential Permanent,869.04,0.00,Residential Care
25/04/2018,Adults & Housing Department,COOPER HOUSE,Residential Permanent,620.74,0.00,Residential Care
25/04/2018,Adults & Housing Department,COOPER HOUSE,Residential Permanent,869.04,0.00,Residential Care
25/04/2018,Adults & Housing Department,COOPER HOUSE,Residential Permanent,"1,938.00",0.00,Residential Care
25/04/2018,Adults & Housing Department,COOPER HOUSE,Residential Permanent,"1,738.08",0.00,Residential Care
25/04/2018,Adults & Housing Department,COOPER HOUSE,Residential Permanent,"1,738.08",0.00,Residential Care
25/04/2018,Adults & Housing Department,COOPER HOUSE,Residential Permanent,"1,938.00",0.00,Residential Care
25/04/2018,Adults & Housing Department,COOPER HOUSE,Residential Permanent,"1,738.08",0.00,Residential Care
25/04/2018,Adults & Housing Department,COOPER HOUSE,Residential Permanent,"1,938.00",0.00,Residential Care
25/04/2018,Adults & Housing Department,COOPER HOUSE,Residential Permanent,"1,738.08",0.00,Residential Care
25/04/2018,Adults & Housing Department,Craegmoor Facilities Co Ltd,Residential Permanent,"6,628.00",0.00,Residential Care
25/04/2018,Adults & Housing Department,Craegmoor Facilities Co Ltd t/a Craegmoor Charnwood Lodge,Residential Permanent,"1,780.00",0.00,Residential Care
25/04/2018,Adults & Housing Department,Craegmoor Facilities Co Ltd t/a Craegmoor Charnwood Lodge,Residential Permanent,"1,780.00",0.00,Residential Care
25/04/2018,Adults & Housing Department,Craegmoor Facilities Co Ltd t/a Craegmoor Charnwood Lodge,Residential Permanent,"6,058.84",0.00,Residential Care
25/04/2018,Adults & Housing Department,Craegmoor Facilities Co Ltd t/a Craegmoor Landsdowne Road,Residential Permanent,"2,754.00",0.00,Residential Care
25/04/2018,Adults & Housing Department,Craegmoor Facilities Co Ltd t/a Craegmoor Landsdowne Road,Residential Permanent,600.00,0.00,Residential Care
25/04/2018,Adults & Housing Department,Craegmoor Facilities Co Ltd t/a Craegmoor Landsdowne Road,Residential Permanent,"1,192.48",0.00,Residential Care
25/04/2018,Adults & Housing Department,Craegmoor Facilities Co Ltd t/a Craegmoor Landsdowne Road,Residential Permanent,"1,766.64",0.00,Residential Care
25/04/2018,Adults & Housing Department,Craegmoor Facilities Co Ltd t/a Craegmoor Landsdowne Road,Residential Permanent,"1,766.64",0.00,Residential Care
25/04/2018,Adults & Housing Department,Craegmoor Facilities Co Ltd t/a Craegmoor Landsdowne Road,Residential Permanent,"1,766.64",0.00,Residential Care
25/04/2018,Adults & Housing Department,Craegmoor Facilities Co Ltd t/a Craegmoor Landsdowne Road,Residential Permanent,"1,766.64",0.00,Residential Care
25/04/2018,Adults & Housing Department,Craegmoor Facilities Co Ltd t/a Craegmoor Landsdowne Road,Residential Permanent,"1,554.92",0.00,Residential Care
25/04/2018,Adults & Housing Department,Craegmoor Facilities Co Ltd t/a Craegmoor Landsdowne Road,Residential Permanent,"1,938.00",0.00,Residential Care
25/04/2018,Adults & Housing Department,Craegmoor Facilities Co Ltd t/a Craegmoor Landsdowne Road,Residential Permanent,"1,766.64",0.00,Residential Care
25/04/2018,Adults & Housing Department,Craegmoor Facilities Co Ltd t/a Craegmoor Landsdowne Road,Residential Permanent,"1,483.96",0.00,Residential Care
25/04/2018,Adults & Housing Department,Craegmoor Facilities Co Ltd t/a Craegmoor Landsdowne Road,Residential Permanent,"1,157.12",0.00,Residential Care
25/04/2018,Adults & Housing Department,Craegmoor Facilities Co Ltd t/a Craegmoor Landsdowne Road,Residential Permanent,"1,766.64",0.00,Residential Care
25/04/2018,Adults & Housing Department,Craegmoor Facilities Co Ltd t/a Craegmoor Landsdowne Road,Residential Permanent,"1,766.64",0.00,Residential Care
25/04/2018,Adults & Housing Department,Craegmoor Facilities Co Ltd t/a Craegmoor Landsdowne Road,Residential Permanent,"1,766.64",0.00,Residential Care
25/04/2018,Adults & Housing Department,Craegmoor Facilities Co Ltd t/a Craegmoor Landsdowne Road,Residential Permanent,"1,766.64",0.00,Residential Care
25/04/2018,Adults & Housing Department,Craegmoor Facilities Co Ltd t/a Craegmoor Landsdowne Road,Residential Permanent,"1,766.64",0.00,Residential Care
25/04/2018,Adults & Housing Department,Craegmoor Facilities Co Ltd t/a Craegmoor Landsdowne Road,Residential Permanent,"1,766.64",0.00,Residential Care
25/04/2018,Adults & Housing Department,Craegmoor Facilities Co Ltd t/a Craegmoor Landsdowne Road,Residential Permanent,"1,766.64",0.00,Residential Care
25/04/2018,Adults & Housing Department,Craegmoor Facilities Co Ltd t/a Craegmoor Landsdowne Road,Residential Permanent,"1,766.64",0.00,Residential Care
25/04/2018,Adults & Housing Department,Craegmoor Facilities Co Ltd t/a Craegmoor Landsdowne Road,Residential Permanent,"1,766.64",0.00,Residential Care
25/04/2018,Adults & Housing Department,Craegmoor Facilities Co Ltd t/a Craegmoor Landsdowne Road,Residential Permanent,"1,766.64",0.00,Residential Care
25/04/2018,Adults & Housing Department,Craegmoor Facilities Co Ltd t/a Craegmoor Landsdowne Road,Residential Permanent,"1,766.64",0.00,Residential Care
25/04/2018,Adults & Housing Department,Craegmoor Facilities Co Ltd t/a Craegmoor Landsdowne Road,Residential Permanent,"1,766.64",0.00,Residential Care
25/04/2018,Adults & Housing Department,Craegmoor Facilities Co Ltd t/a Craegmoor Landsdowne Road,Residential Permanent,"1,295.84",0.00,Residential Care
25/04/2018,Adults & Housing Department,Craegmoor Facilities Co. Ltd t/a Craegmoor Halifax Drive,Residential Permanent,977.96,0.00,Residential Care
25/04/2018,Adults & Housing Department,Craegmoor Facilities Co. Ltd t/a Craegmoor Halifax Drive,Residential Permanent,"1,766.64",0.00,Residential Care
25/04/2018,Adults & Housing Department,Craegmoor Facilities Co. Ltd t/a Craegmoor Halifax Drive,Residential Permanent,"1,938.00",0.00,Residential Care
25/04/2018,Adults & Housing Department,Craegmoor Facilities Co. Ltd t/a Craegmoor Halifax Drive,Residential Permanent,"1,766.64",0.00,Residential Care
25/04/2018,Adults & Housing Department,Craegmoor Facilities Co. Ltd t/a Craegmoor Halifax Drive,Residential Permanent,"1,766.64",0.00,Residential Care
25/04/2018,Adults & Housing Department,Craegmoor Facilities Co. Ltd t/a Craegmoor Halifax Drive,Residential Permanent,"1,938.00",0.00,Residential Care
25/04/2018,Adults & Housing Department,Craegmoor Facilities Co. Ltd t/a Craegmoor Halifax Drive,Residential Permanent,500.00,0.00,Residential Care
25/04/2018,Adults & Housing Department,Craegmoor Facilities Co. Ltd t/a Craegmoor Halifax Drive,Residential Permanent,"1,766.64",0.00,Residential Care
25/04/2018,Adults & Housing Department,Craegmoor Facilities Co. Ltd t/a Craegmoor Halifax Drive,Residential Permanent,"1,766.64",0.00,Residential Care
25/04/2018,Adults & Housing Department,Craegmoor Facilities Co. Ltd t/a Craegmoor Halifax Drive,Residential Permanent,"1,766.64",0.00,Residential Care
25/04/2018,Adults & Housing Department,Craegmoor Facilities Co. Ltd t/a Craegmoor Halifax Drive,Residential Permanent,"1,766.64",0.00,Residential Care
25/04/2018,Adults & Housing Department,Craegmoor Facilities Co. Ltd t/a Craegmoor Halifax Drive,Residential Permanent,"1,766.64",0.00,Residential Care
25/04/2018,Adults & Housing Department,Craegmoor Facilities Co. Ltd t/a Craegmoor Halifax Drive,Residential Permanent,"1,766.64",0.00,Residential Care
25/04/2018,Adults & Housing Department,Craegmoor Facilities Co. Ltd t/a Craegmoor Halifax Drive,Residential Permanent,"1,766.64",0.00,Residential Care
25/04/2018,Adults & Housing Department,Craegmoor Facilities Co. Ltd t/a Craegmoor Halifax Drive,Residential Permanent,"1,766.64",0.00,Residential Care
25/04/2018,Adults & Housing Department,Craegmoor Facilities Co. Ltd t/a Craegmoor Halifax Drive,Residential Permanent,"1,766.64",0.00,Residential Care
25/04/2018,Adults & Housing Department,Craegmoor Facilities Co. Ltd t/a Craegmoor Halifax Drive,Residential Permanent,"1,766.64",0.00,Residential Care
25/04/2018,Adults & Housing Department,Craegmoor Facilities Co. Ltd t/a Craegmoor Halifax Drive,Residential Permanent,"1,323.24",0.00,Residential Care
25/04/2018,Adults & Housing Department,Craegmoor Facilities Co. Ltd t/a Craegmoor Halifax Drive,Residential Permanent,"1,766.64",0.00,Residential Care
25/04/2018,Adults & Housing Department,Craegmoor Facilities Co. Ltd t/a Craegmoor Halifax Drive,Residential Permanent,"1,766.64",0.00,Residential Care
25/04/2018,Adults & Housing Department,Craegmoor Facilities Co. Ltd t/a Craegmoor Halifax Drive,Residential Permanent,"1,152.52",0.00,Residential Care
25/04/2018,Adults & Housing Department,Craegmoor Facilities Co. Ltd t/a Craegmoor Halifax Drive,Residential Permanent,"1,766.64",0.00,Residential Care
25/04/2018,Adults & Housing Department,Craegmoor Facilities Co. Ltd t/a Craegmoor Halifax Drive,Residential Permanent,"1,766.64",0.00,Residential Care
25/04/2018,Adults & Housing Department,Craegmoor Healthcare Co. Ltd t/a The Meadows Nursing Home,Residential Permanent,"1,780.00",0.00,Residential Care
25/04/2018,Adults & Housing Department,CURTIS WESTON HOUSE,Residential Permanent,"1,596.00",0.00,Residential Care
25/04/2018,Adults & Housing Department,CURTIS WESTON HOUSE,Residential Permanent,"1,596.00",0.00,Residential Care
25/04/2018,Adults & Housing Department,CURTIS WESTON HOUSE,Residential Permanent,"1,596.00",0.00,Residential Care
25/04/2018,Adults & Housing Department,CURTIS WESTON HOUSE,Residential Permanent,"1,596.00",0.00,Residential Care
25/04/2018,Adults & Housing Department,CURTIS WESTON HOUSE,Residential Permanent,"1,780.00",0.00,Residential Care
25/04/2018,Adults & Housing Department,CURTIS WESTON HOUSE,Residential Permanent,"1,780.00",0.00,Residential Care
25/04/2018,Adults & Housing Department,CURTIS WESTON HOUSE,Residential Permanent,"1,596.00",0.00,Residential Care
25/04/2018,Adults & Housing Department,Dallington House,Residential Permanent,"1,596.00",0.00,Residential Care
25/04/2018,Adults & Housing Department,Dallington House,Residential Permanent,"1,596.00",0.00,Residential Care
25/04/2018,Adults & Housing Department,Damascus House,Residential Permanent,"1,624.00",0.00,Residential Care
25/04/2018,Adults & Housing Department,Deafway,Residential Permanent,"1,780.00",0.00,Residential Care
25/04/2018,Adults & Housing Department,Deafway,Residential Permanent,"2,872.00",0.00,Residential Care
25/04/2018,Adults & Housing Department,Deafway,Residential Permanent,"3,260.00",0.00,Residential Care
25/04/2018,Adults & Housing Department,Deafway,Residential Permanent,"4,680.00",0.00,Residential Care
25/04/2018,Adults & Housing Department,Devonshire Court,Residential Permanent,"1,780.00",0.00,Residential Care
25/04/2018,Adults & Housing Department,Devonshire Court,Residential Permanent,"1,596.00",0.00,Residential Care
25/04/2018,Adults & Housing Department,Devonshire Court,Residential Permanent,"1,780.00",0.00,Residential Care
25/04/2018,Adults & Housing Department,Devonshire Court,Residential Permanent,"1,596.00",0.00,Residential Care
25/04/2018,Adults & Housing Department,Diwali Ltd,Residential Permanent,"1,938.00",0.00,Residential Care
25/04/2018,Adults & Housing Department,Diwali Ltd,Residential Permanent,"1,938.00",0.00,Residential Care
25/04/2018,Adults & Housing Department,Diwali Ltd,Residential Permanent,"1,938.00",0.00,Residential Care
25/04/2018,Adults & Housing Department,Diwali Ltd,Residential Permanent,"1,738.08",0.00,Residential Care
25/04/2018,Adults & Housing Department,Diwali Ltd,Residential Permanent,"1,738.08",0.00,Residential Care
25/04/2018,Adults & Housing Department,Diwali Ltd,Residential Permanent,"1,938.00",0.00,Residential Care
25/04/2018,Adults & Housing Department,Diwali Ltd,Residential Permanent,"1,938.00",0.00,Residential Care
25/04/2018,Adults & Housing Department,Diwali Ltd,Residential Permanent,"1,938.00",0.00,Residential Care
25/04/2018,Adults & Housing Department,Diwali Ltd,Residential Permanent,"1,738.08",0.00,Residential Care
25/04/2018,Adults & Housing Department,Downing (Barwell) Ltd,Residential Permanent,"1,780.00",0.00,Residential Care
25/04/2018,Adults & Housing Department,Eastern Care Ltd T/a Newton House,Residential Permanent,"1,938.00",0.00,Residential Care
25/04/2018,Adults & Housing Department,Eastern Care Ltd T/a Newton House,Residential Permanent,"1,766.64",0.00,Residential Care
25/04/2018,Adults & Housing Department,Eastern Care Ltd T/a Newton House,Residential Permanent,"1,766.64",0.00,Residential Care
25/04/2018,Adults & Housing Department,Eastern Care Ltd T/a Newton House,Residential Permanent,"1,558.56",0.00,Residential Care
25/04/2018,Adults & Housing Department,Eastern Care Ltd T/a Newton House,Residential Permanent,"1,558.56",0.00,Residential Care
25/04/2018,Adults & Housing Department,Eastern Care Ltd T/a Newton House,Residential Permanent,"1,558.56",0.00,Residential Care
25/04/2018,Adults & Housing Department,Eastern Care Ltd T/a Newton House,Residential Permanent,"1,558.56",0.00,Residential Care
25/04/2018,Adults & Housing Department,Eastern Care Ltd T/a Newton House,Residential Permanent,"1,558.56",0.00,Residential Care
25/04/2018,Adults & Housing Department,Eastern Care Ltd T/a Newton House,Residential Permanent,"1,938.00",0.00,Residential Care
25/04/2018,Adults & Housing Department,Eastern Care Ltd T/a Newton House,Residential Permanent,"1,558.56",0.00,Residential Care
25/04/2018,Adults & Housing Department,Eastern Care Ltd T/a Newton House,Residential Permanent,"1,558.56",0.00,Residential Care
25/04/2018,Adults & Housing Department,Eastern Care Ltd T/a Newton House,Residential Permanent,"1,558.56",0.00,Residential Care
25/04/2018,Adults & Housing Department,Egerton Lodge Ltd,Residential Permanent,"1,541.92",0.00,Residential Care
25/04/2018,Adults & Housing Department,Egerton Lodge Ltd,Residential Permanent,"1,738.08",0.00,Residential Care
25/04/2018,Adults & Housing Department,Elliott Rest Homes,Residential Permanent,"1,938.00",0.00,Residential Care
25/04/2018,Adults & Housing Department,Elliott Rest Homes,Residential Permanent,"1,558.56",0.00,Residential Care
25/04/2018,Adults & Housing Department,Elliott Rest Homes,Residential Permanent,"1,766.64",0.00,Residential Care
25/04/2018,Adults & Housing Department,Elliott Rest Homes,Residential Permanent,"1,558.56",0.00,Residential Care
25/04/2018,Adults & Housing Department,Elliott Rest Homes,Residential Permanent,"1,558.56",0.00,Residential Care
25/04/2018,Adults & Housing Department,Elliott Rest Homes,Residential Permanent,"1,938.00",0.00,Residential Care
25/04/2018,Adults & Housing Department,Elliott Rest Homes,Residential Permanent,"1,938.00",0.00,Residential Care
25/04/2018,Adults & Housing Department,Elliott Rest Homes,Residential Permanent,"1,938.00",0.00,Residential Care
25/04/2018,Adults & Housing Department,Elliott Rest Homes,Residential Permanent,"1,558.56",0.00,Residential Care
25/04/2018,Adults & Housing Department,Elliott Rest Homes,Residential Permanent,"1,938.00",0.00,Residential Care
25/04/2018,Adults & Housing Department,Elliott Rest Homes,Residential Permanent,"1,558.56",0.00,Residential Care
25/04/2018,Adults & Housing Department,Elliott Rest Homes,Residential Permanent,"1,766.64",0.00,Residential Care
25/04/2018,Adults & Housing Department,Evington Grange,Residential Permanent,899.79,0.00,Residential Care
25/04/2018,Adults & Housing Department,Evington Grange,Residential Permanent,"1,258.21",0.00,Residential Care
25/04/2018,Adults & Housing Department,Evington Grange,Residential Permanent,"1,938.00",0.00,Residential Care
25/04/2018,Adults & Housing Department,Evington Grange,Residential Permanent,"2,710.00",0.00,Residential Care
25/04/2018,Adults & Housing Department,Evington Grange,Residential Permanent,"1,810.00",0.00,Residential Care
25/04/2018,Adults & Housing Department,Evington Grange,Residential Permanent,"1,938.00",0.00,Residential Care
25/04/2018,Adults & Housing Department,Evington Home - Pilgrims' Friend Society,Residential Permanent,"1,738.08",0.00,Residential Care
25/04/2018,Adults & Housing Department,Evington Home - Pilgrims' Friend Society,Residential Permanent,"1,938.00",0.00,Residential Care
25/04/2018,Adults & Housing Department,Evington Home - Pilgrims' Friend Society,Residential Permanent,"1,738.08",0.00,Residential Care
25/04/2018,Adults & Housing Department,Evington Home - Pilgrims' Friend Society,Residential Permanent,"1,938.00",0.00,Residential Care
25/04/2018,Adults & Housing Department,Evington Home - Pilgrims' Friend Society,Residential Permanent,"1,712.00",0.00,Residential Care
25/04/2018,Adults & Housing Department,Evington Home - Pilgrims' Friend Society,Residential Permanent,"1,938.00",0.00,Residential Care
25/04/2018,Adults & Housing Department,Evington Home - Pilgrims' Friend Society,Residential Permanent,"1,938.00",0.00,Residential Care
25/04/2018,Adults & Housing Department,Evington Home - Pilgrims' Friend Society,Residential Permanent,"1,674.00",0.00,Residential Care
25/04/2018,Adults & Housing Department,FIRSTSMILE LTD T/A FRAMLAND,Residential Permanent,"1,596.00",0.00,Residential Care
25/04/2018,Adults & Housing Department,FIRSTSMILE LTD T/A FRAMLAND,Residential Permanent,"1,596.00",0.00,Residential Care
25/04/2018,Adults & Housing Department,Flora Lodge,Residential Permanent,"1,558.56",0.00,Residential Care
25/04/2018,Adults & Housing Department,Flora Lodge,Residential Permanent,"1,766.64",0.00,Residential Care
25/04/2018,Adults & Housing Department,Flora Lodge,Residential Permanent,"1,766.64",0.00,Residential Care
25/04/2018,Adults & Housing Department,Flora Lodge,Residential Permanent,"1,738.08",0.00,Residential Care
25/04/2018,Adults & Housing Department,Flora Lodge,Residential Permanent,"1,558.56",0.00,Residential Care
25/04/2018,Adults & Housing Department,Flora Lodge,Residential Permanent,"1,558.56",0.00,Residential Care
25/04/2018,Adults & Housing Department,Flora Lodge,Residential Permanent,"1,766.64",0.00,Residential Care
25/04/2018,Adults & Housing Department,Flora Lodge,Residential Permanent,"1,558.56",0.00,Residential Care
25/04/2018,Adults & Housing Department,Flora Lodge,Residential Permanent,"1,558.56",0.00,Residential Care
25/04/2018,Adults & Housing Department,Flora Lodge,Residential Permanent,"1,328.48",0.00,Residential Care
25/04/2018,Adults & Housing Department,Flora Lodge,Residential Permanent,"1,558.56",0.00,Residential Care
25/04/2018,Adults & Housing Department,Flora Lodge,Residential Permanent,"1,558.56",0.00,Residential Care
25/04/2018,Adults & Housing Department,FREEDOM CARE LTD T/AS THE CHANTRY,Residential Permanent,"5,913.36",0.00,Residential Care
25/04/2018,Adults & Housing Department,FREEDOM CARE LTD T/AS THE CHANTRY,Residential Permanent,"1,766.64",0.00,Residential Care
25/04/2018,Adults & Housing Department,FREEDOM CARE LTD T/AS THE CHANTRY,Residential Permanent,"1,766.64",0.00,Residential Care
25/04/2018,Adults & Housing Department,FREEDOM CARE LTD T/AS THE CHANTRY,Residential Permanent,"7,836.76",0.00,Residential Care
25/04/2018,Adults & Housing Department,Freeways,Residential Permanent,"4,330.64",0.00,Residential Care
25/04/2018,Adults & Housing Department,FSHC NEWCO LTD T/AS: THE LAWNS,Residential Permanent,"1,596.00",0.00,Residential Care
25/04/2018,Adults & Housing Department,FSHC NEWCO LTD T/AS: THE LAWNS,Residential Permanent,"1,396.00",0.00,Residential Care
25/04/2018,Adults & Housing Department,FSHC NEWCO LTD T/AS: THE LAWNS,Residential Permanent,"1,576.00",0.00,Residential Care
25/04/2018,Adults & Housing Department,FSHC NEWCO LTD T/AS: THE LAWNS,Residential Permanent,"1,596.00",0.00,Residential Care
25/04/2018,Adults & Housing Department,G B Care Ltd,Residential Permanent,"1,938.00",0.00,Residential Care
25/04/2018,Adults & Housing Department,G B Care Ltd,Residential Permanent,"1,938.00",0.00,Residential Care
25/04/2018,Adults & Housing Department,G B Care Ltd,Residential Permanent,594.44,0.00,Residential Care
25/04/2018,Adults & Housing Department,G B Care Ltd,Residential Permanent,"1,938.00",0.00,Residential Care
25/04/2018,Adults & Housing Department,G B Care Ltd,Residential Permanent,969.00,0.00,Residential Care
25/04/2018,Adults & Housing Department,G B Care Ltd,Residential Permanent,"1,558.56",0.00,Residential Care
25/04/2018,Adults & Housing Department,G B Care Ltd,Residential Permanent,"1,938.00",0.00,Residential Care
25/04/2018,Adults & Housing Department,GOODWOOD ORCHARD-HELPING HAND CARE HOME LTD,Residential Permanent,"1,738.08",0.00,Residential Care
25/04/2018,Adults & Housing Department,GOODWOOD ORCHARD-HELPING HAND CARE HOME LTD,Residential Permanent,620.74,0.00,Residential Care
25/04/2018,Adults & Housing Department,GOODWOOD ORCHARD-HELPING HAND CARE HOME LTD,Residential Permanent,"1,738.08",0.00,Residential Care
25/04/2018,Adults & Housing Department,GOODWOOD ORCHARD-HELPING HAND CARE HOME LTD,Residential Permanent,744.89,0.00,Residential Care
25/04/2018,Adults & Housing Department,GOODWOOD ORCHARD-HELPING HAND CARE HOME LTD,Residential Permanent,869.04,0.00,Residential Care
25/04/2018,Adults & Housing Department,Grange Lodge Residential Home Ltd,Residential Permanent,"1,780.00",0.00,Residential Care
25/04/2018,Adults & Housing Department,Grange Lodge Residential Home Ltd,Residential Permanent,600.00,0.00,Residential Care
25/04/2018,Adults & Housing Department,Gratia Residential Care Home Ltd,Residential Permanent,"1,766.64",0.00,Residential Care
25/04/2018,Adults & Housing Department,Gratia Residential Care Home Ltd,Residential Permanent,"1,766.64",0.00,Residential Care
25/04/2018,Adults & Housing Department,Gratia Residential Care Home Ltd,Residential Permanent,"2,675.80",0.00,Residential Care
25/04/2018,Adults & Housing Department,Gratia Residential Care Home Ltd,Residential Permanent,"1,938.00",0.00,Residential Care
25/04/2018,Adults & Housing Department,Gratia Residential Care Home Ltd,Residential Permanent,"1,938.00",0.00,Residential Care
25/04/2018,Adults & Housing Department,Gratia Residential Care Home Ltd,Residential Permanent,"2,430.00",0.00,Residential Care
25/04/2018,Adults & Housing Department,Gratia Residential Care Home Ltd,Residential Permanent,"1,938.00",0.00,Residential Care
25/04/2018,Adults & Housing Department,Gratia Residential Care Home Ltd,Residential Permanent,571.20,0.00,Residential Care
25/04/2018,Adults & Housing Department,Gratia Residential Care Home Ltd,Residential Permanent,"1,766.64",0.00,Residential Care
25/04/2018,Adults & Housing Department,Gratia Residential Care Home Ltd,Residential Permanent,"1,766.64",0.00,Residential Care
25/04/2018,Adults & Housing Department,Gratia Residential Care Home Ltd,Residential Permanent,"1,938.00",0.00,Residential Care
25/04/2018,Adults & Housing Department,Greentree Enterprises Ltd. T/A Clarendon Hse Care Ltd,Residential Permanent,"1,780.00",0.00,Residential Care
25/04/2018,Adults & Housing Department,GWENDOLEN ROAD CARE HOME,Residential Permanent,"1,938.00",0.00,Residential Care
25/04/2018,Adults & Housing Department,GWENDOLEN ROAD CARE HOME,Residential Permanent,"2,054.00",0.00,Residential Care
25/04/2018,Adults & Housing Department,GWENDOLEN ROAD CARE HOME,Residential Permanent,700.00,0.00,Residential Care
25/04/2018,Adults & Housing Department,GWENDOLEN ROAD CARE HOME,Residential Permanent,"1,938.00",0.00,Residential Care
25/04/2018,Adults & Housing Department,GWENDOLEN ROAD CARE HOME,Residential Permanent,"1,041.44",0.00,Residential Care
25/04/2018,Adults & Housing Department,GWENDOLEN ROAD CARE HOME,Residential Permanent,"1,558.56",0.00,Residential Care
25/04/2018,Adults & Housing Department,GWENDOLEN ROAD CARE HOME,Residential Permanent,"1,558.56",0.00,Residential Care
25/04/2018,Adults & Housing Department,GWENDOLEN ROAD CARE HOME,Residential Permanent,"1,938.00",0.00,Residential Care
25/04/2018,Adults & Housing Department,GWENDOLEN ROAD CARE HOME,Residential Permanent,600.00,0.00,Residential Care
25/04/2018,Adults & Housing Department,GWENDOLEN ROAD CARE HOME,Residential Permanent,"1,938.00",0.00,Residential Care
25/04/2018,Adults & Housing Department,GWENDOLEN ROAD CARE HOME,Residential Permanent,"1,938.00",0.00,Residential Care
25/04/2018,Adults & Housing Department,GWENDOLEN ROAD CARE HOME,Residential Permanent,"1,938.00",0.00,Residential Care
25/04/2018,Adults & Housing Department,GWENDOLEN ROAD CARE HOME,Residential Permanent,969.00,0.00,Residential Care
25/04/2018,Adults & Housing Department,GWENDOLEN ROAD CARE HOME,Residential Permanent,"1,938.00",0.00,Residential Care
25/04/2018,Adults & Housing Department,GWENDOLEN ROAD CARE HOME,Residential Permanent,"3,862.00",0.00,Residential Care
25/04/2018,Adults & Housing Department,GWENDOLEN ROAD CARE HOME,Residential Permanent,"2,314.00",0.00,Residential Care
25/04/2018,Adults & Housing Department,GWENDOLEN ROAD CARE HOME,Residential Permanent,"1,766.64",0.00,Residential Care
25/04/2018,Adults & Housing Department,GWENDOLEN ROAD CARE HOME,Residential Permanent,"2,856.00",0.00,Residential Care
25/04/2018,Adults & Housing Department,GWENDOLEN ROAD CARE HOME,Residential Permanent,"1,587.12",0.00,Residential Care
25/04/2018,Adults & Housing Department,Hambleton House,Residential Permanent,"1,766.64",0.00,Residential Care
25/04/2018,Adults & Housing Department,Hambleton House,Residential Permanent,"1,938.00",0.00,Residential Care
25/04/2018,Adults & Housing Department,Hambleton House,Residential Permanent,"1,766.64",0.00,Residential Care
25/04/2018,Adults & Housing Department,Hambleton House,Residential Permanent,"1,766.64",0.00,Residential Care
25/04/2018,Adults & Housing Department,Hambleton House,Residential Permanent,"3,057.60",0.00,Residential Care
25/04/2018,Adults & Housing Department,Hambleton House,Residential Permanent,"1,766.64",0.00,Residential Care
25/04/2018,Adults & Housing Department,Hambleton House,Residential Permanent,"1,938.00",0.00,Residential Care
25/04/2018,Adults & Housing Department,Hambleton House,Residential Permanent,556.63,0.00,Residential Care
25/04/2018,Adults & Housing Department,Hambleton House,Residential Permanent,"1,558.56",0.00,Residential Care
25/04/2018,Adults & Housing Department,Hambleton House,Residential Permanent,"1,938.00",0.00,Residential Care
25/04/2018,Adults & Housing Department,Hambleton House,Residential Permanent,"1,766.64",0.00,Residential Care
25/04/2018,Adults & Housing Department,Hambleton House,Residential Permanent,"1,938.00",0.00,Residential Care
25/04/2018,Adults & Housing Department,Hambleton House,Residential Permanent,"1,766.64",0.00,Residential Care
25/04/2018,Adults & Housing Department,Hambleton House,Residential Permanent,"1,766.64",0.00,Residential Care
25/04/2018,Adults & Housing Department,Hambleton House,Residential Permanent,"1,766.64",0.00,Residential Care
25/04/2018,Adults & Housing Department,Hambleton House,Residential Permanent,"1,738.08",0.00,Residential Care
25/04/2018,Adults & Housing Department,Hamilton House,Residential Permanent,"1,938.00",0.00,Residential Care
25/04/2018,Adults & Housing Department,Hamilton House,Residential Permanent,"1,938.00",0.00,Residential Care
25/04/2018,Adults & Housing Department,Hamilton House,Residential Permanent,"1,558.56",0.00,Residential Care
25/04/2018,Adults & Housing Department,Hamilton House,Residential Permanent,"1,938.00",0.00,Residential Care
25/04/2018,Adults & Housing Department,Hamilton House,Residential Permanent,"1,558.56",0.00,Residential Care
25/04/2018,Adults & Housing Department,Hamilton House,Residential Permanent,"1,938.00",0.00,Residential Care
25/04/2018,Adults & Housing Department,Hamilton House,Residential Permanent,899.79,0.00,Residential Care
25/04/2018,Adults & Housing Department,Hamilton House,Residential Permanent,"1,938.00",0.00,Residential Care
25/04/2018,Adults & Housing Department,Hamilton House,Residential Permanent,"1,558.56",0.00,Residential Care
25/04/2018,Adults & Housing Department,Hamilton House,Residential Permanent,"1,741.04",0.00,Residential Care
25/04/2018,Adults & Housing Department,Hamilton House,Residential Permanent,"1,422.40",0.00,Residential Care
25/04/2018,Adults & Housing Department,Hamilton House,Residential Permanent,"1,558.56",0.00,Residential Care
25/04/2018,Adults & Housing Department,Hamilton House,Residential Permanent,594.92,0.00,Residential Care
25/04/2018,Adults & Housing Department,Hamilton House,Residential Permanent,"1,558.56",0.00,Residential Care
25/04/2018,Adults & Housing Department,Hamilton House,Residential Permanent,"1,938.00",0.00,Residential Care
25/04/2018,Adults & Housing Department,Hamilton House,Residential Permanent,"1,182.00",0.00,Residential Care
25/04/2018,Adults & Housing Department,Hamilton House,Residential Permanent,"1,938.00",0.00,Residential Care
25/04/2018,Adults & Housing Department,Hamra Associates Ltd,Residential Permanent,"1,766.64",0.00,Residential Care
25/04/2018,Adults & Housing Department,Hamra Associates Ltd,Residential Permanent,549.60,0.00,Residential Care
25/04/2018,Adults & Housing Department,Hamra Associates Ltd,Residential Permanent,"1,938.00",0.00,Residential Care
25/04/2018,Adults & Housing Department,Hamra Associates Ltd,Residential Permanent,"1,766.64",0.00,Residential Care
25/04/2018,Adults & Housing Department,Hamra Associates Ltd,Residential Permanent,567.85,0.00,Residential Care
25/04/2018,Adults & Housing Department,Hamra Associates Ltd,Residential Permanent,"9,205.80",0.00,Residential Care
25/04/2018,Adults & Housing Department,Hamra Associates Ltd,Residential Permanent,"1,766.64",0.00,Residential Care
25/04/2018,Adults & Housing Department,Hartington Road Care Home,Residential Permanent,"1,766.64",0.00,Residential Care
25/04/2018,Adults & Housing Department,Hartington Road Care Home,Residential Permanent,"1,766.64",0.00,Residential Care
25/04/2018,Adults & Housing Department,Hartington Road Care Home,Residential Permanent,"1,938.00",0.00,Residential Care
25/04/2018,Adults & Housing Department,Hartington Road Care Home,Residential Permanent,"1,766.64",0.00,Residential Care
25/04/2018,Adults & Housing Department,Hartington Road Care Home,Residential Permanent,600.00,0.00,Residential Care
25/04/2018,Adults & Housing Department,Hayes Park Nursing Home,Residential Permanent,969.00,0.00,Residential Care
25/04/2018,Adults & Housing Department,Hayes Park Nursing Home,Residential Permanent,"1,738.08",0.00,Residential Care
25/04/2018,Adults & Housing Department,Hayes Park Nursing Home,Residential Permanent,"1,738.08",0.00,Residential Care
25/04/2018,Adults & Housing Department,Hayes Park Nursing Home,Residential Permanent,"1,738.08",0.00,Residential Care
25/04/2018,Adults & Housing Department,Hayes Park Nursing Home,Residential Permanent,"1,938.00",0.00,Residential Care
25/04/2018,Adults & Housing Department,Hayes Park Nursing Home,Residential Permanent,830.57,0.00,Residential Care
25/04/2018,Adults & Housing Department,Hayes Park Nursing Home,Residential Permanent,"1,738.08",0.00,Residential Care
25/04/2018,Adults & Housing Department,Hayes Park Nursing Home,Residential Permanent,"1,938.00",0.00,Residential Care
25/04/2018,Adults & Housing Department,Hazelford Residential Home,Residential Permanent,"1,836.00",0.00,Residential Care
25/04/2018,Adults & Housing Department,HC One Ltd T/a The Rowans Care Home,Residential Permanent,"1,644.00",0.00,Residential Care
25/04/2018,Adults & Housing Department,HC-One Ltd T/a Cedar Court,Residential Permanent,"1,100.00",0.00,Residential Care
25/04/2018,Adults & Housing Department,HC-One Ltd T/a Cedar Court,Residential Permanent,"1,780.00",0.00,Residential Care
25/04/2018,Adults & Housing Department,HC-One Ltd T/a Harley Grange Care Home,Residential Permanent,"1,738.08",0.00,Residential Care
25/04/2018,Adults & Housing Department,HC-One Ltd T/a Harley Grange Care Home,Residential Permanent,"1,360.00",0.00,Residential Care
25/04/2018,Adults & Housing Department,Heartwell House Residential Care Ltd,Residential Permanent,"1,558.56",0.00,Residential Care
25/04/2018,Adults & Housing Department,Heartwell House Residential Care Ltd,Residential Permanent,"1,938.00",0.00,Residential Care
25/04/2018,Adults & Housing Department,Heartwell House Residential Care Ltd,Residential Permanent,"1,558.56",0.00,Residential Care
25/04/2018,Adults & Housing Department,Heartwell House Residential Care Ltd,Residential Permanent,"1,938.00",0.00,Residential Care
25/04/2018,Adults & Housing Department,Heartwell House Residential Care Ltd,Residential Permanent,"1,938.00",0.00,Residential Care
25/04/2018,Adults & Housing Department,Heartwell House Residential Care Ltd,Residential Permanent,"1,558.56",0.00,Residential Care
25/04/2018,Adults & Housing Department,Heartwell House Residential Care Ltd,Residential Permanent,"1,558.56",0.00,Residential Care
25/04/2018,Adults & Housing Department,Heartwell House Residential Care Ltd,Residential Permanent,"1,122.72",0.00,Residential Care
25/04/2018,Adults & Housing Department,Heartwell House Residential Care Ltd,Residential Permanent,969.00,0.00,Residential Care
25/04/2018,Adults & Housing Department,Heartwell House Residential Care Ltd,Residential Permanent,969.00,0.00,Residential Care
25/04/2018,Adults & Housing Department,Heartwell House Residential Care Ltd,Residential Permanent,"1,910.00",0.00,Residential Care
25/04/2018,Adults & Housing Department,Heartwell House Residential Care Ltd,Residential Permanent,"1,558.56",0.00,Residential Care
25/04/2018,Adults & Housing Department,Heartwell House Residential Care Ltd,Residential Permanent,"1,938.00",0.00,Residential Care
25/04/2018,Adults & Housing Department,Heathcotes Care Limited,Residential Permanent,"1,592.00",0.00,Residential Care
25/04/2018,Adults & Housing Department,Heathcotes Care Limited,Residential Permanent,"1,624.00",0.00,Residential Care
25/04/2018,Adults & Housing Department,Heathcotes Care Limited,Residential Permanent,"9,085.28",0.00,Residential Care
25/04/2018,Adults & Housing Department,Heathcotes Care Limited,Residential Permanent,"7,812.20",0.00,Residential Care
25/04/2018,Adults & Housing Department,Heathcotes M Ltd,Residential Permanent,"1,766.64",0.00,Residential Care
25/04/2018,Adults & Housing Department,Heathcotes M Ltd,Residential Permanent,"8,800.00",0.00,Residential Care
25/04/2018,Adults & Housing Department,Heathcotes M Ltd,Residential Permanent,"6,994.92",0.00,Residential Care
25/04/2018,Adults & Housing Department,HEATHCOTES MAGNA,Residential Permanent,"4,895.52",0.00,Residential Care
25/04/2018,Adults & Housing Department,HEATHCOTES MAGNA,Residential Permanent,"1,624.00",0.00,Residential Care
25/04/2018,Adults & Housing Department,Heritage Care - Storer Close 3,Residential Permanent,"1,624.00",0.00,Residential Care
25/04/2018,Adults & Housing Department,Heritage Care - Storer Close 3,Residential Permanent,"3,576.00",0.00,Residential Care
25/04/2018,Adults & Housing Department,Hicare Ltd,Residential Permanent,"1,267.52",0.00,Residential Care
25/04/2018,Adults & Housing Department,Hicare Ltd,Residential Permanent,969.00,0.00,Residential Care
25/04/2018,Adults & Housing Department,Hicare Ltd,Residential Permanent,"1,738.08",0.00,Residential Care
25/04/2018,Adults & Housing Department,Hicare Ltd,Residential Permanent,"1,938.00",0.00,Residential Care
25/04/2018,Adults & Housing Department,Hicare Ltd,Residential Permanent,"1,738.08",0.00,Residential Care
25/04/2018,Adults & Housing Department,Hicare Ltd,Residential Permanent,"1,938.00",0.00,Residential Care
25/04/2018,Adults & Housing Department,Hicare Ltd,Residential Permanent,"1,938.00",0.00,Residential Care
25/04/2018,Adults & Housing Department,Hicare Ltd,Residential Permanent,"1,738.08",0.00,Residential Care
25/04/2018,Adults & Housing Department,Hicare Ltd,Residential Permanent,"1,938.00",0.00,Residential Care
25/04/2018,Adults & Housing Department,Hicare Ltd,Residential Permanent,"1,738.08",0.00,Residential Care
25/04/2018,Adults & Housing Department,Hicare Ltd,Residential Permanent,"1,738.08",0.00,Residential Care
25/04/2018,Adults & Housing Department,Hicare Ltd,Residential Permanent,"1,738.08",0.00,Residential Care
25/04/2018,Adults & Housing Department,Hicare Ltd,Residential Permanent,"1,938.00",0.00,Residential Care
25/04/2018,Adults & Housing Department,Hicare Ltd,Residential Permanent,"1,738.08",0.00,Residential Care
25/04/2018,Adults & Housing Department,Hicare Ltd,Residential Permanent,"1,738.08",0.00,Residential Care
25/04/2018,Adults & Housing Department,Hicare Ltd,Residential Permanent,"1,938.00",0.00,Residential Care
25/04/2018,Adults & Housing Department,Hicare Ltd,Residential Permanent,"1,738.08",0.00,Residential Care
25/04/2018,Adults & Housing Department,Hicare Ltd,Residential Permanent,"1,938.00",0.00,Residential Care
25/04/2018,Adults & Housing Department,Hicare Ltd,Residential Permanent,"1,938.00",0.00,Residential Care
25/04/2018,Adults & Housing Department,Hicare Ltd,Residential Permanent,"1,738.08",0.00,Residential Care
25/04/2018,Adults & Housing Department,Hicare Ltd,Residential Permanent,"1,938.00",0.00,Residential Care
25/04/2018,Adults & Housing Department,Hicare Ltd,Residential Permanent,"1,938.00",0.00,Residential Care
25/04/2018,Adults & Housing Department,Hicare Ltd,Residential Permanent,"1,738.08",0.00,Residential Care
25/04/2018,Adults & Housing Department,Hicare Ltd,Residential Permanent,"1,938.00",0.00,Residential Care
25/04/2018,Adults & Housing Department,Hicare Ltd,Residential Permanent,"1,738.08",0.00,Residential Care
25/04/2018,Adults & Housing Department,Hicare Ltd,Residential Permanent,"1,938.00",0.00,Residential Care
